{"text_format":"3","workbook":"xlsx","n_sheets":8,"sheets":["Menu","QT-Acquedotto","QT-Fognatura","QT-Depurazione","QT-Altri dati","QT-Resilienza","Riepilogo RQTI","TT_Gestori-ATO"],"not_rendered":{"images":2,"defined_names":14,"comments":2},"read":"whole","date_system":"1900"}

{"sheet":"Menu","index":0,"n_rows":15,"n_cols":6,"rows_kept":15,"merged":[[0,1,0,5],[9,1,14,1],[9,2,9,5],[10,2,10,5],[11,2,11,5],[12,2,12,5],[13,2,13,5],[14,2,14,5]]}
[null,"RQTI 2026 - Raccolta dati di consuntivo di qualità tecnica - Anno 2025"]
[null,"ATO",null,null,"GESTORE"]
[null,"ID_ATO","ATO","campo_vuoto","ID_ARERA_Gestore","Gestore"]
[null,null,{"$f":"IF(B4=\"\",\"\",VLOOKUP(B4,'TT_Gestori-ATO'!$B:$C,2,FALSE))","v":""},null,null,{"$f":"IF(E4=\"\",\"\",VLOOKUP(E4,'TT_Gestori-ATO'!$F:$G,2,FALSE))","v":""}]
[]
[{"$nulls":4},"gg/mm/aa"]
[null,null,"data di chiusura della Raccolta dati RQTI_2026 ",null,"2026-06-30","ai sensi del comma 1.2 della deliberazione 581/2025/R/idr - NON cancellare né sovrascrivere"]
[]
[null,null,"Elenco schede (cliccare sul titolo per andare alla scheda corrispondente):"]
[null,"Monitoraggio RQTI per applicazione meccanismo incentivante per il biennio 2024-2025","Qualità Tecnica: Acquedotto (dati 2025)"]
[null,null,"Qualità Tecnica: Fognatura (dati 2025)"]
[null,null,"Qualità Tecnica: Depurazione (dati 2025)"]
[null,null,"Altri dati per monitoraggio RQTI (dati 2025)"]
[null,null,"Qualità Tecnica: QT-Resilienza (dati 2025)"]
[null,null,"Riepilogo RQTI: valutazione performance anni 2024-2025 "]

{"sheet":"QT-Acquedotto","index":1,"n_rows":159,"n_cols":12,"rows_kept":159,"merged":[[28,7,29,7],[28,8,29,8],[34,7,37,7],[34,8,37,8],[42,7,43,7],[42,8,43,8],[56,7,57,7],[56,8,57,8],[67,7,68,7],[67,8,68,8],[69,7,70,7],[69,8,70,8],[80,7,81,7],[80,8,81,8],[84,7,85,7],[84,8,85,8],[104,7,105,7],[104,8,105,8],[134,7,135,7],[134,8,135,8],[139,7,142,7],[139,8,142,8]]}
[null,"Dati per l'applicazione dei meccanismi di \nincentivazione RQTI (premi e penalità)\nTutti i valori imputati sono intesi essere valori \nconsuntivi ",{"$nulls":9},"Errori compilazione colonna \"Valore Anno 2025\""]
["Notazione dato ","Descrizione dato","UdM",null,"Valore Anno 2025","Note compilazione",null,null,"Errore rilevato in colonna \"Valore Anno 2025\"",null,null,{"$f":"SUM(L3:L150)","v":0}]
["ACQ","Il gestore gestisce il servizio di acquedotto?\nSe sì, specificare:","-",null,null,"Al fine del calcolo dei macro-indicatori è necessario indicare se il servizio è gestito",{"$nulls":5},{"$f":"IF(I3=\"\",0,1)","v":0}]
["ACQ_c","- captazione","-",{"$nulls":8},0]
["ACQ_a","- adduzione","-",{"$nulls":8},0]
["ACQ_p","-  potabilizzazione","-",{"$nulls":8},0]
["ACQ_d","- distribuzione","-",null,null,"Al fine del calcolo dei macro-indicatori è necessario indicare se il servizio è gestito",{"$nulls":5},0]
["PRA","Popolazione residente servita (PRA)","ab.",{"$nulls":5},{"$f":"IF(E$7=\"X\",IF(E8<=0,\"Il valore deve essere maggiore di zero\",\"\"),IF(E8<>0,\"Non risulta gestita la distribuzione\",\"\"))","v":""},null,null,0]
["PFA","Popolazione fluttuante (PFA)","ab.",{"$nulls":5},{"$f":"IF(E9<0,\"Il valore deve essere maggiore o uguale a zero\",\"\")","v":""},null,null,0]
["ComA","Numero di comuni serviti (ComA)","n. ",{"$nulls":5},{"$f":"IF(E$7=\"X\",IF(E10<=0,\"Il valore deve essere maggiore di zero\",\"\"),IF(E10<>0,\"Non risulta gestita la distribuzione\",\"\"))","v":""},null,null,0]
["SUA","Superficie  (SUA)","kmq",{"$nulls":5},{"$f":"IF(E$7=\"X\",IF(E11<=0,\"Il valore deve essere maggiore di zero\",\"\"),IF(E11<>0,\"Non risulta gestita la distribuzione\",\"\"))","v":""},null,null,0]
["EEACQ","Consumo di energia elettrica per servizio di acquedotto, al netto dell'energia autoprodotta","kWh",null,null,"Il dato include la quota parte relativa ai servizi comuni",null,null,{"$f":"IF(E12<0,\"Il valore deve essere maggiore o uguale a zero\",\"\")","v":""},null,null,0]
["EEAAI","Consumo di energia elettrica per Altre Attività Idriche (definizione rilevante ai sensi dell'unbundling)","kWh",null,null,"A parità di perimetro la somma dei dati relativi ad Acquedotto, Fognatura, Depurazione ed Altre Attività Idriche (come definite dal TIUC) deve essere coerente con la corrispondente grandezza richiesta a fini tariffari",null,null,{"$f":"IF(E13<0,\"Il valore deve essere maggiore o uguale a zero\",\"\")","v":""},null,null,0]
[{"$nulls":11},0]
["Valutazione prerequisiti e indicazione istanze presentate per M1",{"$nulls":10},0]
["WPtot","Somma dei volumi di processo totali (presi ognuno in valore assoluto)","mc",null,null,"Nei volumi di processo sono compresi i volumi scambiati con sistemi di acquedotto gestiti da altri gestori",null,null,{"$f":"IF(E$3=\"SI\",IF(E16<=0,\"Il valore deve essere maggiore di zero\",\"\"),IF(E16<>0,\"Non risulta gestito il servizio di acquedotto\",\"\"))","v":""},null,null,0]
["WPm","Somma dei volumi di processo misurati","mc",{"$nulls":5},{"$f":"IF(OR(E17<0,E17>E16),\"Il valore deve essere maggiore o uguale a zero e minore o uguale a WPtot\",\"\")","v":""},null,null,0]
["WP","Quota volumi di processo misurati","%",null,{"$f":"IF(AND(E16>0,E17>=0,E17<=E16),E17/E16,\"\")","v":""},"Vedere RQTI al comma 20.2 ",null,null,{"$f":"IF(AND(E$3=\"SI\",E18=\"\"),\"Indicatore non calcolabile\",\"\")","v":""},null,null,0]
["WUtot","Somma dei volumi di utenza totali","mc",null,null,"Volumi riferiti agli utenti finali, sono esclusi i volumi ceduti a reti di acquedotto gestite da altri gestori. \nN.B. Deve essere verificata la seguente equivalenza: WPtot + WUtot = ∑WIN + ∑WOUT",null,null,{"$f":"IF(AND(E$3=\"SI\",E19<0),\"Il valore deve essere maggiore o uguale a zero\",\"\")","v":""},null,null,0]
["WUm","Somma dei volumi di utenza misurati","mc",{"$nulls":5},{"$f":"IF(OR(E20<0,E20>E19),\"Il valore deve essere maggiore o uguale a zero e minore o uguale a WUtot\",\"\")","v":""},null,null,0]
["WU","Quota volumi di utenza misurati","%",null,{"$f":"IF(AND(E19>0,E20>=0,E20<=E19),E20/E19,\"\")","v":""},"Vedere RQTI al comma 20.2 ",null,null,{"$f":"IF(AND(E$3=\"SI\",E21=\"\"),\"Indicatore non calcolabile\",\"\")","v":""},null,null,0]
["Preq1","Indicare se il prerequisito sulla disponibilità e affidabilità dei dati di misura è stato conseguito (prerequisito Preq1)","-",null,{"$f":"IF(AND(E3=\"SI\",E18=\"\",E21=\"\"),\"\",IF(AND(E3=\"SI\",E18>=0.7,E21=\"\"),\"SI\",IF(E3=\"SI\",IF(OR(E18<0.7,E21<0.9),\"NO\",\"SI\"),\"\")))","v":""},"Vedere RQTI, Art.20",null,null,{"$f":"IF(AND(E$3=\"SI\",OR(E22=\"NO\",E22=\"\")),\"Attenzione, prerequisito mancante\",\"\")","v":""},null,null,0]
["Preq4M1","Indicare l'esito della validazione ai fini della valutazione della disponibilità e affidabilità dei dati per M1 (prerequisito Preq4) ","-",null,null,"Indicare la presenza o meno del prerequisito Preq4 (Art.23 RQTI) ",null,null,{"$f":"IF(AND(E$3=\"SI\",OR(E23=\"Non adeguato\",E23=\"\")),\"Attenzione, prerequisito mancante\",\"\")","v":""},null,null,0]
["Ist_M1geo","Indicare se è stata formulata istanza ai sensi del comma 7.3 della RQTI","-",null,null,"Istanza ai sensi del comma 7.3 della RQTI, ammissibile solo se verificate tutte le condizioni richieste.  ",null,null,{"$f":"IF(E24=\"SI\",\"Prestare attenzione alla confrontabilità con il macro-indicatore dell'anno base\",\"\")","v":""},null,null,0]
["IstD,M1","Indicare se è stata formulata istanza per eventi imprevisti e imprevedibili che hanno comportato il mancato rispetto degli obiettivi per M1","-",null,null,"Istanza ex-post ai sensi del comma 5.4, del. 917/2017. Specificare motivazioni in relazione ",{"$nulls":5},0]
[{"$nulls":11},0]
["Calcolo del macro-indicatore M1",{"$nulls":10},0]
["∑WIN","Somma dei volumi in ingresso nel sistema di acquedotto ","mc",null,null,"Si considerano sia i volumi prelevati dall'ambiente che quelli importati da sistemi di acquedotto/captazione gestiti da altri gestori",null,null,{"$f":"IF(E3=\"SI\",IF(OR(E28<=0,E28=\"\"),\"Il valore deve essere maggiore di zero\",\"\"),IF(E28<>0,\"Non risulta gestito il servizio di acquedotto\",\"\"))","v":""},null,null,0]
["Wimp","di cui volume di acqua importata da altri soggetti","mc",null,null,"Volume di acqua (potabile o non potabile) prelevato da sistemi di acquedotto/captazione gestiti da altri gestori e immesso nella rete di adduzione e/o di distribuzione",null,null,{"$f":"IF(AND(E3=\"SI\",OR(E29<0,E30<0,E29+E30<>E28)),\"Ogni di cui deve essere maggiore o uguale a zero e la somma deve essere pari a ∑WIN\",\"\")","v":""},null,null,0]
["WAM","di cui volume di acqua prelevato dall'ambiente","mc",null,null,"Non devono essere considerati i volumi importati da altri soggetti",{"$nulls":5},0]
["∑WOUT","Somma dei volumi in uscita dal sistema di acquedotto ","mc",null,null,"Laddove il dato sia comprensivo delle perdite di trattamento misurate è obbligatorio compilare la riga successiva. \nNon è la somma dei \"di cui\" sottostanti.\nN.B. Deve essere verificata la seguente equivalenza: WPtot + WUtot = ∑WIN + ∑WOUT",null,null,{"$f":"IF(E3=\"SI\",IF(OR(E31<=0,E31>=E28),\"Il valore deve essere maggiore di zero e inferiore a ∑W_IN\",\"\"),IF(E31<>0,\"Non risulta gestito il servizio di acquedotto\",\"\"))","v":""},null,null,0]
["WLT1","di cui perdite trattamento misurate (se incluse in ∑WOUT)","mc",null,null,"E' facoltà del gestore includere le perdite di trattamento misurate in ∑WOUT , non si considera (in questa sede) come trattata l'acqua sottoposta alla sola disinfezione",null,null,{"$f":"IF(OR(E32<0,E32>E31),\"Il valore deve essere maggiore o uguale a zero e inferiore o uguale a ∑W_OUT\",\"\")","v":""},null,null,0]
["Wesp","di cui volume di acqua esportata in adduzione e/o in distribuzione","mc",null,null,"Volume di acqua (potabile o non potabile) prelevato dalla rete di adduzione e/o di distribuzione e ceduto a sistemi di acquedotto gestiti da altri gestori ",null,null,{"$f":"IF(OR(E33<0,E33>E31),\"Il valore deve essere maggiore o uguale a zero e inferiore o uguale a ∑W_OUT\",\"\")","v":""},null,null,0]
["WLTOT","Volume perso complessivamente nell’anno  nelle fasi del servizio di acquedotto gestite","mc",null,{"$f":"IF((E28-E31)>=0,E28-E31,\"\")","v":0},{"$nulls":6},{"$f":"IF(I34=\"\",0,1)","v":0}]
["WLA1","     di cui perdite di acqua non potabile in adduzione","mc",{"$nulls":5},{"$f":"IF(OR(E35<0,E36<0,E37<0,E38<0,E35+E36+E37+E38<>E34),\"Ogni di cui deve essere maggiore o uguale a zero e la somma deve essere pari a WL_TOT\",\"\")","v":""},null,null,0]
["WLT2","     di cui perdite trattamento (se non incluse in ∑WOUT)","mc",null,null,"Non si considera (in questa sede) come trattata l'acqua sottoposta alla sola disinfezione",{"$nulls":5},0]
["WLA2","     di cui perdite di acqua potabile in adduzione","mc",null,null,"Si considera (in questa sede) come potabile anche l'acqua che necessita di trattamenti di sola disinfezione",{"$nulls":5},0]
["WLD","     di cui perdite idriche totali in distribuzione","mc",{"$nulls":8},0]
["WD5","Acqua potabile immessa nel sistema di distribuzione (esclusa acqua esportata)","mc",null,null,"Dato da compilare (insieme ai \"di cui\") se è gestito il servizio di distribuzione ",null,null,{"$f":"IF(E7=\"X\",IF(OR(E39<=0,E39>E28),\"Il valore deve essere maggiore di zero e minore o uguale a ∑W_IN\",\"\"),IF(E39<>0,\"Non risulta gestita la distribuzione\",\"\"))","v":""},null,null,0]
["RW","di cui consumo fatturato (distribuzione)","mc",null,null,"Consumi autorizzati fatturati (misurati e non misurati), dato utilizzato anche per il calcolo di G3.1",null,null,{"$f":"IF(E7=\"X\",IF(OR(E40<=0,E40>=E39),\"Il valore deve essere maggiore di zero e minore di WD5\",\"\"),IF(E40<>0,\"Non risulta gestita la distribuzione\",\"\"))","v":""},null,null,0]
["NRW","di cui consumo non fatturato (distribuzione)","mc",null,{"$f":"E39-E40","v":0},"Consumi autorizzati non fatturati e perdite idriche totali in distribuzione (WLD)",null,null,{"$f":"IF(E41<E38,\"Il valore deve essere maggiore o uguale a WLD\",\"\")","v":""},null,null,0]
["Lp","Lunghezza totale delle condotte di adduzione e distribuzione, escluse le derivazioni d’utenza","km",{"$nulls":5},{"$f":"IF(E3=\"SI\",IF(OR(E42<=0,E42=\"\"),\"Il valore deve essere maggiore di zero\",\"\"),IF(E42<>0,\"Non risulta gestito il servizio di acquedotto\",\"\"))","v":""},null,null,0]
["La","     di cui lunghezza rete principale di adduzione (La)","km",{"$nulls":5},{"$f":"IF(AND(E3=\"SI\",OR(E43<0,E44<0,E44+E43<>E42)),\"Ogni di cui deve essere maggiore o uguale a zero e la somma deve essere pari a Lp\",\"\")","v":""},null,null,0]
["Ld","     di cui lunghezza rete principale di distribuzione (Ld)","km",{"$nulls":8},0]
["M1a","Perdite idriche lineari","mc/km/gg",null,{"$f":"IF(AND(E42>0,E34>0,E24<>\"SI\"),E34/(365*(E42+0.22*E44)),IF(AND(E42>0,E34>0,E24=\"SI\",'QT-Altri dati'!E67>0),E34/(365*(E42+'QT-Altri dati'!E67)),\"\"))","v":""},"Vedere RQTI al comma 7.2, come modificato dall'art. 10 della delibera 639/2021/R/idr e comma 7.3",null,null,{"$f":"IF(AND(E$3=\"SI\",E45=\"\"),\"Indicatore non calcolabile\",\"\")","v":""},null,null,0]
["M1b","Perdite idriche percentuali","%",null,{"$f":"IF(AND(E28>0,E34>0,E34<=E28),E34/E28,\"\")","v":""},"Vedere RQTI al comma 7.2 ",null,null,{"$f":"IF(AND(E$3=\"SI\",E46=\"\"),\"Indicatore non calcolabile\",\"\")","v":""},null,null,0]
["M1CL","Perdite idriche - Classe di appartenenza","-",null,{"$f":"IF(OR(E45=\"\",E46=\"\"),\"\",IF(AND(E45<12,E46<0.2),\"A\",IF(AND(E45<20,E46<0.35),\"B\",IF(AND(E45<35,E46<0.45),\"C\",IF(AND(E45<55,E46<0.55),\"D\",\"E\")))))","v":""},"Vedere RQTI al comma 6.3, come modificato dall'art. 10 della delibera 639/2021/R/idr e dall'art. 1 della delibera 637/2023/R/idr",{"$nulls":5},0]
["OB1","Perdite idriche - Obiettivo ","-",null,{"$f":"IF(E47=\"A\",\"Mantenimento\",IF(E47=\"B\",\"-2% di M1a\",IF(E47=\"C\",\"-4% di M1a\",IF(E47=\"D\",\"-5% di M1a\",IF(E47=\"E\",\"-6% di M1a\",\"\")))))","v":""},{"$nulls":6},0]
["WPem","Volumi di processo effettivamente misurati (volumi annui derivanti da letture validate già effettuate al 31 gennaio dell'anno a+1)","mc",null,null,"Considerare la quota parte di volume dell’anno a di riferimento, compresa tra il 1° gennaio dell’anno a e la data dell’ultima lettura valida del misuratore. La misurazione si intende valida anche se effettuata in data successiva al 31/12, ma entro il 31/1 dell'anno successivo a quello di riferimento (e.g. 31/1/2025 per il 2024). ",null,null,{"$f":"IF(E3=\"SI\",IF(OR(E49<0,E49>E16),\"Il valore deve essere maggiore o uguale a zero e minore o uguale a WPtot\",\"\"),IF(E49<>0,\"Non risulta gestito il servizio di acquedotto\",\"\"))","v":""},null,null,0]
["WPemtel","     di cui da misuratori teleletti","mc",null,null,"Solo telelettura da remoto con trasmissione dei dati al sistema di telecontrollo (no walk by/drive by)",null,null,{"$f":"IF(OR(E50<0,E50>E49),\"Il valore deve essere maggiore o uguale a zero e inferiore o uguale a WPem\",\"\")","v":""},null,null,0]
["WUem","Volumi di utenza effettivamente misurati (consumi annui derivanti da letture o autoletture validate già effettuate al 31 gennaio dell'anno a+1)","mc",null,null,"Considerare la quota parte di consumo riferita all’anno a di riferimento, compresa tra il 1° gennaio dell’anno a e la data dell’ultima lettura valida del misuratore. La misurazione si intende valida anche se effettuata in data successiva al 31/12, ma entro il 31/1 dell'anno successivo a quello di riferimento (e.g. 31/1/2025 per il 2024). ",null,null,{"$f":"IF(E3=\"SI\",IF(OR(E51<0,E51>E19),\"Il valore deve essere maggiore o uguale a zero e minore o uguale a WUtot\",\"\"),IF(E51<>0,\"Non risulta gestito il servizio di acquedotto\",\"\"))","v":""},null,null,0]
["WUemtel","     di cui da misuratori teleletti","mc",null,null,"Solo telelettura da remoto con trasmissione dei dati al sistema di telecontrollo (no walk by/drive by)",null,null,{"$f":"IF(OR(E52<0,E52>E51),\"Il valore deve essere maggiore o uguale a zero e inferiore o uguale a WUem\",\"\")","v":""},null,null,0]
["G1.1","Quota di volumi misurati sui totali","%",null,null,"Soppresso ai sensi della del. 609/2021/R/idr a decorrere dal 1 gennaio 2022",{"$nulls":5},0]
[{"$nulls":11},0]
["Ulteriori specificazioni per il calcolo del macro-indicatore M1 (anche ai sensi delle deliberazioni 609/2021/R/idr e 639/2021/R/idr), ai fini della valutazione di affidabilità e di diffusione delle nuove tecnologie"]
["WUval","Somma dei volumi consumati dagli utenti finali con almeno un numero di letture validate pari agli obblighi TIMSII per i tentativi di lettura annuali","mc",null,null,"Si intendono i volumi registrati presso gli utenti finali (esclusi utenti indiretti)",null,null,{"$f":"IF(OR(E56<0,E56>E19),\"Il valore deve essere maggiore o uguale a zero e minore o uguale a WUtot\",\"\")","v":""},null,null,{"$f":"IF(I56=\"\",0,1)","v":0}]
["WU3000val","di cui volumi relativi agli utenti finali con consumo medio annuo fino a 3000 mc, per i quali sono disponibili almeno 2 misure validate all'anno","mc",{"$nulls":5},{"$f":"IF(AND(E3=\"SI\",OR(E57<0,E58<0,E58+E57<>E56)),\"Ogni di cui deve essere maggiore o uguale a zero e la somma deve essere pari a WUval\",\"\")","v":""},null,null,0]
["WU3000+val","di cui volumi relativi agli utenti finali con consumo medio annuo superiore a 3000 mc, per i quali sono disponibili almeno 3 misure validate all'anno","mc",{"$nulls":8},0]
["G1.1ut","Quota di volumi di utenza misurati sui totali","%",null,{"$f":"IF(AND(E56>0,E19>0),E56/E19,\"\")","v":""},"Vedere RQTI al comma 6.5, punto 1.a)",{"$nulls":5},0]
["WPval","Somma dei volumi di processo transitati nei punti dell’infrastruttura di acquedotto rilevanti per M1 per i quali sono disponibili almeno 12 misure validate nell’anno, ognuno preso in valore assoluto","mc",null,null,"Nei volumi di processo sono compresi i volumi scambiati con sistemi di acquedotto gestiti da altri gestori. I punti teleletti da sala di controllo centralizzata sono considerati validati, a meno di rilevazione di misure palesemente errate o in caso di misuratore non funzionante",null,null,{"$f":"IF(OR(E60<0,E60>E16),\"Il valore deve essere maggiore o uguale a zero e minore o uguale a WPtot\",\"\")","v":""},null,null,0]
["G1.1proc","Quota di volumi di processo misurati sui totali","%",null,{"$f":"IF(AND(E60>0,E16>0),E60/E16,\"\")","v":""},"Vedere RQTI al comma 6.5, punto 1.b) ",{"$nulls":5},0]
["WUsm","Somma dei volumi consumati dagli utenti finali con misure rilevate tramite telelettura ","mc",null,null,"Telelettura di prossimità (modalità semi-smart) e telelettura da remoto (modalità smart)",null,null,{"$f":"IF(OR(E62<0,E62>E19),\"Il valore deve essere maggiore o uguale a zero e minore o uguale a WUtot\",\"\")","v":""},null,null,0]
["WUsm_tel","di cui volumi di utenza rilevati con modalità di telelettura da remoto","mc",null,null,"Solo telelettura in modalità smart (no walk by/drive by)",null,null,{"$f":"IF(OR(E63<0,E63>E62),\"Il valore deve essere maggiore o uguale a zero e minore o uguale a WUsm\",\"\")","v":""},null,null,0]
["G1.2ut","Diffusione delle tecnologie di rilevazione delle misure d'utenza di tipo smart","%",null,{"$f":"IF(AND(E63>0,E19>0),E63/E19,\"\")","v":""},"Vedere RQTI al comma 6.5, punto 2.a) ",{"$nulls":5},0]
["WPsm","Somma dei volumi di processo con misure rilevate tramite telelettura ","mc",null,null,"Telelettura di prossimità (modalità semi-smart) e telelettura da remoto (modalità smart)",null,null,{"$f":"IF(OR(E65<0,E65>E16),\"Il valore deve essere maggiore o uguale a zero e minore o uguale a WPtot\",\"\")","v":""},null,null,0]
["WPsm_tel","di cui volumi di processo rilevati con modalità di telelettura da remoto","mc",null,null,"Solo telelettura in modalità smart (no walk by/drive by)",null,null,{"$f":"IF(OR(E66<0,E66>E65),\"Il valore deve essere maggiore o uguale a zero e minore o uguale a WPsm_tel\",\"\")","v":""},null,null,0]
["G1.2proc","Diffusione delle tecnologie di rilevazione delle misure di processo di tipo smart","%",null,{"$f":"IF(AND(E66>0,E16>0),E66/E16,\"\")","v":""},"Vedere RQTI al comma 6.5, punto 2.b) ",{"$nulls":5},0]
["Wm,F","Volume autorizzato, misurato e fatturato ","mc",null,null,"Si intendono misurati i volumi delle utenze dotate di misuratore",null,null,{"$f":"IF(AND(E3=\"SI\",OR(E68<0,E69<0,ROUND((E69+E68)<>(E40+E33),0))),\"La somma di Wm,F e Wnm,F non coincide con il valore di (RW+Wesp): motivare in relazione, anche con riferimento al bilancio idrico della rete di adduzione\",\"\")","v":""},null,null,0]
["Wnm,F","Volume autorizzato, non misurato e fatturato ","mc",{"$nulls":8},0]
["Wm,NF","Volume autorizzato, misurato e non fatturato ","mc",null,null,"Fornire dettagli in relazione in merito agli utilizzi dei volumi inclusi in questa voce",null,null,{"$f":"IF(AND(E3=\"SI\",OR(E70<0,E71<0,ROUND((E71+E70)<>(E41-E38),0))),\"La somma di Wm,NF e Wnm,NF non coincide con il valore di (NRW-WLD): motivare in relazione, anche con riferimento al bilancio idrico della rete di adduzione\",\"\")","v":""},null,null,0]
["Wnm,NF","Volume autorizzato, non misurato e non fatturato ","mc",null,null,"Fornire dettagli in relazione in merito agli utilizzi dei volumi inclusi in questa voce",{"$nulls":5},{"$f":"IF(I71=\"\",0,1)","v":0}]
["Wm,F_Nesp","Volume autorizzato, misurato e fatturato (esclusa acqua esportata)","mc",null,{"$f":"E68-E33","v":0},{"$nulls":6},0]
["ck_Wnm,NF","Check su Wnm,NF","%",null,{"$f":"IF(E72=0,\"\",E71/E72)","v":""},"Verifica ai sensi del comma 7.2 della RQTI come modificata con la delibera 637/2023/R/idr",null,null,{"$f":"IF(AND(E3=\"SI\",E73>(0.5/100)),\"Il volume autorizzato, non misurato e non fatturato eccede lo 0,5% del volume autorizzato, misurato e fatturato (esclusa acqua esportata): motivare in relazione\",\"\")","v":""},null,null,0]
[]
["Valutazione prerequisiti e indicazione istanze presentate per M2",{"$nulls":10},0]
["Preq4M2","Indicare l'esito della validazione ai fini della valutazione della disponibilità e affidabilità dei dati per M2 (prerequisito Preq4) ","-",null,null,"Indicare la presenza o meno del prerequisito Preq4 (Art.23 RQTI) ",null,null,{"$f":"IF(AND(E$3=\"SI\",OR(E76=\"Non adeguato\",E76=\"\")),\"Attenzione, prerequisito mancante\",\"\")","v":""},null,null,0]
["IstD,M2","Indicare se è stata formulata istanza per eventi imprevisti e imprevedibili che hanno comportato il mancato rispetto degli obiettivi per M2","-",null,null,"Istanza ex-post ai sensi del comma 5.4, del. 917/2017. Specificare motivazioni in relazione ",{"$nulls":5},0]
[{"$nulls":11},0]
["Calcolo del macro-indicatore M2",{"$nulls":10},0]
["UtT","Numero di utenti finali serviti dal gestore per il servizio di acquedotto (esclusi utenti indiretti)","n.",null,null,"Si intendono le sole utenze contrattualizzate",null,null,{"$f":"IF(E80<0,\"Il valore deve essere maggiore o uguale a zero\",\"\")","v":""},null,null,0]
["UtTd","     di cui utenze domestiche","n.",null,null,"Come da definizioni TICSI",null,null,{"$f":"IF(OR(E81<>\"\",E82<>\"\"),IF(OR(E81<0,E82<0,E82+E81<>E80),\"Ogni di cui deve essere maggiore o uguale a zero e la somma deve essere pari a UtT\",\"\"),\"\")","v":""},null,null,0]
["UtTnd","     di cui utenze non domestiche","n.",null,null,"Come da definizioni TICSI",{"$nulls":5},0]
["UtTcond","Numero di utenze condominiali servite dal gestore per il servizio di acquedotto","n.",null,null,"Come da definizioni RQTI",null,null,{"$f":"IF(AND(E3=\"SI\",OR(E83<0,E83>E80)),\"Il valore deve essere maggiore o uguale a zero e minore o uguale a UtT\",\"\")","v":""},null,null,0]
["UtTindr","Numero di utenti indiretti sottesi alle utenze condominiali servite dal gestore per il servizio di acquedotto","n.",null,null,"Come da definizioni RQTI",null,null,{"$f":"IF(AND(E3=\"SI\",OR(E84<E83,E84<0)),\"Il valore deve essere maggiore o uguale di UtT_cond\",\"\")","v":""},null,null,{"$f":"IF(I84=\"\",0,1)","v":0}]
["UtTindr,d","       di cui utenze domestiche","n.",{"$nulls":5},{"$f":"IF(OR(E85<>\"\",E86<>\"\"),IF(OR(E85<0,E86<0,E86+E85<>E84),\"Ogni di cui deve essere maggiore o uguale a zero e la somma deve essere pari a UtT_indr\",\"\"),\"\")","v":""},null,null,0]
["UtTindr,nd","       di cui utenze non domestiche","n.",{"$nulls":8},0]
["Utot,ACQ","Numero complessivo di utenti finali serviti dal gestore per il servizio di acquedotto (compresi utenti indiretti)","n.",null,{"$f":"IF((E80-E83+E84)>=0,E80-E83+E84,\"\")","v":0},"Dato utilizzato anche per il calcolo di M3a, G3.2 e di G5.2",{"$nulls":5},0]
["∑UI ","Numero complessivo di utenti finali (compresi utenti indiretti) soggetti ad interruzioni del servizio nell’anno (di durata maggiore o uguale ad 1 ora)","n.",null,null,"Gli utenti interessati dalle interruzioni si contano tante volte quante sono le interruzioni",null,null,{"$f":"IF(E88<0,\"Il valore deve essere maggiore o uguale a zero\",\"\")","v":""},null,null,0]
["∑tI","Durata totale delle interruzioni avvenute nell'anno (di durata maggiore o uguale ad 1 ora)","ore",{"$nulls":5},"",null,null,0]
["∑UI × tI","Sommatoria del prodotto delle durate delle interruzioni annue (di durata maggiore o uguale ad 1 ora), per il rispettivo numero di utenti finali soggetti all'interruzione (compresi utenti indiretti)","ore",null,null,"N.B.: non è il prodotto di ∑UI e ∑tI",null,null,"",null,null,0]
["M2","Interruzioni del servizio","ore",null,{"$f":"IF(AND(E87>0,E90<>\"\",E90>=0),E90/E87,\"\")","v":""},"Vedere RQTI al comma 9.5 ",null,null,{"$f":"IF(AND(E7=\"X\",E91=\"\"),\"Indicatore non calcolabile\",\"\")","v":""},null,null,0]
["M2CL","Interruzioni del servizio - Classe di appartenenza","-",null,{"$f":"IF(E91=\"\",\"\",IF(E91<0.75,\"A\",IF(E91<3,\"B\",IF(E91<10,\"C\",IF(E91<30,\"D\",\"E\")))))","v":""},"Vedere RQTI al comma 9.4, come modificato dall'art. 1 della delibera 637/2023/R/idr",{"$nulls":5},0]
["OB2","Interruzioni del servizio - Obiettivo (M2)","-",null,{"$f":"IF(E92=\"A\",\"Mantenimento\",IF(E92=\"B\",\"-2% di M2\",IF(E92=\"C\",\"-4% di M2\",IF(E92=\"D\",\"-6% di M2\",IF(E92=\"E\",\"-8% di M2\",\"\")))))","v":""},"Vedere RQTI al comma 9.4, come modificato dall'art. 1 della delibera 637/2023/R/idr",{"$nulls":5},0]
["Wmax","Volume massimo derivabile dal sistema delle fonti di approvvigionamento nel giorno di massimo consumo dell'anno ","mc/gg",{"$nulls":8},0]
["Wgg","Volume necessario a soddisfare la domanda nel giorno di massimo consumo dell'anno","mc/gg",{"$nulls":8},0]
["G2.1","Disponibilità di risorse idriche","%",null,null,"Soppresso ai sensi della del. 637/2023/R/idr a decorrere dal 1 gennaio 2024",{"$nulls":5},{"$f":"IF(I96=\"\",0,1)","v":0}]
["G2.1_new","Peso delle interruzioni non programmate sul totale delle interruzioni","%",null,{"$f":"IF(AND(E105=0,E106=0),\"\",E105/(E105+E106))","v":""},"Vedere RQTI al comma 9.8, lettera b) ",{"$nulls":5},{"$f":"IF(I97=\"\",0,1)","v":0}]
[{"$nulls":11},0]
["Indicazione istanze presentate per Standard Specifici",{"$nulls":10},0]
["IstD,Sp","Indicare se è stata formulata istanza per eventi imprevisti e imprevedibili che hanno comportato il mancato rispetto degli standard specifici S1 e/o S2 e/o S3","-",null,null,"Istanza ex-post ai sensi del comma 5.4, del. 917/2017. Specificare motivazioni in relazione",{"$nulls":5},0]
["IstE,Sp","Indicare se è stata formulata istanza per compromessa continuità gestionale a causa del mancato rispetto degli standard specifici S1 e/o S2 e/o S3","-",null,null,"Istanza ex-post ai sensi del comma 5.2, lett. b), del. 917/2017. Specificare motivazioni in relazione",{"$nulls":5},0]
[{"$nulls":11},0]
["Dati relativi agli Standard Specifici",{"$nulls":10},0]
["Inttot,1h","Numero totale delle interruzioni avvenute nell'anno (di durata maggiore o uguale ad 1 ora)","n.",{"$nulls":5},{"$f":"IF(E104<0,\"Il valore deve essere maggiore o uguale a zero\",\"\")","v":""},null,null,0]
["Intnp","di cui numero di interruzioni non programmate","n.",{"$nulls":5},{"$f":"IF(OR(E105<>\"\",E106<>\"\"),IF(OR(E105<0,E106<0,E106+E105<>E104),\"Ogni di cui deve essere maggiore o uguale a zero e la somma deve essere pari a Int_tot,1h\",\"\"),\"\")","v":""},null,null,0]
["Intp","di cui numero di interruzioni programmate","n.",{"$nulls":8},0]
["Intp,S1","di cui numero di interruzioni con mancato rispetto dello standard specifico S1","n.",null,null,"Vedere RQTI al comma 3.2 ",null,null,{"$f":"IF(OR(E107<0,E107>E106),\"Il valore deve essere maggiore o uguale a zero e minore o uguale a Int_p\",\"\")","v":""},null,null,0]
["Intp,S3","Numero di interruzioni con mancato rispetto dello standard specifico S3","n.",null,null,"Vedere RQTI al comma 3.4 ",null,null,{"$f":"IF(E108<0,\"Il valore deve essere maggiore o uguale a zero\",\"\")","v":""},null,null,0]
["Intem","Numero di interruzioni con attivazione del servizio sostitutivo di emergenza ","n.",{"$nulls":5},"",null,null,0]
["Intem,S2","di cui numero di interruzioni con mancato rispetto dello standard specifico S2 ","n.",null,null,"Vedere RQTI al comma 3.3. Nel caso di interruzioni per le quali il servizio di emergenza, anche se dovuto, non è mai stato attivato, queste sono comunque da considerare tra le interruzioni con ritardo rispetto allo standard specifico S2",null,null,"",null,null,0]
["∑US1 ","Sommatoria degli utenti finali (compresi utenti indiretti) con mancato rispetto dello standard specifico S1","n.",null,null,"Gli utenti interessati si contano tante volte quanti sono i mancati rispetti dello standard - includere anche i casi per cui il gestore non è tenuto a corrispondere l'indennizzo (motivare in relazione)",null,null,{"$f":"IF(OR(E111<0,E111<E107),\"Il valore deve essere maggiore o uguale a Int_p,S1\",\"\")","v":""},null,null,0]
["∑US2 ","Sommatoria degli utenti finali (compresi utenti indiretti) con mancato rispetto dello standard specifico S2","n.",null,null,"Gli utenti interessati si contano tante volte quanti sono i mancati rispetti dello standard - includere anche i casi per cui il gestore non è tenuto a corrispondere l'indennizzo (motivare in relazione)",null,null,{"$f":"IF(OR(E112<0,E112<E110),\"Il valore deve essere maggiore o uguale a Int_em,S2\",\"\")","v":""},null,null,0]
["∑US3 ","Sommatoria degli utenti finali (compresi utenti indiretti) con mancato rispetto dello standard specifico S3","n.",null,null,"Gli utenti interessati si contano tante volte quanti sono i mancati rispetti dello standard - includere anche i casi per cui il gestore non è tenuto a corrispondere l'indennizzo (motivare in relazione)",null,null,{"$f":"IF(OR(E113<0,E113<E108),\"Il valore deve essere maggiore o uguale a Int_p,S3\",\"\")","v":""},null,null,0]
[{"$nulls":11},0]
["Valutazione prerequisiti e indicazione istanze presentate per M3",{"$nulls":10},0]
["QA1","Indicare se il gestore si è dotato delle procedure per l'adempimento agli obblighi di verifica della qualità dell'acqua destinata al consumo umano ai sensi del d.lgs. 18/2023 ","-",null,null,"Quesito riferito al 31 dicembre di ogni anno. Il riferimento al decreto d.lgs. 18/2023 si intende sempre \"come successivamente modificato e integrato\"",{"$nulls":5},{"$f":"IF(I116=\"\",0,1)","v":0}]
["QA2","Indicare se il gestore ha effettivamente applicato le procedure di cui al precedente alinea","-",null,null,"Quesito riferito al 31 dicembre di ogni anno",{"$nulls":5},0]
["QA3","Indicare se il gestore ha ottemperato alle disposizioni regionali eventualmente emanate in materia","-",null,null,"Quesito riferito al 31 dicembre di ogni anno",{"$nulls":5},0]
["CACQ-min","Numero minimo di campioni (da controlli interni) che il gestore è tenuto a eseguire nell'anno","n.",null,null,"Da compilare con il valore desumibile dai programmi comunicati in AnTeA. \nLaddove non ancora approvati i nuovi programmi, indicare il valore superiore tra: i) il dato comunicato per nella più recente Raccolta RQTI e ii) il dato desumibile dalla Tab. 1 All. 2 del d.lgs. 18/2023",null,null,{"$f":"IF(AND(E3<>\"SI\",E119<>\"\"),\"Non risulta gestito il servizio di acquedotto\",IF(E119<0,\"Il valore deve essere maggiore o uguale a zero\",\"\"))","v":""},null,null,0]
["Wprod","Volume medio nell'anno di acqua distribuita o prodotta ogni giorno (di cui Tab. 1 All. II d.lgs. 18/2023) nell'anno","mc/gg",null,null,"Vedere Nota 2 Tab. 1 All.2 d.lgs. 18/2023",null,null,{"$f":"IF(AND(E3<>\"SI\",E120<>\"\"),\"Non risulta gestito il servizio di acquedotto\", IF(E120<0,\"Il valore deve essere maggiore o uguale a zero\",\"\"))","v":""},null,null,0]
["CACQ-real","Numero campioni (da controlli interni) che il gestore ha eseguito nell'anno ","n.",null,null,"Inclusi anche i controlli a monte della distribuzione",null,null,{"$f":"IF(AND(E3<>\"SI\",E121<>0),\"Non risulta gestito il servizio di acquedotto\", IF(E121<0,\"Il valore deve essere maggiore o uguale a zero\",\"\"))","v":""},null,null,0]
["QA4","Il gestore ha eseguito il numero minimo annuale di controlli interni?","-",null,{"$f":"IF(AND(E119=\"\",E121=0),\"\",IF(AND(E121>=E119,E119>=0,E121>=0,E119<>\"\",E121<>\"\"),\"SI\",\"NO\"))","v":""},{"$nulls":6},0]
["Preq2","Il prerequisito sulla conformità alla normativa sulla qualità dell'acqua distribuita agli utenti è stato conseguito (prerequisito Preq2)?","-",null,{"$f":"IF(E3<>\"SI\",\"\",IF(AND(E116=\"\",E117=\"\",E118=\"\",E122=\"\"),\"\",IF(AND(E116=\"X\",E117=\"X\",E118=\"X\",E122=\"SI\"),\"SI\",\"NO\")))","v":""},"Vedere RQTI, Art.21 (N.B.: la valutazione del conseguimento del Preq2 va fatta anche per i soggetti che non gestiscono l'attività di distribuzione)",null,null,{"$f":"IF(AND(E$3=\"SI\",OR(E123=\"NO\",E123=\"\")),\"Attenzione, prerequisito mancante\",\"\")","v":""},null,null,0]
["Preq4M3","Indicare l'esito della validazione ai fini della valutazione della disponibilità e affidabilità dei dati per M3 (prerequisito Preq4) ","-",null,null,"Indicare la presenza o meno del prerequisito Preq4 (Art.23 RQTI) ",null,null,{"$f":"IF(AND(E$3=\"SI\",OR(E124=\"Non adeguato\",E124=\"\")),\"Attenzione, prerequisito mancante\",\"\")","v":""},null,null,0]
["IstD,M3","Indicare se è stata formulata istanza per eventi imprevisti e imprevedibili che hanno comportato il mancato rispetto degli obiettivi per M3","-",null,null,"Istanza ex-post ai sensi del comma 5.4, del. 917/2017. Specificare motivazioni in relazione. ",{"$nulls":5},0]
[{"$nulls":11},0]
["Calcolo del macro-indicatore M3",{"$nulls":10},0]
["Totord","Numero di ordinanze di non potabilità avvenute nell'anno","n.",{"$nulls":5},{"$f":"IF(E128<0,\"Il valore deve essere maggiore o uguale a zero\",\"\")","v":""},null,null,0]
["∑Ui","Numero complessivo di utenti finali interessati da ordinanze di non potabilità nell'anno (compresi utenti indiretti)","n.",null,null,"Gli utenti interessati dalle ordinanze si contano tante volte quante sono le ordinanze",null,null,"",null,null,0]
["∑ti","Durata totale delle ordinanze di non potabilità avvenute nell'anno","gg",{"$nulls":5},"",null,null,0]
["∑(Ui*ti)","Sommatoria del prodotto del numero di utenze soggette all'i-esima ordinanza di non potabilità (compresi utenti indiretti) per la durata della medesima ordinanza di non potabilità","gg",null,null,"N.B.: non è il prodotto di ∑Ui e ∑ti",null,null,{"$f":"IF(E7=\"X\",IF(OR(E131<0,E131=\"\"),\"Il valore deve essere maggiore o uguale a zero \",\"\"),IF(E131<>0,\"Non risulta gestita la distribuzione\",\"\"))","v":""},null,null,0]
["M3a","Incidenza ordinanze di non potabilità","%",null,{"$f":"IF(AND(E87>0,E131>=0,E131<>\"\"),E131/(E87*365),\"\")","v":""},"Vedere RQTI al comma 11.2 ",null,null,{"$f":"IF(AND(E7=\"X\",E132=\"\"),\"Indicatore non calcolabile\",\"\")","v":""},null,null,0]
[" CACQ-tot","Numero campioni (da controlli interni) effettuati in distribuzione a valle di eventuali impianti di potabilizzazione","n.",null,null,"Il prelievo di una o più porzioni di acqua, in un determinato punto di campionamento, in una certa data, è da considerarsi come unico campione indipendentemente dal numero di rapporti di prova registrati ovvero dal numero di contenitori (prelievi) utilizzati secondo le metodiche di campionamento",null,null,{"$f":"IF(AND(E7=\"X\",OR(E133<=0,E133>E121)),\"Il valore deve essere maggiore di zero e minore o uguale a C_ACQ-real\",\"\")","v":""},null,null,0]
["CACQ-cnc","Numero campioni (da controlli interni) effettuati in distribuzione a valle di eventuali impianti di potabilizzazione, con superamento dei limiti del d.lgs 18/2023 ","n.",{"$nulls":5},{"$f":"IF(AND(E7=\"X\",OR(E134<0,E134>E133,E134=\"\")),\"Il valore deve essere maggiore o uguale a zero e minore o uguale a C_ACQ-tot\",\"\")","v":""},null,null,0]
["CACQ-cnc-A/B","di cui campioni con superamento dei limiti della Parte A e/o B dell'All. 1 del d.lgs. 18/2023","n.",null,null,"Inclusi campioni con superamento dei limiti anche delle Parti C e/o D",null,null,{"$f":"IF(OR(E135<>\"\",E136<>\"\"),IF(OR(E135<0,E136<0,E136+E135<>E134),\"Ogni di cui deve essere maggiore o uguale a zero e la somma deve essere pari a  C_ACQ-cnc\",\"\"),\"\")","v":""},null,null,0]
["CACQ-cnc-C","di cui campioni con superamento dei limiti della Parte C e/o D dell'All. 1 del d.lgs. 18/2023","n.",null,null,"Esclusi campioni con superamento dei limiti anche delle Parti A e/o B",{"$nulls":5},0]
["M3b","Tasso di campioni da controlli interni non conformi","%",null,{"$f":"IF(AND(E133>0,E134>=0,E134<>\"\",E134<=E133),E134/E133,\"\")","v":""},"Vedere RQTI al comma 12.2 ",null,null,{"$f":"IF(AND(E7=\"X\",E137=\"\"),\"Indicatore non calcolabile\",\"\")","v":""},null,null,0]
[" PACQ-tot","Numero parametri analizzati nei campioni (da controlli interni) effettuati in distribuzione a valle di eventuali impianti di potabilizzazione","n.",{"$nulls":5},{"$f":"IF(E7=\"X\",IF(OR(E138<=0,E138<E133),\"Il valore deve essere maggiore di zero e maggiore o uguale a C_ACQ-tot\",\"\"),IF(E138<>\"\",\"Non risulta gestita la distribuzione\",\"\"))","v":""},null,null,0]
["PACQ-pnc","Numero parametri con superamento dei limiti del d.lgs 18/2023 nei campioni (da controlli interni) effettuati in distribuzione a valle di eventuali impianti di potabilizzazione ","n.",{"$nulls":5},{"$f":"IF(AND(E7=\"X\",OR(E139<0,E139>E138,E139=\"\",E139<E134)),\"Il valore deve essere maggiore o uguale a zero, maggiore o uguale a C_ACQ-cnc e minore o uguale a P_ACQ-tot\",\"\")","v":""},null,null,0]
["PACQ-pnc-A","di cui parametri non conformi alla Parte A dell'All. 1 del d.lgs. 18/2023","n.",{"$nulls":5},{"$f":"IF(OR(E140<>\"\",E141<>\"\",E142<>\"\",E143<>\"\"),IF(OR(E140<0,E141<0,E142<0,E143<0,E140+E141+E142+E143<>E139),\"Ogni di cui deve essere maggiore o uguale a zero e la somma deve essere pari a  P_ACQ-pnc\",\"\"),\"\")","v":""},null,null,0]
["PACQ-pnc-B","di cui parametri non conformi alla Parte B dell'All. 1 del d.lgs. 18/2023","n.",{"$nulls":8},0]
["PACQ-pnc-C","di cui parametri non conformi alla Parte C dell'All. 1 del d.lgs. 18/2023","n.",{"$nulls":8},0]
["PACQ-pnc-D","di cui parametri non conformi alla Parte D dell'All. 1 del d.lgs. 18/2023","n.",{"$nulls":8},{"$f":"IF(I143=\"\",0,1)","v":0}]
["M3c","Tasso di parametri da controlli interni non conformi","%",null,{"$f":"IF(AND(E138>0,E139>=0,E139<>\"\",E139<=E138),E139/E138,\"\")","v":""},"Vedere RQTI al comma 13.2 ",null,null,{"$f":"IF(AND(E7=\"X\",E144=\"\"),\"Indicatore non calcolabile\",\"\")","v":""},null,null,0]
["M3CL","Qualità dell'acqua erogata - Classe di appartenenza","-",null,{"$f":"IF(E132=\"\",\"\",IF(AND(E132=\"\",E137=\"\",E144=\"\"),\"\",IF(E132>(0.005/100),\"E\",IF(AND(E132<=(0.005/100),E137>(5/100)),\"D\",IF(AND(E132<=(0.005/100),E137>(1/100)),\"C\",IF(AND(E132<=(0.001/100),E137<=(1/100),E144<=(0.04/100)),\"A\",IF(AND(E132<=(0.005/100),E137<=(1/100)),\"B\",\"B\")))))))","v":""},"Vedere RQTI al comma 10.3, come modificato dall'art. 1 della delibera 637/2023/R/idr",{"$nulls":5},0]
["OB3","Qualità dell'acqua erogata - Obiettivo","-",null,{"$f":"IF(E145=\"A\",\"Mantenimento\",IF(E145=\"B\",\"-4% di M3b\",IF(E145=\"C\",\"-6% di M3b\",IF(E145=\"D\",\"-8% di M3b\",IF(E145=\"E\",\"-10% di M3b\",\"\")))))","v":""},"Vedere RQTI al comma 10.3, come modificato dall'art. 1 della delibera 637/2023/R/idr",{"$nulls":5},0]
["G3.1","Numero campioni (da controlli interni) effettuati in distribuzione a valle di eventuali impianti di potabilizzazione su volumi erogati ","n./1000 mc",null,{"$f":"IF(AND(E40>0,E133>0),E133/E40*1000,\"\")","v":""},"Vedere RQTI al comma 10.4 ",{"$nulls":5},0]
["WSP","Adozione del modello Water Safety Plan (WSP)","-",null,null,"Ai sensi del comma 10.5 della RQTI, selezionare \"x\" se il gestore ha adottato, anche in modo parziale e/o solo su una porzione limitata del territorio servito, il modello Water Safety Plan, inoltrando la richiesta di approvazione al CeNSiA entro la data del 31 dicembre dell’anno a.",{"$nulls":5},0]
["UWSP_real","Numero di utenti serviti da sistemi di fornitura per i quali è stato realizzato il modello Water Safety Plan (WSP - compresi utenti indiretti)","n.",null,null,"Vedere RQTI al comma 10.5 ",null,null,{"$f":"IF(AND(E149<>\"\",OR(E149>E87,E149<0)),\"Il valore deve essere maggiore o uguale a zero e inferiore o uguale a U_tot,ACQ\",\"\")","v":""},null,null,0]
["G3.2","Applicazione del modello Water Safety Plan (WSP)","%",null,{"$f":"IF(AND(E87>0,E149<=E87,E149>=0),E149/E87,\"\")","v":""},"Vedere  RQTI al comma 10.5",{"$nulls":5},0]
[]
[]
[null,"Adeguato"]
[null,"Non adeguato"]
[null,"SI"]
[null,"NO"]
[]
[]
[null,"X"]

{"sheet":"QT-Fognatura","index":2,"n_rows":56,"n_cols":12,"rows_kept":56}
[null,"Dati per l'applicazione dei meccanismi di \nincentivazione RQTI (premi e penalità)\nTutti i valori imputati sono intesi essere valori \nconsuntivi ",{"$nulls":9},"Errori compilazione colonna \"Valore Anno 2025\""]
["Notazione dato ","Descrizione dato","UdM",null,"Valore Anno 2025","Note compilazione",null,null,"Errore rilevato in colonna \"Valore Anno 2025\"",null,null,{"$f":"SUM(L3:L48)","v":0}]
["FOG","Il gestore gestisce il servizio di fognatura?\nSe sì, specificare:","-",null,null,"Al fine del calcolo dei macro-indicatori è necessario indicare se il servizio è gestito",{"$nulls":5},{"$f":"IF(I3=\"\",0,1)","v":0}]
["FOG_m","- fognatura mista","-",{"$nulls":8},0]
["FOG_n","- fognatura nera","-",{"$nulls":8},0]
["FOG_b","- fognatura bianca","-",null,null,"Se soggetta a regolazione tariffaria",{"$nulls":5},0]
["PRF","Popolazione residente servita (PRF)","ab.",{"$nulls":5},{"$f":"IF(E$3=\"SI\",IF(E7<=0,\"Il valore deve essere maggiore di zero\",\"\"),IF(E7<>0,\"Non risulta gestito il servizio di fognatura\",\"\"))","v":""},null,null,0]
["PFF","Popolazione fluttuante (PFF)","ab.",{"$nulls":5},{"$f":"IF(E8<0,\"Il valore deve essere maggiore o uguale a zero\",\"\")","v":""},null,null,0]
["ComF","Numero di comuni serviti (ComF)","n. ",{"$nulls":5},{"$f":"IF(E$3=\"SI\",IF(E9<=0,\"Il valore deve essere maggiore di zero\",\"\"),IF(E9<>0,\"Non risulta gestito il servizio di fognatura\",\"\"))","v":""},null,null,0]
["SUF","Superficie  (SUF)","kmq",{"$nulls":5},{"$f":"IF(E$3=\"SI\",IF(E10<=0,\"Il valore deve essere maggiore di zero\",\"\"),IF(E10<>0,\"Non risulta gestito il servizio di fognatura\",\"\"))","v":""},null,null,0]
["EEFOG","Consumo di energia elettrica per servizio di fognatura, al netto dell'energia autoprodotta","kWh",null,null,"Il dato include la quota parte relativa ai servizi comuni",null,null,{"$f":"IF(E11<0,\"Il valore deve essere maggiore o uguale a zero\",\"\")","v":""},null,null,0]
[{"$nulls":11},0]
["Valutazione prerequisiti e indicazione istanze presentate per M4",{"$nulls":10},0]
["Aggcond,FOG","Numero agglomerati oggetto di condanna per il servizio di fognatura (causa C-565/10, C-85/13, C-668/19 e successive)","n.",{"$nulls":5},{"$f":"IF(E3=\"SI\",IF(OR(E14<0,E14=\"\"),\"Il valore deve essere maggiore o uguale a zero\",\"\"),IF(E14<>0,\"Non risulta gestito il servizio di fognatura\",\"\"))","v":""},null,null,0]
["AEcond,FOG","Abitanti Equivalenti complessivi degli agglomerati oggetto di condanna per il servizio di fognatura (causa C-565/10, C-85/13, C-668/19 e successive)","A.E.",{"$nulls":5},{"$f":"IF(E3=\"SI\",IF(OR(E15<0,E15=\"\"),\"Il valore deve essere maggiore o uguale a zero\",\"\"),IF(E15<>0,\"Non risulta gestito il servizio di fognatura\",\"\"))","v":""},null,null,0]
["Preq3M4","Relativamente al servizio di fognatura, il prerequisito sulla conformità alla normativa sulla gestione delle acque reflue è stato conseguito (prerequisito Preq3)?","-",null,{"$f":"IF(E3=\"SI\",IF(OR(E14>0,E15>0,AND(E14=\"\",E15=\"\")),\"NO\",\"SI\"),\"\")","v":""},"Vedere RQTI, Art.22",null,null,{"$f":"IF(AND(E$3=\"SI\",E16=\"NO\"),\"Attenzione, prerequisito mancante\",\"\")","v":""},null,null,0]
["Preq4M4","Indicare l'esito della validazione ai fini della valutazione della disponibilità e affidabilità dei dati  per M4 (prerequisito Preq4)","-",null,null,"Indicare la presenza o meno del prerequisito Preq4 (Art.23 RQTI)",null,null,{"$f":"IF(AND(E$3=\"SI\",OR(E17=\"Non adeguato\",E17=\"\")),\"Attenzione, prerequisito mancante\",\"\")","v":""},null,null,0]
["IstD,M4","Indicare se è stata formulata istanza per eventi imprevisti e imprevedibili che hanno comportato il mancato rispetto degli obiettivi per M4","-",null,null,"Istanza ex-post ai sensi del comma 5.4, del. 917/2017. Specificare motivazioni in relazione. ",{"$nulls":5},0]
[{"$nulls":11},0]
["Calcolo del macro-indicatore M4",{"$nulls":10},0]
["Lm","Lunghezza totale della rete di fognatura mista (esclusi gli allacci)","km",{"$nulls":5},{"$f":"IF(E21<0,\"Il valore deve essere maggiore o uguale a zero\",\"\")","v":""},null,null,0]
["Lb","Lunghezza totale della rete di fognatura bianca (esclusi gli allacci)","km",null,null,"Da considerare laddove ricompresa nel SII ai fini della determinazione dei corrispettivi ",null,null,"",null,null,0]
["Ln","Lunghezza totale della rete di fognatura nera (esclusi gli allacci)","km",{"$nulls":5},"",null,null,0]
["Lf","Lunghezza totale della rete fognaria principale (esclusi gli allacci)","km",null,{"$f":"E21+E22+E23","v":0},{"$nulls":3},{"$f":"IF(AND(E3=\"SI\",E24<=0),\"La lunghezza della rete fognaria principale deve essere maggiore di zero\",\"\")","v":""},null,null,0]
["Allm","Numero di episodi di allagamento da fognatura mista che  hanno determinato situazioni di disagio o di pericolo","n.",{"$nulls":5},{"$f":"IF(E25<0,\"Il valore deve essere maggiore o uguale a zero\",\"\")","v":""},null,null,0]
["Allb","Numero di episodi di allagamento da fognatura bianca che hanno determinato situazioni di disagio o di pericolo","n.",{"$nulls":5},"",null,null,0]
["Sversn","Numero di episodi di sversamento da fognatura nera","n.",{"$nulls":5},"",null,null,0]
["M4a","Frequenza allagamenti e/o sversamenti da fognatura","n./100 km",null,{"$f":"IF(AND(E24>0,OR(E25<>\"\",E26<>\"\",E27<>\"\"),E25>=0,E26>=0,E27>=0,E21>=0,E22>=0,E23>=0),(E25+E26+E27)/(E21+E22+E23)*100,\"\")","v":""},"Vedere RQTI al comma 15.2",null,null,{"$f":"IF(AND(E3=\"SI\",E28=\"\"),\"Indicatore non calcolabile\",\"\")","v":""},null,null,0]
["NScartot","Numero totale di scaricatori di piena gestiti ","n.",{"$nulls":5},{"$f":"IF(AND(E21>0,E29=\"\"),\"Attenzione, il valore dovrebbe essere maggiore di zero\",IF(E29<0,\"Il valore deve essere maggiore o uguale a zero\",\"\"))","v":""},null,null,0]
["Nscarnorm","Numero di scaricatori di piena conformi alla normativa vigente o, in assenza di normativa locale, conformi alla condizione di cui al comma 16.1 lett. b) della RQTI","n.",null,null,"Vedere RQTI al comma 16.1, come modificato dall'art. 1 della delibera 637/2023/R/idr",null,null,{"$f":"IF(OR(E30<0,E30>E29),\"Il valore deve essere maggiore o uguale a zero e minore o uguale a Nscar_tot\",\"\")","v":""},null,null,0]
["Nscarrich","Numero di scaricatori di piena richiesti dall'Autorità competente e non ancora realizzati","n.",{"$nulls":5},{"$f":"IF(E31<0,\"Il valore deve essere maggiore o uguale a zero\",\"\")","v":""},null,null,0]
["M4b","Adeguatezza normativa degli scaricatori di piena (% non adeguati)","%",null,{"$f":"IF(E29=\"\",\"\",IF(E29<=0,\"\",IF(AND(E29>0,E29>=E30,E30>=0),(E29-E30)/E29,\"\")))","v":""},"Vedere RQTI al comma 16.2",null,null,{"$f":"IF(AND(E3=\"SI\",E32=\"\"),\"Indicatore non calcolabile\",\"\")","v":""},null,null,0]
["Nscarctrl","Numero di scaricatori soggetti ad ispezione e/o dotati di sistemi di rilevamento automatico delle attivazioni","n.",null,null,"Sono da contare 1 sola volta gli scaricatori con sistemi di rilevamento ed anche soggetti a ispezione (di conseguenza, non è la somma di Nscarisp ed Nscarril)",null,null,{"$f":"IF(OR(E33<0,E33>E29),\"Il valore deve essere maggiore o uguale a zero e minore o uguale a Nscar_tot\",\"\")","v":""},null,null,0]
["Nscarisp","Numero di scaricatori soggetti ad ispezione nell'anno","n.",null,null,"Uno scaricatore soggetto a più ispezioni nell'anno va conteggiato una sola volta",null,null,{"$f":"IF(OR(E34<0,E34>E33),\"Il valore deve essere maggiore o uguale a zero e minore o uguale a Nscar_ctrl\",\"\")","v":""},null,null,0]
["Nscarril","Numero di scaricatori dotati di  sistemi di rilevamento automatico delle attivazioni","n.",{"$nulls":5},{"$f":"IF(OR(E35<0,E35>E33),\"Il valore deve essere maggiore o uguale a zero e minore o uguale a Nscar_ctrl\",\"\")","v":""},null,null,0]
["M4c","Controllo degli scaricatori di piena (% non controllati)","%",null,{"$f":"IF(OR(E29<=0,E29=\"\"),\"\",IF(AND(E29>0,E29>=E33,E33>=0),(E29-E33)/E29,1))","v":""},"Vedere  RQTI al comma 17.2",null,null,{"$f":"IF(AND(E3=\"SI\",E36=\"\"),\"Indicatore non calcolabile\",\"\")","v":""},null,null,0]
["M4CL","Adeguatezza del sistema fognario - Classe di appartenenza","-",null,{"$f":"IF(E28=\"\",\"\",IF(AND(E28=\"\",E32=\"\",E36=\"\"),\"\",IF(E28>=5,\"E\",IF(AND(E28<1,E32=0,E36<=0.1),\"A\",IF(AND(E28<5,E32=0),\"B\",IF(AND(E28<5,E32<=0.2),\"C\",IF(AND(E28<5,E32>0.2,E32<>\"\"),\"D\",IF(AND(E28<1,E32=\"\"),\"A\",IF(AND(E28<5,E32=\"\"),\"B\",\"\")))))))))","v":""},"Vedere RQTI al comma 14.3, come modificato dall'art. 1 della delibera 637/2023/R/idr",{"$nulls":5},0]
["OB4","Adeguatezza del sistema fognario - Obiettivo","-",null,{"$f":"IF(E37=\"E\",\"-10% di M4a\",IF(E37=\"D\",\"-10% di M4b\",IF(E37=\"C\",\"-7% di M4b\",IF(E37=\"B\",\"-5% di M4c\",IF(E37=\"A\",\"Mantenimento\",\"\")))))","v":""},{"$nulls":6},0]
["BreakFOG","Numero totale di rotture annue delle condotte di fognatura","n.",null,null,"Esclusi gli allacci",null,null,{"$f":"IF(AND(E3=\"SI\",OR(E39<0,E39=\"\")),\"Il valore deve essere maggiore o uguale a zero\",\"\")","v":""},null,null,0]
["Lm-isp","Lunghezza totale della rete di fognatura mista (esclusi gli allacci) soggetta a ispezione","km",{"$nulls":5},{"$f":"IF(OR(E40<0,E40>E21),\"Il valore deve essere maggiore o uguale a zero e minore o uguale a Lm\",\"\")","v":""},null,null,0]
["Lm-visp","di cui soggetta a videoispezione","km",{"$nulls":5},{"$f":"IF(OR(E41<0,E41>E40),\"Il valore deve essere maggiore o uguale a zero e minore o uguale a L_m-isp\",\"\")","v":""},null,null,0]
["Lb-isp","Lunghezza totale della rete di fognatura bianca (esclusi gli allacci) soggetta a ispezione ","km",{"$nulls":5},{"$f":"IF(OR(E42<0,E42>E22),\"Il valore deve essere maggiore o uguale a zero e minore o uguale a Lb\",\"\")","v":""},null,null,0]
["Lb-visp","di cui soggetta a videoispezione","km",{"$nulls":5},{"$f":"IF(OR(E43<0,E43>E42),\"Il valore deve essere maggiore o uguale a zero e minore o uguale a L_b-isp\",\"\")","v":""},null,null,0]
["Ln-isp","Lunghezza totale della rete di fognatura nera (esclusi gli allacci) soggetta a ispezione ","km",{"$nulls":5},{"$f":"IF(OR(E44<0,E44>E23),\"Il valore deve essere maggiore o uguale a zero e minore o uguale a Ln\",\"\")","v":""},null,null,0]
["Ln-visp","di cui soggetta a videoispezione","km",{"$nulls":5},{"$f":"IF(OR(E45<0,E45>E44),\"Il valore deve essere maggiore o uguale a zero e minore o uguale a L_n-isp\",\"\")","v":""},null,null,0]
["Lfisp","Lunghezza totale della rete fognaria principale (esclusi gli allacci) soggetta ad ispezione","km",null,{"$f":"E40+E42+E44","v":{"v":0,"d":"0.00"}},{"$nulls":6},0]
["G4.1","Rotture annue di fognatura per chilometro di rete ispezionata","n./100 km",null,{"$f":"IF(AND(E46>0,E39>=0,E39<>\"\"),(E39/E46)*100,\"\")","v":""},"Vedere RQTI al comma 14.4",{"$nulls":5},{"$f":"IF(I47=\"\",0,1)","v":0}]
["QF1","Scaricatori di piena rispetto alla superficie servita da rete fognaria","n./kmq",null,{"$f":"IF(E29=0,0,E29/E10)","v":{"v":0,"d":"0.000"}},"Vedere RQTI al comma 14.6, come modificato dall'art. 1 della delibera 637/2023/R/idr",{"$nulls":5},0]
[]
[]
[null,"Adeguato"]
[null,"Non adeguato"]
[]
[null,"X"]
[null,"SI"]
[null,"NO"]

{"sheet":"QT-Depurazione","index":3,"n_rows":158,"n_cols":12,"rows_kept":158,"merged":[[8,7,9,7],[8,8,9,8],[22,7,23,7],[22,8,23,8],[24,7,28,7],[24,8,28,8],[41,7,42,7],[41,8,42,8],[59,7,63,7],[59,8,63,8],[65,7,68,7],[65,8,68,8],[73,7,75,7],[73,8,75,8],[111,7,117,7],[111,8,119,8]]}
[null,"Dati per l'applicazione dei meccanismi di \nincentivazione RQTI (premi e penalità)\nTutti i valori imputati sono intesi essere valori \nconsuntivi ",{"$nulls":9},"Errori compilazione colonna \"Valore Anno 2025\""]
["Notazione dato ","Descrizione dato","UdM",null,"Valore Anno 2025","Note compilazione",null,null,"Errore rilevato in colonna \"Valore Anno 2025\"",null,null,{"$f":"SUM(L3:L144)","v":0}]
["DEP","Il gestore gestisce il servizio di depurazione?","-",null,null,"Al fine del calcolo dei macro-indicatori è necessario indicare se il servizio è gestito",{"$nulls":5},{"$f":"IF(I3=\"\",0,1)","v":0}]
["PRD","Popolazione residente servita","ab.",{"$nulls":5},{"$f":"IF(E$3=\"SI\",IF(E4<=0,\"Il valore deve essere maggiore di zero\",\"\"),IF(E4<>0,\"Non risulta gestito il servizio di depurazione\",\"\"))","v":""},null,null,0]
["PFD","Popolazione fluttuante","ab.",{"$nulls":5},{"$f":"IF(E5<0,\"Il valore deve essere maggiore o uguale a zero\",\"\")","v":""},null,null,0]
["ComD","Numero di comuni serviti (ComD)","n. ",{"$nulls":5},{"$f":"IF(E3=\"SI\",IF(E6<=0,\"Il valore deve essere maggiore di zero\",\"\"),IF(E6<>0,\"Non risulta gestito il servizio di depurazione\",\"\"))","v":""},null,null,0]
["SUD","Superficie  (SUD)","kmq",{"$nulls":5},{"$f":"IF(E3=\"SI\",IF(E7<=0,\"Il valore deve essere maggiore di zero\",\"\"),IF(E7<>0,\"Non risulta gestito il servizio di depurazione\",\"\"))","v":""},null,null,0]
["Cardep","Totale carico inquinante collettato in rete fognaria e depurato in impianti di trattamento di acque reflue urbane incluse vasche Imhoff ","A.E.",{"$nulls":5},{"$f":"IF(AND('QT-Depurazione'!E3=\"SI\",E8<=0),\"Il valore deve essere maggiore di zero\",\"\")","v":""},null,null,0]
["Cardep,dnd","di cui di origine domestica o assimilabile","A.E.",null,null,"Come da definizioni TICSI",null,null,{"$f":"IF(OR(E9<>\"\",E10<>\"\"),IF(OR(E9<0,E10<0,E10+E9<>E8),\"Ogni di cui deve essere maggiore o uguale a zero e la somma deve essere pari a Car_dep\",\"\"),\"\")","v":""},null,null,0]
["Cardep,ind","di cui origine industriale","A.E.",null,null,"Come da definizioni TICSI",{"$nulls":5},0]
["EEDEP","Consumo di energia elettrica per servizio di depurazione, al netto dell'energia autoprodotta","kWh",null,null,"Il dato include la quota parte relativa ai servizi comuni",null,null,{"$f":"IF(E11<0,\"Il valore deve essere maggiore o uguale a zero\",\"\")","v":""},null,null,0]
["EEDEP,ess","di cui per sezione di essiccamento fanghi","kWh",null,null,"(Dato facoltativo) ",null,null,{"$f":"IF(OR(E12<0,E12>E11),\"Il valore deve essere maggiore o uguale a zero e minore di EE_DEP\",\"\")","v":""},null,null,0]
[{"$nulls":11},0]
["Valutazione prerequisiti e indicazione istanze presentate per M5",{"$nulls":10},0]
["Aggcond,DEP","Numero agglomerati oggetto di condanna per il servizio di depurazione (causa C-565/10, C-85/13, C-668/19 e successive)","n.",null,null,"Quesito riferito al 31 dicembre di ogni anno (a-1), ai sensi dell'Art. 22 della RQTI",null,null,{"$f":"IF(E3=\"SI\",IF(OR(E15<0,E15=\"\",E15>E36),\"Il valore deve essere maggiore o uguale a zero e minore o oguale ad Agg_tot\",\"\"),IF(E15<>0,\"Non risulta gestito il servizio di depurazione\",\"\"))","v":""},null,null,0]
["AEcond,DEP","Abitanti Equivalenti complessivi degli agglomerati oggetto di condanna per il servizio di depurazione (causa C-565/10, C-85/13, C-668/19 e successive)","A.E.",null,null,"Quesito riferito al 31 dicembre di ogni anno (a-1), ai sensi dell'Art. 22 della RQTI",null,null,{"$f":"IF(E3=\"SI\",IF(OR(E16<0,E16=\"\"),\"Il valore deve essere maggiore o uguale a zero\",\"\"),IF(E16<>0,\"Non risulta gestito il servizio di depurazione\",\"\"))","v":""},null,null,0]
["Preq3M5","Relativamente al servizio di depurazione, il prerequisito sulla conformità alla normativa sulla gestione delle acque reflue è stato conseguito (prerequisito Preq3)?","-",null,{"$f":"IF(E3=\"SI\",IF(OR(E15>0,E16>0,AND(E15=\"\",E16=\"\")),\"NO\",\"SI\"),\"\")","v":""},"Vedere RQTI, Art.22 ",null,null,{"$f":"IF(AND(E3=\"SI\",E17=\"NO\"),\"Attenzione, prerequisito mancante\",\"\")","v":""},null,null,0]
["Preq4M5","Indicare l'esito della validazione ai fini della valutazione della disponibilità e affidabilità dei dati per M5 (prerequisito Preq4)","-",null,null,"Indicare la presenza o meno del prerequisito Preq4 (Art.23 RQTI) ",null,null,{"$f":"IF(AND(E3=\"SI\",OR(E18=\"Non adeguato\",E18=\"\")),\"Attenzione, prerequisito mancante\",\"\")","v":""},null,null,0]
["IstD,M5","Indicare se è stata formulata istanza per eventi imprevisti e imprevedibili che hanno comportato il mancato rispetto degli obiettivi per M5","-",null,null,"Istanza ex-post ai sensi del comma 5.4, del. 917/2017. Specificare motivazioni in relazione. ",{"$nulls":5},0]
[{"$nulls":11},0]
["Calcolo del macro-indicatore M5",{"$nulls":10},0]
["∑SSout,imp","Quantità complessiva di fanghi di depurazione in uscita dagli impianti (in termini di sostanza secca)","t SS",null,null,"Espressa in tonnelate di sostanza secca. Si specifica che, ai fini del calcolo di M5, sono da considerare tutti gli impianti di depurazione presenti nel territorio di competenza del gestore. Non sono da considerare gli scambi interni al perimetro del gestore",null,null,{"$f":"IF(E3=\"SI\",IF(OR(E22<=0,E22=\"\"),\"Il valore deve essere maggiore di zero\",\"\"),IF(E22<>0,\"Non risulta gestito il servizio di depurazione\",\"\"))","v":""},null,null,0]
["∑SSdisc,imp","di cui quantità complessiva di fanghi di depurazione destinati allo smaltimento finale in discarica","t SS",null,null,"Lo  smaltimento in discarica si riferisce al destino finale dei fanghi, a valle di eventuali trattamenti biologici e/o fisico-chimici",null,null,{"$f":"IF(OR(E23<>\"\",E24<>\"\"),IF(OR(E23<0,E24<0,E24+E23<>E22),\"Ogni di cui deve essere maggiore o uguale a zero e la somma deve essere pari a ∑SS_out,imp\",\"\"),\"\")","v":""},null,null,0]
["∑SSrec,imp","di cui quantità complessiva di fanghi di depurazione destinati al riutilizzo/recupero","t SS",{"$nulls":8},0]
["∑SSrec,imp-a","di cui spandimento diretto in agricoltura","t SS",{"$nulls":5},{"$f":"IF(OR(E25<>\"\",E26<>\"\",E27<>\"\",E28<>\"\",E29<>\"\"),IF(OR(E25<0,E26<0,E27<0,E28<0,E29<0,E29+E27+E28+E26+E25<>E24),\"Ogni di cui deve essere maggiore o uguale a zero e la somma deve essere pari a ∑SSrec,imp\",\"\"),\"\")","v":""},null,null,0]
["∑SSrec,imp-c","di cui per produzione di compost","t SS",{"$nulls":8},0]
["∑SSrec,imp-t","di cui in termovalorizzatori","t SS",{"$nulls":8},0]
["∑SSrec,imp-td","di cui mono-incenerito in impianti dedicati del medesimo soggetto","t SS",null,null,"Impianti dedicati al solo incenerimento dei fanghi di depurazione",{"$nulls":5},0]
["∑SSrec,imp-al","di cui altro","t SS",null,null,"Fornire dettagli in relazione",{"$nulls":5},0]
["∑MFtq,out,imp","Quantità complessiva di fanghi di depurazione tal quali in uscita dagli impianti ","t",{"$nulls":5},{"$f":"IF(E3=\"SI\",IF(OR(E30=\"\",E30<=0,E30<E22),\"Il valore deve essere maggiore di ∑SS_out,imp\",\"\"),IF(E30<>0,\"Non risulta gestito il servizio di depurazione\",\"\"))","v":""},null,null,0]
["∑MFtq,disc,imp","Quantità complessiva di fanghi di depurazione tal quali destinati allo smaltimento finale in discarica","t",null,null,"Lo  smaltimento in discarica si riferisce al destino finale dei fanghi, a valle di eventuali trattamenti biologici e/o fisico-chimici",null,null,{"$f":"IF(AND(E23>0,E31=0),\"∑MFtq,disc,imp non può essere zero\",IF(OR(E31<0,E31>E30),\"Il valore deve essere maggiore o uguale a zero e minore o uguale di ∑MFtq,out,imp\",\"\"))","v":""},null,null,0]
["%SStot","Percentuale di sostanza secca mediamente contenuta nel quantitativo di fanghi complessivamente prodotto","%",null,{"$f":"IF(AND(E22>0,E30>0,E22<=E30),E22/E30,\"\")","v":""},{"$nulls":3},{"$f":"IF(AND(E3=\"SI\",E32=\"\"),\"Indicatore non calcolabile\",\"\")","v":""},null,null,0]
["M5","Smaltimento fanghi in discarica","%",null,{"$f":"IF(AND(E22>0,E23>=0,E23<>\"\",E23<=E22),E23/E22,\"\")","v":""},"Vedere RQTI al comma 18.4 ",null,null,{"$f":"IF(AND(E3=\"SI\",E33=\"\"),\"Macro-indicatore non calcolabile\",\"\")","v":""},null,null,{"$f":"IF(I33=\"\",0,1)","v":0}]
["M5CL","Smaltimento fanghi in discarica - Classe di appartenenza","-",null,{"$f":"IF(E33=\"\",\"\",IF(E33>0.3,\"E\",IF(AND(E33>0.2,E33<=0.3),\"D\",IF(AND(E33>0.1,E33<=0.2),\"C\",IF(AND(E33>0.03,E33<=0.1),\"B\",\"A\")))))","v":""},"Vedere RQTI al comma 18.3, come modificato dall'art. 1 della delibera 637/2023/R/idr",{"$nulls":5},0]
["OB5","Smaltimento fanghi in discarica  - Obiettivo","-",null,{"$f":"IF(E34=\"A\",\"Mantenimento\",IF(E34=\"B\",\"-1% di MF tq,disc\",IF(E34=\"C\",\"-2% di MF tq,disc\",IF(E34=\"D\",\"-3% di MF tq,disc\",IF(E34=\"E\",\"-5% di MF tq,disc\",\"\")))))","v":""},"Vedere RQTI al comma 18.3, come modificato dall'art. 1 della delibera 637/2023/R/idr",{"$nulls":5},0]
["Aggtot","Numero agglomerati individuati nel territorio gestito","n.",{"$nulls":5},{"$f":"IF(E36<0,\"Il valore deve essere maggiore o uguale a zero\",\"\")","v":""},null,null,0]
["Agg2000","di cui superiori ai 2.000 A.E.","n.",{"$nulls":5},{"$f":"IF(OR(E37<0,E37>E36),\"Il valore deve essere maggiore o uguale a zero e minore di Agg_tot\",\"\")","v":""},null,null,0]
["Agginfr","Numero agglomerati inclusi nelle procedure di infrazione non ancora giunte a sentenza della Corte di Giustizia Europea ","n.",null,null,"Vedere RQTI al comma 18.7. Considerare la procedura 2017/2181 ed eventuali successive. Quesito riferito al 31 dicembre di ciascun anno (a)",null,null,{"$f":"IF(E3=\"SI\",IF(OR(E38<0,E38>E36,E38=\"\"),\"Il valore deve essere maggiore o uguale a zero e minore o uguale a Agg_tot\",\"\"),IF(E38<>0,\"Non risulta gestito il servizio di depurazione\",\"\"))","v":""},null,null,0]
["AEinfr","Abitanti Equivalenti complessivi negli agglomerati inclusi nelle procedure di infrazione non ancora giunte a sentenza della Corte di Giustizia Europea","A.E.",null,null,"Vedere RQTI al comma 18.7. Considerare la procedura 2017/2181 ed eventuali successive. Quesito riferito al 31 dicembre di ciascun anno (a)",null,null,{"$f":"IF(AND(E38>0,OR(E39=\"\",E39<=0)),\"Il valore deve essere maggiore di zero\",IF(AND(E39<>0,OR(E38=0,E38=\"\")),\"Valore non congruente con Agg_infr\",\"\"))","v":""},null,null,0]
["G5.1","Assenza di agglomerati inclusi nelle procedure di infrazione non ancora giunte a sentenza della Corte di Giustizia Europea","A.E.",null,{"$f":"IF(OR(AND(E38>0,E39>0),AND(E39>0,E38=0)),E39,IF(AND(E38=0,E38<>\"\",E39=0),E39,IF(AND(E39=0,E39<>\"\",E38=0),E39,\"\")))","v":""},"Vedere RQTI al comma 18.7, come modificato dall'art. 10 della delibera 639/2021/R/idr ",{"$nulls":5},0]
["UtTDEP","Numero di utenti finali serviti dal gestore per il servizio di depurazione (esclusi utenti indiretti)","n.",{"$nulls":5},{"$f":"IF(E3=\"SI\",IF(OR(E41<=0,E41=\"\"),\"Il valore deve essere maggiore di zero\",\"\"),IF(E41<>0,\"Non risulta gestito il servizio di depurazione\",\"\"))","v":""},null,null,0]
["UtTDEP,dnd","di cui di origine domestica o assimilabile","n.",null,null,"Come da definizioni TICSI",null,null,{"$f":"IF(OR(E42<>\"\",E43<>\"\"),IF(OR(E42<0,E43<0,E43+E42<>E41),\"Ogni di cui deve essere maggiore o uguale a zero e la somma deve essere pari a UtT_DEP\",\"\"),\"\")","v":""},null,null,0]
["UtTDEP,ind","di cui di origine industriale","n.",null,null,"Come da definizioni TICSI",{"$nulls":5},0]
["UtTcond,DEP","Numero di utenze condominiali servite dal gestore per il servizio di depurazione","n.",{"$nulls":5},{"$f":"IF(AND(E3=\"SI\",OR(E44<0,E44>E41,E44=\"\")),\"Il valore deve essere maggiore o uguale a zero e minore o uguale a UtT_DEP\",\"\")","v":""},null,null,0]
["UtTindr,DEP","Numero di utenti indiretti sottesi alle utenze condominiali servite dal gestore per il servizio di depurazione","n.",{"$nulls":5},{"$f":"IF(E45<E44,\"Il valore deve essere maggiore o uguale di UtT_cond,DEP\",\"\")","v":""},null,null,0]
["Utot,DEP","Numero di utenti finali serviti dal gestore per il servizio di depurazione (compresi utenti indiretti)","n.",null,{"$f":"IF((E41-E44+E45)<0,\"\",E41-E44+E45)","v":0},{"$nulls":6},0]
["GestSII","Il gestore gestisce in maniera integrata i servizi di distribuzione per l'acquedotto, di fognatura e di depurazione in tutti i Comuni serviti?","-",null,null,"Vedere RQTI al comma 18.8 ",{"$nulls":5},0]
["NCom,SII","Se \"prevalentemente\", in quanti Comuni il servizio è integrato?","n.",{"$nulls":5},{"$f":"IF(AND(E47<>\"Prevalentemente\",OR(E48>0,E48<0)),\"Il numero di Comuni va fornito se la risposta a Gest_SII è 'Prevalentemente'\",IF(AND(E47=\"Prevalentemente\",E48<=0),\"Il valore fornito deve essere maggiore di zero\",\"\"))","v":""},null,null,0]
[null,"Se  \"prevalentemente\", indicare il numero di utenti finali serviti dal gestore (compresi utenti indiretti) nei Comuni in cui vengono forniti entrambi i servizi seguenti:","-",{"$nulls":8},0]
["Utot,dist,SII","      - distribuzione di acquedotto","n.",{"$nulls":5},{"$f":"IF(AND(E47<>\"Prevalentemente\",OR(E50>0,E50<0)),\"Il numero di utenti va fornito se la risposta a Gest_SII è 'Prevalentemente'\",IF(AND(E47=\"Prevalentemente\",E50<=0),\"Il valore fornito deve essere maggiore di zero\",\"\"))","v":""},null,null,0]
["Utot,DEP,SII","      - depurazione","n.",{"$nulls":5},{"$f":"IF(AND(E47<>\"Prevalentemente\",OR(E51>0,E51<0)),\"Il numero di utenti va fornito se la risposta a Gest_SII è 'Prevalentemente'\",IF(AND(E47=\"Prevalentemente\",E51<=0),\"Il valore fornito deve essere maggiore di zero\",\"\"))","v":""},null,null,0]
["G5.2","Copertura del servizio di depurazione rispetto all'utenza servita da acquedotto","%",null,{"$f":"IF(E47=\"NO\",0,IF(AND(E47=\"SI\",'QT-Acquedotto'!E87>0,E46>0),E46/'QT-Acquedotto'!E87,IF(AND(E47=\"Prevalentemente\",E50>0,E51>0),E51/E50,0)))","v":{"v":0,"d":"0.00%"}},"Vedere RQTI al comma 18.7 ",{"$nulls":5},0]
["ENDEP","Consumo energetico negli impianti di depurazione ","tep",null,null,"Da compilare con riferimento a tutte le fonti di energia, non solo quella elettrica",null,null,{"$f":"IF(E53<0,\"Il valore deve essere maggiore o uguale a zero\",\"\")","v":""},null,null,0]
["ENDEP,ess","di cui per sezione di essiccamento fanghi","tep",{"$nulls":5},{"$f":"IF(OR(E54<0,E54>E53),\"Il valore deve essere maggiore o uguale a zero e minore di EN_dep\",\"\")","v":""},null,null,0]
["ENDEP,au","Energia autoprodotta da cogenerazione nella fase di digestione anaerobica dei fanghi","tep",null,null,"Da compilare con riferimento a tutte le fonti di energia, non solo quella elettrica",null,null,{"$f":"IF(E55<0,\"Il valore deve essere maggiore o uguale a zero\",\"\")","v":""},null,null,0]
["G5.3","Impronta di carbonio del servizio di depurazione","t CO2,eq",null,null,"(Dato facoltativo) \nVedere norma UNI EN ISO 14064-1",null,null,"",null,null,0]
["EEprel","Prelievo di energia elettrica da reti pubbliche fatturato per il servizio di depurazione","MWh elettrici",{"$nulls":5},"",null,null,{"$f":"IF(I57=\"\",0,1)","v":0}]
["Gasprel","Prelievo da reti pubbliche di gas naturale fatturato per i consumi dell’impianto di depurazione","GJ",{"$nulls":5},"",null,null,0]
["EEprod","Energia elettrica prodotta nell’area degli impianti di depurazione ","MWh elettrici",{"$nulls":5},"",null,null,0]
["EEprod_FER","di cui da fonti rinnovabili escluso il biogas prodotto nei medesimi impianti","MWh elettrici",{"$nulls":5},{"$f":"IF(OR(E60<>\"\",E61<>\"\",E62<>\"\",E63<>\"\",E64<>\"\"),IF(OR(E60<0,E61<0,E62<0,E63<0,E64<0,E60+E61+E62+E63+E64<>E59),\"Ogni di cui deve essere maggiore o uguale a zero e la somma deve essere pari a EEprod\",\"\"),\"\")","v":""},null,null,0]
["EEprod_BIO","di cui da biogas prodotto nei medesimi impianti","MWh elettrici",{"$nulls":8},0]
["EEprod_pir","di cui da processi di pirolisi con impiego di fanghi di depurazione","MWh elettrici",{"$nulls":8},0]
["EEprod_inc","di cui da incenerimento con impiego di fanghi di depurazione","MWh elettrici",{"$nulls":8},0]
["EEprod_al","di cui altro","MWh elettrici",{"$nulls":8},0]
["ETprod","Energia termica prodotta nell’area degli impianti di depurazione","MWh termici",null,null,"Si tratta dell'energia prodotta e avviata a operazioni di recupero energetico",null,null,{"$f":"IF(E65<0,\"Il valore deve essere maggiore o uguale a zero\",\"\")","v":""},null,null,0]
["ETprod_BIO","di cui da biogas prodotto nei medesimi impianti","MWh termici",{"$nulls":5},{"$f":"IF(OR(E66<>\"\",E67<>\"\",E68<>\"\",E69<>\"\"),IF(OR(E66<0,E67<0,E68<0,E69<0,E66+E67+E68+E69<>E65),\"Ogni di cui deve essere maggiore o uguale a zero e la somma deve essere pari a ETprod\",\"\"),\"\")","v":""},null,null,0]
["ETprod_pir","di cui da processi di pirolisi con impiego di fanghi di depurazione","MWh termici",{"$nulls":8},0]
["ETprod_inc","di cui da incenerimento con impiego di fanghi di depurazione","MWh termici",{"$nulls":8},0]
["ETprod_al","di cui altro","MWh termici",{"$nulls":8},0]
["Gasprod","Biometano prodotto negli impianti di depurazione e avviato a operazioni di recupero energetico","GJ",null,null,"Al netto del biometano utilizzato per la produzione di energia elettrica e termica e già contabilizzato in EEprod o ETprod",null,null,{"$f":"IF(E70<0,\"Il valore deve essere maggiore o uguale a zero\",\"\")","v":""},null,null,0]
["Gasprod_imm","di cui mediante immissione in una rete di gas naturale","GJ",{"$nulls":5},{"$f":"IF(OR(E71<0,E71>E70),\"Il valore deve essere maggiore o uguale a zero e minore di Gas_prod\",\"\")","v":""},null,null,0]
["G5.4","Indicatore di neutralità energetica degli impianti di depurazione","-",null,{"$f":"IF(E3=\"SI\",IF(AND(E59=0,E65=0,E70=0),100,MIN(100,((2.42*E57+0.292*E58)/(2.42*E59+1.5*E65+0.292*E70)))),\"\")","v":""},"Vedere RQTI al comma 18.14, primo bullet, come rappresentato nell'art. 1 della delibera 637/2023/R/idr",{"$nulls":5},0]
["Mrec","Quantitativo di materia recuperato dai processi di depurazione e valorizzato sul mercato ","g",{"$nulls":5},{"$f":"IF(E73<0,\"Il valore deve essere maggiore o uguale a zero\",\"\")","v":""},null,null,0]
["Mrec_N","di cui azoto","g",{"$nulls":5},{"$f":"IF(OR(E74<>\"\",E75<>\"\",E76<>\"\"),IF(OR(E74<0,E75<0,E76<0,E74+E75+E76<>E73),\"Ogni di cui deve essere maggiore o uguale a zero e la somma deve essere pari a Mrec\",\"\"),\"\")","v":""},null,null,0]
["Mrec_P","di cui fosforo","g",{"$nulls":8},0]
["Mrec_al","di cui altri elementi/composti","g",null,null,"Escludere sabbie e grigliati. Specificare in relazione",{"$nulls":5},0]
["WDEP","Volume totale reflui depurati in uscita dalla depurazione","mc",{"$nulls":5},{"$f":"IF(E3=\"SI\",IF(OR(E77<=0,E77=\"\"),\"Il valore deve essere maggiore di zero\",\"\"),IF(E77<>0,\"Non risulta gestito il servizio di depurazione\",\"\"))","v":""},null,null,0]
["WDEP_mat","di cui volume totale in uscita dagli impianti di depurazione nei quali sono attivi processi di recupero dei materiali","mc",{"$nulls":5},{"$f":"IF(E78<0,\"Il valore deve essere maggiore o uguale a zero\",\"\")","v":""},null,null,0]
["G5.5","Recupero di materia dagli impianti di depurazione","g/mc",null,{"$f":"IF(E3=\"SI\",IF(OR(AND(E73=\"\",E78=\"\"),OR(E73=0,E78=0)),\"\",E73/E78),\"\")","v":""},"Vedere RQTI al comma 18.14, secondo bullet, come rappresentato nell'art. 1 della delibera 637/2023/R/idr",{"$nulls":5},0]
[]
["Valutazione prerequisiti e indicazione istanze presentate per M6",{"$nulls":10},0]
["Aggcond,DEP","Numero agglomerati oggetto di condanna per il servizio di depurazione (causa C-565/10, C-85/13, C-668/19 e successive)","n.",null,{"$f":"E15","v":0},"Quesito riferito al 31 dicembre di ogni anno (a-1), ai sensi dell'Art. 22 della RQTI",{"$nulls":5},0]
["AEcond,DEP","Abitanti Equivalenti complessivi degli agglomerati oggetto di condanna per il servizio di depurazione (causa C-565/10, C-85/13, C-668/19 e successive)","A.E.",null,{"$f":"E16","v":0},"Quesito riferito al 31 dicembre di ogni anno (a-1), ai sensi dell'Art. 22 della RQTI",{"$nulls":5},0]
["Preq3M6","Relativamente al servizio di depurazione, il prerequisito sulla conformità alla normativa sulla gestione delle acque reflue è stato conseguito (prerequisito Preq3)?","-",null,{"$f":"IF(E3=\"SI\",IF(OR(E82>0,E83>0,AND(E82=\"\",E83=\"\")),\"NO\",\"SI\"),\"\")","v":""},"Vedere RQTI, Art.22 ",null,null,{"$f":"IF(AND(E$3=\"SI\",E84=\"NO\"),\"Attenzione, prerequisito mancante\",\"\")","v":""},null,null,0]
["Preq4M6","Indicare l'esito della validazione ai fini della valutazione della disponibilità e affidabilità dei dati per M6 (prerequisito Preq4)","-",null,null,"Indicare la presenza o meno del prerequisito Preq4 (Art.23 RQTI) ",null,null,{"$f":"IF(AND(E3=\"SI\",OR(E85=\"Non adeguato\",E85=\"\")),\"Attenzione, prerequisito mancante\",\"\")","v":""},null,null,0]
["IstD,M6","Indicare se è stata formulata istanza per eventi imprevisti e imprevedibili che hanno comportato il mancato rispetto degli obiettivi per M6 ","-",null,null,"Istanza ex-post ai sensi del comma 5.4, del. 917/2017. Specificare motivazioni in relazione. ",{"$nulls":5},{"$f":"IF(I86=\"\",0,1)","v":0}]
["QD1","Indicare se è rispettato il numero minimo di controlli per i parametri fosforo e forme azotate per applicazione premialità RQTI","-",null,null,"Ai sensi del comma 19.3 e del comma 19.10",{"$nulls":5},{"$f":"IF(I87=\"\",0,1)","v":0}]
["QD2","Indicare se è rispettato il numero minimo di campioni per i parametri di cui alle tabelle 1 e 2 in base alla potenzialità dell'impianto di trattamento per applicazione premialità RQTI","-",null,null,"Ai sensi del comma 19.10",{"$nulls":5},{"$f":"IF(I88=\"\",0,1)","v":0}]
["DerM6","Indicare se uno o più impianti di depurazione soggetti a M6 è stato autorizzato a derogare ai limiti allo scarico nel corso dell'anno (a)","-",null,null,"Vedere RQTI, comma 19.10 ",null,null,{"$f":"IF(AND(E3=\"SI\",E89=\"SI\"),\"Attenzione, verificare l'adeguatezza della frequenza dei campionamenti\",\"\")","v":""},null,null,0]
[{"$nulls":11},{"$f":"IF(I90=\"\",0,1)","v":0}]
["Calcolo del macro-indicatore M6",{"$nulls":10},0]
["Ndep","Numero complessivo di impianti di depurazione (incluse vasche Imhoff) ","n.",null,null,"Si intendono tutti gli impianti di depurazione gestiti (ivi inclusi quelli non considerati per il calcolo di M6)",null,null,{"$f":"IF(E3=\"SI\",IF(OR(E92<=0,E92=\"\"),\"Il valore deve essere maggiore di zero\",\"\"),IF(E92<>0,\"Non risulta gestito il servizio di depurazione\",\"\"))","v":""},null,null,0]
["Ndep2000","di cui di potenzialità pari o superiore a 2.000 AE","n.",{"$nulls":5},{"$f":"IF(OR(E93<0,E93>E92),\"Il valore deve essere maggiore o uguale a zero e minore o uguale a Ndep\",\"\")","v":""},null,null,0]
["Ndepcost","di cui inferiori ai 10.000 AE se recapitanti in acque costiere","n.",{"$nulls":5},{"$f":"IF(OR(E94<0,E94>E93),\"Il valore deve essere maggiore o uguale a zero e minore o uguale a Ndep_2000\",\"\")","v":""},null,null,0]
["N*","Numero complessivo di impianti di depurazione soggetti a M6","n.",null,{"$f":"IF(E93-E94<0,\"\",E93-E94)","v":0},"N.B. la differenza tra Ndep2000 ed Ndepcost rappresenta l'insieme degli impianti considerati per il calcolo di M6",{"$nulls":5},0]
["N*AS","di cui recapitanti in area sensibile o in bacino scolante in area sensibile","n.",{"$nulls":5},{"$f":"IF(OR(E96<0,E96>E95),\"Il valore deve essere maggiore o uguale a zero e minore o uguale a N*\",\"\")","v":""},null,null,{"$f":"IF(I96=\"\",0,1)","v":0}]
["N*ANS","di cui recapitanti in area non sensibile ","n.",{"$nulls":5},{"$f":"IF(OR(E97<0,E97>E95),\"Il valore deve essere maggiore o uguale a zero e minore o uguale a N*\",\"\")","v":""},null,null,0]
["N*","Numero complessivo di impianti di depurazione soggetti a M6","n.",null,{"$f":"E95","v":0}]
["N*Tab1","di cui tenuti al rispetto della Tabella 1 dell'Allegato 5 alla Parte Terza del D.Lgs 152/2006 ","n.",null,null,"(o eventuali limiti più restrittivi)",null,null,{"$f":"IF(OR(E99<0,E99>E95),\"Il valore deve essere maggiore o uguale a zero e minore o uguale a N*\",\"\")","v":""},null,null,{"$f":"IF(I99=\"\",0,1)","v":0}]
["N*Tab2","di cui tenuti al rispetto della Tabella 2 dell'Allegato 5 alla Parte Terza del D.Lgs 152/2006 (aree sensibili)","n.",null,null,"(o eventuali limiti più restrittivi). Si intendono gli impianti di acque reflue urbane recapitanti in aree sensibili o in bacini drenanti nelle aree sensibili, provenienti da agglomerati con carico generato di almeno 10.000 A.E.",null,null,{"$f":"IF(OR(E100<0,E100>E95),\"Il valore deve essere maggiore o uguale a zero e minore o uguale a N*\",\"\")","v":""},null,null,0]
["N*Tab4","di cui tenuti al rispetto della Tabella 4 dell'Allegato 5 alla Parte Terza del D.Lgs 152/2006 (scarico su suolo) ","n.",null,null,"(o eventuali limiti più restrittivi). Specificare in relazione per quali dei 5 parametri: SST, BOD5, COD, Ntot e Ptot",null,null,{"$f":"IF(OR(E101<0,E101>E95),\"Il valore deve essere maggiore o uguale a zero e minore o uguale a N*\",\"\")","v":""},null,null,0]
["N*Tab3","di cui tenuti al rispetto della Tabella 3 dell'Allegato 5 alla Parte Terza del D.Lgs 152/2006 (reflui industriali) ","n.",null,null,"(o eventuali limiti più restrittivi)",null,null,{"$f":"IF(OR(E102<0,E102>E95),\"Il valore deve essere maggiore o uguale a zero e minore o uguale a N*\",\"\")","v":""},null,null,{"$f":"IF(I102=\"\",0,1)","v":0}]
["N*Tab3_N-P_RQTI","di cui da valutare con riferimento alla Tabella 3 dell'Allegato 5 alla Parte Terza del D.Lgs 152/2006 (per forme azotate e Ptot) per meccanismo incentivante RQTI","n.",null,null,"(o eventuali limiti più restrittivi). Ai sensi della delibera 637/2023/R/idr al comma 19.3 lettera a). Si intendono gli impianti di acque reflue urbane recapitanti in aree non sensibili (include sia gli impianti già tenuti per legge sia quelli aggiunti ai fini dell'applicazione delle premialità RQTI)",{"$nulls":5},{"$f":"IF(I103=\"\",0,1)","v":0}]
["N*Tab3_N-P_152","di cui già tenuti per legge al rispetto della Tabella 3 (reflui industriali) per le forme azotate e/o Ptot ","n.",null,null,"(o eventuali limiti più restrittivi)",null,null,{"$f":"IF(OR(E104<0,E104>E102,E104>E103),\"Il valore deve essere maggiore o uguale a zero e minore o uguale a N*Tab3 e a N*Tab3_N-P_RQTI\",\"\")","v":""},null,null,{"$f":"IF(I104=\"\",0,1)","v":0}]
["N*Tab2_N-P_RQTI","di cui fino a 10.000 A.E. da valutare con riferimento alla Tabella 2 dell'Allegato 5 alla Parte Terza del D.Lgs 152/2006 per meccanismo incentivante RQTI","n.",null,null,"Si intendono gli impianti di acque reflue urbane recapitanti in aree sensibili o in bacini drenanti nelle aree sensibili, provenienti da agglomerati con carico generato inferiore a 10.000 A.E."]
["∑Cimp,DEP-tot","Numero di campioni eseguiti sulle acque reflue scaricate dagli impianti di depurazione con riferimento ai parametri di cui al co. 19.3, lett. a)","n.",null,null,"Si considerano solo gli impianti di potenzialità ≥ 2.000 A.E. (o 10.000 A.E. se recapitanti in acque costiere).\nConteggiare i campioni con determinazione di almeno uno dei parametri seguenti: BOD5,COD,SST (tab. 1, 3 o 4), Ptot (tab. 2, 3 o 4), Ntot (tab. 2 o 4), NH4,N-NO2,N-NO3 (tab.3). \nAi sensi del co. 19.10, includere anche i campioni virtuali (che, per definizione, sono considerati superare i limiti di legge) necessari a garantire la frequenza di campionamento, nonché i campioni eseguiti dalle Autorità di controllo ambientale caratterizzati da superamento dei limiti, ai sensi del co. 19.5",null,null,{"$f":"IF(E106<0,\"Il valore deve essere maggiore o uguale a zero\",\"\")","v":""},null,null,0]
["∑Cimp,DEP-N-P2","di cui eseguiti con riferimento ai parametri Ptot e Ntot per gli impianti tra 2.000 e 10.000 AE recapitanti in aree sensibili","n.",null,null,"Inclusi gli eventuali campioni con determinazione anche dei parametri BOD5,COD,SST",null,null,{"$f":"IF(OR(E107<0,E107>E106),\"Il valore deve essere maggiore o uguale a zero e minore o uguale a ∑Cimp,DEP-tot\",\"\")","v":""},null,null,{"$f":"IF(I107=\"\",0,1)","v":0}]
["∑Cimp,DEP-N-P3","di cui eseguiti con riferimento ai parametri Ptot e forme azotate di cui alla Tabella 3, per gli impianti recapitanti in aree diverse da quelle sensibili","n.",null,null,"Inclusi gli eventuali campioni con determinazione anche dei parametri BOD5,COD,SST",null,null,{"$f":"IF(OR(E108<0,E108>E106),\"Il valore deve essere maggiore o uguale a zero e minore o uguale a ∑Cimp,DEP-tot\",\"\")","v":""},null,null,0]
["∑Cimp,DEP-AC","di cui eseguiti dalle Autorità di controllo ambientale caratterizzati da superamento dei limiti","n.",null,null,"Se non già inclusi tra i campioni con superamento svolti dal gestore, conteggiare i campioni con superamento dei limiti per almeno uno dei parametri seguenti: BOD5,COD,SST (tab. 1, 3 o 4), Ptot (tab. 2, 3 o 4), Ntot (tab. 2 o 4), NH4,N-NO2,N-NO3 (tab.3)",null,null,{"$f":"IF(OR(E109<0,E109>E106),\"Il valore deve essere maggiore o uguale a zero e minore o uguale a ∑Cimp,DEP-tot\",\"\")","v":""},null,null,0]
["∑Cimp,DEP-virt","di cui campioni virtuali (caratterizzati da superamento dei limiti) per il mantenimento della frequenza di campionamento in periodi di deroga","n.",null,null,"Vedere comma 19.10 della RQTI",null,null,{"$f":"IF(OR(E110<0,E110>E106),\"Il valore deve essere maggiore o uguale a zero e minore o uguale a ∑Cimp,DEP-tot\",IF(AND(E89<>\"SI\",E110>0),\"Attenzione: DerM6 è vuota\",\"\"))","v":""},null,null,0]
["∑Cimp,DEP-cnc","Numero di campioni eseguiti sulle acque reflue scaricate dagli impianti di depurazione con superamento di almeno un limite per i parametri di cui alle Tabelle 1 o 2 o 3 (forme azotate) ","n.",null,null,"Vedere RQTI al comma 19.3. \nSi considerano solo gli impianti di potenzialità ≥ 2.000 A.E. (o 10.000 A.E. se recapitanti in acque costiere).\nConteggiare i campioni con superamento dei limiti di almeno uno dei parametri seguenti: BOD5,COD,SST (tab. 1, 3 o 4), Ptot (tab. 2, 3 o 4), Ntot (tab. 2 o 4), NH4,N-NO2,N-NO3 (tab.3). \nAi sensi del co. 19.10, includere anche i campioni virtuali (che, per definizione, sono considerati superare i limiti di legge) necessari a garantire la frequenza di campionamento, nonché i campioni eseguiti dalle Autorità di controllo ambientale caratterizzati da superamento dei limiti, ai sensi del co. 19.5.\nI superamenti vanno valutati secondo le linee guida SNPA 34/2021, facendo riferimento alla regola 3.",null,null,{"$f":"IF(OR(E111<0,AND(E95>0,E111=\"\")),\"Il valore deve essere maggiore o uguale a zero\",IF(E111>E106,\"Il valore deve essere maggiore o uguale a zero e minore o uguale a ∑Cimp,DEP-tot\",\"\"))","v":""},null,null,0]
["∑Cimp,DEP-cnc,T1","di cui con superamento di almeno un limite solo della Tabella 1 ","n.",null,null,"Considerare la Tabella 1 o eventuali limiti più restrittivi. \nConteggiare tutti gli eventuali superamenti, inclusi quelli ammessi ai sensi dell'Allegato 5 alla Parte III del d.lgs. 152/2006. ",null,{"$f":"IF(OR(D112<>\"\",D113<>\"\",D114<>\"\",D115<>\"\",D116<>\"\",D117<>\"\",D118<>\"\"),IF(OR(D112<0,D113<0,D114<0,D115<0,D116<0,D117<0,D118<0,D118+D117+D116+D115+D114+D113+D112<>D111),\"Ogni di cui deve essere maggiore o uguale a zero e la somma deve essere pari a ∑Cimp,DEP-cnc\",\"\"),\"\")","v":""},{"$f":"IF(OR(E112<>\"\",E113<>\"\",E114<>\"\",E115<>\"\",E116<>\"\",E117<>\"\",E118<>\"\",E119<>\"\",E120<>\"\"),IF(OR(E112<0,E113<0,E114<0,E115<0,E116<0,E117<0,E118<0,E119<0,E120<0,E120+E119+E118+E117+E116+E115+E114+E113+E112<>E111),\"Ogni di cui deve essere maggiore o uguale a zero e la somma deve essere pari a ∑Cimp,DEP-cnc\",\"\"),\"\")","v":""},null,null,0]
["∑Cimp,DEP-cnc,T2","di cui con superamento di almeno un limite solo della Tabella 2","n.",null,null,"Conteggiare tutti gli eventuali superamenti puntuali dei limiti previsti dalla tabella 2 per i parametri Ntot e/o Ptot (o eventuali limiti più restrittivi). Per gli impianti tra 2.000 e 10.000 AE recapitanti in aree sensibili considerare i limiti 15 e 2 mg/L rispettivamente. NB: non è la media annua",{"$nulls":5},0]
["∑Cimp,DEP-cnc,T1-2","di cui con superamento di almeno un limite in entrambe le Tabelle 1 e 2","n.",null,null,"Considerare le Tabelle 1 e 2 o eventuali limiti più restrittivi. \nConteggiare tutti gli eventuali superamenti, inclusi quelli ammessi dall'Allegato 5 alla Parte III del d.lgs. 152/2006 e tutti i superamenti puntuali dei limiti previsti dalla tabella 2 per i parametri Ntot e/o Ptot. Per gli impianti tra 2.000 e 10.000 AE recapitanti in aree sensibili considerare i limiti 15 e 2 mg/L rispettivamente ",{"$nulls":5},0]
["∑Cimp,DEP-cnc,T4","di cui con superamento di almeno un limite della Tabella 4 ","n.",null,null,"Considerare la Tabella 4 o eventuali limiti più restrittivi.",{"$nulls":5},0]
["∑Cimp,DEP-cnc,T1-3","di cui con superamento di almeno un limite in entrambe le Tabelle 1 e 3 ","n.",null,null,"Considerare le Tabelle 1 e 3 o eventuali limiti più restrittivi. \nPer i parametri forme azotate e/o Ptot, considerare i limiti di cui alla Tabella 3-quarta colonna dall'Allegato 5 alla Parte III del d.lgs. 152/2006",{"$nulls":5},{"$f":"IF(I116=\"\",0,1)","v":0}]
["∑Cimp,DEP-cnc,T2-3","di cui con superamento di almeno un limite in entrambe le Tabelle 2 e 3","n.",null,null,"Considerare le Tabelle 2 e 3 o eventuali limiti più restrittivi. \nPer i parametri Ntot e/o Ptot considerare i limiti di tabella 2. Per gli impianti tra 2.000 e 10.000 AE recapitanti in aree sensibili considerare i limiti 15 e 2 mg/L rispettivamente",{"$nulls":5},0]
["∑Cimp,DEP-cnc,T3","di cui con superamento di almeno un limite solo della Tabella 3 ","n.",null,null,"Considerare la Tabella 3 o eventuali limiti più restrittivi. \nPer i parametri forme azotate e/o Ptot, considerare i limiti di cui alla Tabella 3-quarta colonna dall'Allegato 5 alla Parte III del d.lgs. 152/2006 ",{"$nulls":5},0]
["∑Cimp,DEP-AC","di cui eseguiti dalle Autorità di controllo ambientale caratterizzati da superamento dei limiti","n.",null,{"$f":"E109","v":0},"inclusi in ∑Cimp,DEP-cnc ai sensi del co. 19.5 della RQTI. Si intendono i campioni puntuali e non la media annua",{"$nulls":5},0]
["∑Cimp,DEP-virt","di cui campioni virtuali (caratterizzari da superamento dei limiti) per il mantenimento della frequenza di campionamento in periodi di deroga","n.",null,{"$f":"E110","v":0},"inclusi in ∑Cimp,DEP-cnc ai sensi del co. 19.10 della RQTI",{"$nulls":5},0]
["∑CDEP-cnc_N-P_riuso","Numero di campioni con superamento di almeno un limite per i parametri Ptot e/o forme azotate che non sono stati conteggiati al numeratore di M6 in virtù di deroghe concesse per il periodo irriguo, in caso di riutilizzo dei reflui depurati a fini agricoli","n.",null,null,"si tratta dei campioni in cui, per i parametri citati, è stato superato il limite di legge, ma non quello posto dalla deroga, nei soli casi di effettivo riutilizzo a fini irrigui. Viceversa, laddove risultasse superato anche il limite innalzato dalla deroga, il campione andrebbe conteggiato in ∑Cimp,DEP-cnc",null,null,{"$f":"IF(E121<0,\"Il valore deve essere maggiore o uguale a zero\",\"\")","v":""},null,null,{"$f":"IF(I121=\"\",0,1)","v":0}]
["M6","Qualità dell'acqua depurata","%",null,{"$f":"IF(AND(E106>0,E111<=E106,E111<>\"\",E111>=0),E111/E106,\"\")","v":""},"Vedere RQTI al comma 19.5 ",null,null,{"$f":"IF(AND(E3=\"SI\",E122=\"\"),\"Macro-indicatore non calcolabile\",\"\")","v":""},null,null,0]
["M6CL","Qualità dell'acqua depurata - Classe di appartenenza","-",null,{"$f":"IF(E122=\"\",\"\",IF(E122>=(15/100),\"E\",IF(E122>=(10/100),\"D\",IF(E122>=(5/100),\"C\",IF(E122>=(1/100),\"B\",\"A\")))))","v":""},"Vedere RQTI al comma 19.4, come modificato dall'art. 1 della delibera 637/2023/R/idr",{"$nulls":5},0]
["OB6","Qualità dell'acqua depurata  - Obiettivo","-",null,{"$f":"IF(E123=\"A\",\"Mantenimento\",IF(E123=\"B\",\"-6% di M6\",IF(E123=\"C\",\"-10% di M6\",IF(E123=\"D\",\"-15% di M6\",IF(E123=\"E\",\"-20% di M6\",\"\")))))","v":""},"Vedere RQTI al comma 19.4, come modificato dall'art. 1 della delibera 637/2023/R/idr",{"$nulls":5},0]
["∑Cimp,DEP-tot3","Numero di campioni eseguiti sulle acque reflue scaricate dagli impianti di depurazione con analisi anche degli ulteriori parametri di Tabella 3, in aggiunta a quelli precedentemente considerati","n.",null,null,"Si considerano solo gli impianti di potenzialità ≥ 2.000 A.E. (o 10.000 A.E. se recapitanti in acque costiere).\nConsiderare i campioni di cui alla voce ∑Cimp,DEP-tot, cui si sommano gli eventuali campioni con analisi degli ulteriori parametri di Tabella 3",null,null,{"$f":"IF(E125<E106,\"Il valore deve essere maggiore o uguale a ∑Cimp,DEP-tot\",\"\")","v":""},null,null,0]
["∑Cimp,DEP-cnc3","Numero di campioni eseguiti sulle acque reflue scaricate dagli impianti di depurazione con superamento di almeno un limite dei parametri di cui alle Tabelle 1, 2 e 3 ai sensi del co. 19.3 e del co. 19.6 RQTI","n.",null,null,"Si considerano solo gli impianti di potenzialità ≥ 2.000 A.E. (o 10.000 A.E. se recapitanti in acque costiere) \nConsiderare i campioni di cui alla voce ∑Cimp,DEP-cnc, cui si sommano gli eventuali campioni con superamento dei limiti per gli ulteriori parametri di Tabella 3",null,null,{"$f":"IF(OR(E126<0,AND(E95>0,E126=\"\")),\"Il valore deve essere maggiore o uguale a zero\",IF(E126<E111,\"Il valore deve essere maggiore o uguale a ∑Cimp,DEP-cnc\",\"\"))","v":""},null,null,0]
["G6.1","Qualità dell'acqua depurata - esteso","%",null,{"$f":"IF(AND(E125>0,E126<=E125,E126>=0,E126<>\"\",E125>=E106,E126>=E111),E126/E125,\"\")","v":""},"Vedere RQTI al comma 19.6 ",{"$nulls":5},0]
["G6.2","Numerosità dei campionamenti eseguiti","n.",null,{"$f":"IF(AND(E125>0,E125>=E106),E125-SUM(E109:E110),\"\")","v":""},"Vedere RQTI al comma 19.6 \nI campioni eseguiti non includono quelli virtuali e quelli effettuati dalle Autorità di controllo ambientale",{"$nulls":5},0]
["∑Pimp,DEP-tot","Numero parametri analizzati nei campioni eseguiti  sulle acque reflue scaricate dagli impianti di depurazione con riferimento alle Tabelle 1, 2, 3, ovvero a tabella 4 ","n.",null,null,"Si considerano solo gli impianti di potenzialità ≥ 2.000 A.E. (o 10.000 A.E. se recapitanti in acque costiere)\nIn caso di campioni virtuali si considera 1 solo parametro per ogni campione, mentre per i campioni effettuati dalle Autorità di controllo ambientale si conteggiano i soli parametri con superamento dei limiti.",null,null,{"$f":"IF(E129<0,\"Il valore deve essere maggiore o uguale a zero\",IF(E129<E125,\"Il valore deve essere maggiore o uguale a zero e maggiore o uguale a ∑Cimp,DEP-tot3\",\"\"))","v":""},null,null,0]
["∑Pimp,DEP-pnc","Numero parametri con superamento dei limiti di Tabelle 1, 2 e 3, ovvero di Tabella 4,  nei campioni eseguiti sulle acque reflue scaricate dagli impianti di depurazione","n.",null,null,"Si considerano solo gli impianti di potenzialità ≥ 2.000 A.E. (o 10.000 A.E. se recapitanti in acque costiere)\nIn caso di campioni virtuali si considera 1 solo parametro per ogni campione, mentre per i campioni effettuati dalle Autorità di controllo ambientale si conteggiano tutti e soli i parametri con superamento dei limiti.",null,null,{"$f":"IF(OR(E130<0,AND(E95>0,E130=\"\")),\"Il valore deve essere maggiore o uguale a zero\",IF(E130<E126,\"Il valore deve essere maggiore o uguale a zero e maggiore o uguale a ∑Cimp,DEP-cnc3\",\"\"))","v":""},null,null,0]
["G6.3","Tasso di parametri risultati oltre i limiti","%",null,{"$f":"IF(AND(E129>0,E130<=E129,E130>=0,E130<>\"\"),E130/E129,\"\")","v":""},"Vedere RQTI al comma 19.7 ",{"$nulls":5},0]
["WDEP","Volume totale reflui depurati in uscita dalla depurazione","mc",null,{"$f":"E77","v":0},{"$nulls":6},{"$f":"IF(I132=\"\",0,1)","v":0}]
["WDEP,r1","di cui destinabile al riutilizzo","mc",null,null,"Volumi di acque reflue urbane  trattate conformemente ai requisiti di cui alla direttiva 91/271/CEE e sottoposte a ulteriore trattamento secondo quanto previsto dalla normativa vigente (comma 37.3 del MTI-4)",null,null,{"$f":"IF(OR(E133<0,E133>E132),\"Il valore deve essere maggiore o uguale a zero e minore o uguale a W_DEP\",\"\")","v":""},null,null,0]
["WDEP,r2","di cui destinato al riutilizzo","mc",null,null,"Volumi di acque reflue urbane consegnati per essere impiegati dall’utilizzatore finale (comma 37.3 del MTI-4)",null,null,{"$f":"IF(OR(E134<0,E134>E133),\"Il valore deve essere maggiore o uguale a zero e minore o uguale a W_DEP,r1\",\"\")","v":""}]
["G6.4","Acque reflue destinate al riutilizzo","%",null,{"$f":"IF(E3=\"SI\",IF(OR(AND(E134=\"\",E132=\"\"),AND(E134=0,E132=0)),\"\",E134/E132),\"\")","v":""},"Vedere RQTI al comma 19.6, come modificato dall'art. 1 della delibera 637/2023/R/idr"]
["RIU","Quota dei volumi depurati destinabili al riutilizzo ma non destinati a tale finalità","%",null,{"$f":"IFERROR((E133-E134)/E133,\"\")","v":""},"Vedere comma 37.3 del MTI4",{"$nulls":5},{"$f":"IF(I136=\"\",0,1)","v":0}]
["CDEP-min","Numero minimo di campioni che il gestore è tenuto a eseguire nell'anno","n.",null,null,"Sul totale degli impianti soggetti ad M6",null,null,{"$f":"IF(AND(E3<>\"SI\",E137<>\"\"),\"Non risulta gestito il servizio di depurazione\",IF(E137<0,\"Il valore deve essere maggiore o uguale a zero\",\"\"))","v":""},null,null,0]
["Aggcond,DEP,1","Numero agglomerati oggetto di condanna per il servizio di depurazione (causa C-565/10, C-85/13, C-668/19 e successive) al termine dell'anno (a)","n.",null,null,"Quesito riferito al 31 dicembre di ogni anno (a)",null,null,{"$f":"IF(E3=\"SI\",IF(OR(E138<0,E138=\"\",E138>E36),\"Il valore deve essere maggiore o uguale a zero e minore o uguale ad Agg_tot\",\"\"),IF(E138<>0,\"Non risulta gestito il servizio di depurazione\",\"\"))","v":""},null,null,0]
["AEcond,DEP,1","Abitanti Equivalenti complessivi degli agglomerati oggetto di condanna per il servizio di depurazione (causa C-565/10, C-85/13, C-668/19 e successive) al termine dell'anno (a)","A.E.",null,null,"Quesito riferito al 31 dicembre di ogni anno (a)",null,null,{"$f":"IF(E3=\"SI\",IF(OR(E139<0,E139=\"\"),\"Il valore deve essere maggiore o uguale a zero\",\"\"),IF(E139<>0,\"Non risulta gestito il servizio di depurazione\",\"\"))","v":""},null,null,{"$f":"IF(I139=\"\",0,1)","v":0}]
["N*der","Numero impianti autorizzati allo scarico in deroga, anche per periodi limitati, nell'anno (a)","n.",null,null,"Nel caso di impianti che presentano più di un periodo di deroga nell'anno (a), conteggiare i medesimi impianti una sola volta.\nNon conteggiare gli impianti eventualmente soggetti a deroghe, per il solo periodo irriguo, e al solo fine di praticare il riutilizzo dei reflui depurati a fini agricoli",null,null,{"$f":"IF(AND(E3=\"SI\",E89=\"SI\",OR(E140<0,E140=\"\",E140>E95)),\"Il valore deve essere maggiore o uguale a zero e minore o uguale a N*\",\"\")","v":""},null,null,{"$f":"IF(I140=\"\",0,1)","v":0}]
["Cardep,der","Totale carico inquinante collettato in rete fognaria e depurato negli impianti di depurazione inclusi in N*der","A.E.",null,null,"Nel caso di impianti che presentano più di un periodo di deroga nell'anno (a), conteggiare il carico trattato nei medesimi impianti una sola volta",null,null,{"$f":"IF(AND(E3=\"SI\",E89=\"SI\",OR(E141<0,E141=\"\",E141>E8)),\"Il valore deve essere maggiore o uguale a zero e minore o uguale a Car_dep\",\"\")","v":""},null,null,0]
["tder","Durata totale dei periodi di deroga per gli impianti di depurazione inclusi in N*der ","gg",null,null,"Nel caso di impianti che presentano più di un periodo di deroga nell'anno (a), sommare i giorni relativi",null,null,{"$f":"IF(AND(E3=\"SI\",E89=\"SI\",OR(E142<0,E142=\"\")),\"Il valore deve essere maggiore o uguale a zero\",\"\")","v":""},null,null,0]
["Cardep,der_norm","Sommatoria del prodotto dei carichi depurati in ciascun impianto oggetto di deroga per la durata delle medesime deroghe","A.E.",null,null," Sommatoria del prodotto dei carichi depurati in ciascuno degli impianti inclusi in N*der per i rispettivi giorni di deroga, normalizzata dividendo per 365: ∑(Cardep,der,i*tder,i)/365, con i corrispondente all'i-esimo impianto in deroga",null,null,{"$f":"IF(AND(E3=\"SI\",E89=\"SI\",OR(E143<0,E143=\"\")),\"Il valore deve essere maggiore o uguale a zero\",\"\")","v":""},null,null,0]
["Incidenza_der","Incidenza carico depurato in deroga","%",null,{"$f":"IFERROR(E143/E8,\"\")","v":""},"Incidenza rispetto al totale dei carichi collettati e depurati dal gestore nell'anno",null,null,{"$f":"IF(AND(E3=\"SI\",E89=\"SI\",OR(E144<0,E144=\"\")),\"Il valore deve essere maggiore o uguale a zero\",\"\")","v":""},null,null,0]
["Regola3_2023","Utilizzo della regola 3 delle linee guida SNPA per la valutazione del superamento dei limiti nell'anno base","-"]
[]
[]
[]
[]
[null,"Adeguato"]
[null,"Non adeguato"]
[]
[null,"X"]
[null,"SI"]
[null,"NO"]
[null,"Prevalentemente"]
[null,"SI"]
[null,"NO"]

{"sheet":"QT-Altri dati","index":4,"n_rows":184,"n_cols":12,"rows_kept":184,"merged":[[14,7,16,7],[14,8,16,8],[21,7,22,7],[21,8,22,8],[34,8,37,8],[39,7,40,7],[39,8,40,8],[53,8,56,8],[58,8,60,8],[68,8,73,8],[85,8,90,8],[95,7,96,7],[95,8,96,8],[104,8,110,8],[112,8,113,8],[115,7,116,7],[115,8,116,8],[120,8,124,8],[126,8,132,8],[135,8,139,8],[141,8,147,8]]}
[null,"Altri dati di qualità tecnica \nTutti i valori imputati sono intesi essere valori \nconsuntivi ",{"$nulls":9},"Errori compilazione colonna \"Valore Anno 2025\""]
["Notazione dato ","Descrizione dato","UdM",null,"Valore Anno 2025","Note compilazione",null,null,"Errore rilevato in colonna \"Valore Anno 2025\"",null,null,{"$f":"SUM(L3:L177)+SUM(K161:K176)","v":0}]
[{"$nulls":11},{"$f":"IF(I3=\"\",0,1)","v":0}]
["ACQUEDOTTO - Dati relativi agli indennizzi per mancato rispetto degli Standard Specifici di Qualità tecnica",{"$nulls":10},0]
["∑US1ind ","Sommatoria degli utenti finali (compresi utenti indiretti) con diritto all'indennizzo automatico per S1","n.",null,null,"Gli utenti interessati si contano tante volte quanti sono i mancati rispetti dello standard con diritto all'indennizzo automatico ",null,null,{"$f":"IF(OR(E5<0,E5>'QT-Acquedotto'!E111),\"Il valore deve essere maggiore o uguale a zero e minore o uguale a ∑US1\",\"\")","v":""},null,null,0]
["∑US2ind ","Sommatoria degli utenti finali (compresi utenti indiretti) con diritto all'indennizzo automatico per S2","n.",null,null,"Gli utenti interessati si contano tante volte quanti sono i mancati rispetti dello standard con diritto all'indennizzo automatico ",null,null,{"$f":"IF(OR(E6<0,E6>'QT-Acquedotto'!E112),\"Il valore deve essere maggiore o uguale a zero e minore o uguale a ∑US2\",\"\")","v":""},null,null,0]
["∑US3ind ","Sommatoria degli utenti finali (compresi utenti indiretti) con diritto all'indennizzo automatico per S3","n.",null,null,"Gli utenti interessati si contano tante volte quanti sono i mancati rispetti dello standard con diritto all'indennizzo automatico ",null,null,{"$f":"IF(OR(E7<0,E7>'QT-Acquedotto'!E113),\"Il valore deve essere maggiore o uguale a zero e minore o uguale a ∑US3\",\"\")","v":""},null,null,0]
["IndC","Ammontare complessivo degli indennizzi erogato agli utenti finali (inclusi utenti indiretti) interessati da mancato rispetto degli standard specifici di qualità tecnica","€",null,null,"Quesito riferito all'intervallo temporale dal 1 gennaio al 31 dicembre di ogni anno",null,null,{"$f":"IF(E8<0,\"Il valore deve essere maggiore o uguale a zero\",\"\")","v":""},null,null,0]
["IndNC","Ammontare complessivo degli indennizzi non ancora corrisposto agli utenti finali (inclusi utenti indiretti) interessati da mancato rispetto degli standard specifici di qualità tecnica","€",null,null,"Quesito riferito all'intervallo temporale dal 1 gennaio al 31 dicembre di ogni anno",null,null,{"$f":"IF(E9<0,\"Il valore deve essere maggiore o uguale a zero\",\"\")","v":""},null,null,0]
["S_plus","Indicare se nella Carta dei Servizi in vigore è garantito uno standard migliorativo per gli standard specifici S1 e/o S2 e/o S3","-",null,null,"Eventualmente specificare in relazione",{"$nulls":5},0]
[{"$nulls":11},0]
["ACQUEDOTTO - Dati sulla misura di utenza, inclusi obblighi di cui all'art. 15 dell'Allegato A alla del. 218/2016/R/idr (TIMSII)",{"$nulls":10},0]
["UtT","Numero di utenti finali serviti dal gestore per il servizio di acquedotto (esclusi utenti indiretti)","n.",null,{"$f":"'QT-Acquedotto'!E80","v":0},{"$nulls":6},0]
["UtTmis","Numero di utenze finali dotate di misuratore (esclusi utenti indiretti)","n.",null,null,"Vedere TIMSII, comma 15.1",null,null,{"$f":"IF(OR(E14<0,E14>E13),\"Il valore deve essere maggiore o uguale a zero e minore o uguale a UtT\",\"\")","v":""},null,null,0]
["UtTmis_acc","di cui con misuratori accessibili","n.",null,null,"Vedere TIMSII, comma 15.1",null,null,{"$f":"IF(OR(E15<>\"\",E16<>\"\",E17<>\"\"),IF(OR(E15<0,E16<0,E17<0,E15+E16+E17<>E14),\"Ogni di cui deve essere maggiore o uguale a zero e la somma deve essere pari a UtTmis\",\"\"),\"\")","v":""},null,null,0]
["UtTmis_pacc","di cui con misuratori parzialmente accessibili","n.",null,null,"Vedere TIMSII, comma 15.1",{"$nulls":5},0]
["UtTmis_nacc","di cui con misuratori non accessibili","n.",null,null,"Vedere TIMSII, comma 15.1",{"$nulls":5},0]
["UtTmis_sm","Numero di utenze finali dotate di misuratori rilevabili tramite telelettura (esclusi utenti indiretti)","n.",null,null,"Indicare le utenze finali per le quali è già attivo il servizio di lettura da remoto (inclusi sistemi walk by/drive by), anche in via sperimentale",null,null,{"$f":"IF(OR(E18<0,E18>E14),\"Il valore deve essere maggiore o uguale a zero e minore o uguale a UtT_mis\",\"\")","v":""},null,null,0]
["UtTmis_smtel","     di cui con misuratore teleletto da remoto","n.",null,null,"Solo telelettura da remoto con trasmissione dei dati al sistema di telecontrollo (no walk by/drive by)",null,null,{"$f":"IF(OR(E19<0,E19>E18),\"Il valore deve essere maggiore o uguale a zero e minore o uguale a UtT_mis_sm\",\"\")","v":""},null,null,0]
["UtTbt","Numero di utenze finali con dispositivi a bocca tarata (esclusi utenti indiretti)","n.",null,null,"Vedere TIMSII, comma 15.1",null,null,{"$f":"IF(OR(E20<0,E20>(E13-E14)),\"Il valore deve essere maggiore o uguale a zero e minore o uguale a UtT-UtT_mis\",\"\")","v":""},null,null,0]
["UtTmis","Numero di utenze finali dotate di misuratore (esclusi utenti indiretti)","n.",null,{"$f":"E14","v":0},"Vedere TIMSII, comma 15.1",{"$nulls":5},0]
["UtTmis_3000","di cui con consumi medi annui fino a 3.000 mc (2 tentativi minimi)","n.",null,null,"Vedere TIMSII, comma 15.1",null,null,{"$f":"IF(OR(E22<>\"\",E23<>\"\"),IF(OR(E22<0,E23<0,E23+E22<>E21),\"Ogni di cui deve essere maggiore o uguale a zero e la somma deve essere pari a UtTmis\",\"\"),\"\")","v":""},null,null,0]
["UtTmis_3000+","di cui con consumi medi annui superiori a 3.000 mc (3 tentativi minimi)","n.",null,null,"Vedere TIMSII, comma 15.1",{"$nulls":5},0]
["Racc3000","Numero di tentativi di raccolta delle misure per utenti finali con consumi medi annui fino a 3.000 mc (totale)","n.",null,null,"Vedere TIMSII, comma 15.1. Non è la somma dei \"di cui\" sottostanti. Includere anche i tentativi su utenti non più attivi al 31/12  dell’anno a",null,null,{"$f":"IF(E24<0,\"Il valore deve essere maggiore o uguale a zero\",\"\")","v":""},null,null,0]
["Racc3000_eff","di cui andati a buon fine","n.",null,null,"Vedere TIMSII, comma 15.1",null,null,{"$f":"IF(OR(E25<0,E25>E24),\"Il valore deve essere maggiore o uguale a zero e minore o uguale di Racc_3000\",\"\")","v":""},null,null,0]
["Racc3000_val","di cui con misura validata","n.",null,null,"Vedere TIMSII, comma 15.1",null,null,{"$f":"IF(OR(E26<0,E26>E24),\"Il valore deve essere maggiore o uguale a zero e minore o uguale di Racc_3000\",\"\")","v":""},null,null,0]
["Al3000","Numero di autoletture dei misuratori di utenza prese in carico per utenti finali con consumi medi annui fino a 3.000 mc (totale)","n.",null,null,"Vedere TIMSII, comma 15.1. Includere anche i tentativi su utenti non più attivi al 31/12  dell’anno a",null,null,{"$f":"IF(E27<0,\"Il valore deve essere maggiore o uguale a zero\",\"\")","v":""},null,null,0]
["Al3000_val","di cui con misura validata","n.",null,null,"Vedere TIMSII, comma 15.1",null,null,{"$f":"IF(OR(E28<0,E28>E27),\"Il valore deve essere maggiore o uguale a zero e minore o uguale di Al_3000\",\"\")","v":""},null,null,0]
["Racc3000+","Numero di tentativi di raccolta delle misure per utenti finali con consumi medi annui superiori a 3.000 mc","n.",null,null,"Vedere TIMSII, comma 15.1. Non è la somma dei \"di cui\" sottostanti. Includere anche i tentativi su utenti non più attivi al 31/12  dell’anno a",null,null,{"$f":"IF(E29<0,\"Il valore deve essere maggiore o uguale a zero\",\"\")","v":""},null,null,0]
["Racc3000+_eff","di cui andati a buon fine","n.",null,null,"Vedere TIMSII, comma 15.1",null,null,{"$f":"IF(OR(E30<0,E30>E29),\"Il valore deve essere maggiore o uguale a zero e minore o uguale di Racc_3000+\",\"\")","v":""},null,null,0]
["Racc3000+_val","di cui con misura validata","n.",null,null,"Vedere TIMSII, comma 15.1",null,null,{"$f":"IF(OR(E31<0,E31>E29),\"Il valore deve essere maggiore o uguale a zero e minore o uguale di Racc_3000+\",\"\")","v":""},null,null,0]
["Al3000+","Numero di autoletture dei misuratori di utenza prese in carico per utenti finali con consumi medi annui superiori a 3.000 mc","n.",null,null,"Vedere TIMSII, comma 15.1.  Includere anche i tentativi su utenti non più attivi al 31/12  dell’anno a",null,null,{"$f":"IF(E32<0,\"Il valore deve essere maggiore o uguale a zero\",\"\")","v":""},null,null,0]
["Al3000+_val","di cui con misura validata","n.",null,null,"Vedere TIMSII, comma 15.1",null,null,{"$f":"IF(OR(E33<0,E33>E32),\"Il valore deve essere maggiore o uguale a zero e minore o uguale di Al_3000+\",\"\")","v":""},null,null,0]
["Misut","Numero di misuratori di utenza","n.",null,null,"Si intendono i misuratori dei volumi installati presso gli utenti finali (esclusi utenti indiretti)",null,null,{"$f":"IF(E34<0,\"Il valore deve essere maggiore o uguale a zero\",\"\")","v":""},null,null,0]
["Misut,5","di cui con età ≤ 5 anni","n.",{"$nulls":5},{"$f":"IF(OR(E35<>\"\",E36<>\"\",E37<>\"\",E38<>\"\"),IF(OR(E35<0,E36<0,E37<0,E38<0,E35+E36+E37+E38<>E34),\"Ogni di cui deve essere maggiore o uguale a zero e la somma deve essere pari a Mis_ut\",\"\"),\"\")","v":""},null,null,{"$f":"IF(I35=\"\",0,1)","v":0}]
["Misut,5-10","di cui con età 6-10 anni ","n.",{"$nulls":8},0]
["Misut,10-15","di cui con età 11-15 anni","n.",{"$nulls":8},0]
["Misut,15","di cui con età > 15 anni","n.",{"$nulls":8},0]
["Misut","Numero di misuratori di utenza","n.",null,{"$f":"E34","v":0},{"$nulls":6},0]
["Misut,10m","di cui con età > 10 anni meccanici","n.",{"$nulls":5},{"$f":"IF(OR(E40<0,E41<0,(E40+E41)>E39),\"Ogni di cui deve essere maggiore o uguale a zero e la somma deve essere minore o uguale a Mis_ut\",\"\")","v":""},null,null,0]
["Misut,13sv","di cui con età > 13 anni statici e venturimetrici","n.",{"$nulls":8},0]
[{"$nulls":11},{"$f":"IF(I42=\"\",0,1)","v":0}]
["ACQUEDOTTO - Dati relativi agli indennizzi per mancato rispetto degli Standard Specifici sulla misura (anche ai sensi della delibera 609/2021/R/idr)",{"$nulls":10},0]
["∑USR1ind ","Sommatoria degli utenti finali (esclusi utenti indiretti) con diritto all'indennizzo automatico per SR1","n.",{"$nulls":5},{"$f":"IF(E44<0,\"Il valore deve essere maggiore o uguale a zero\",\"\")","v":""},null,null,0]
["∑USR2ind ","Sommatoria degli utenti finali (esclusi utenti indiretti) con diritto all'indennizzo automatico per SR2","n.",{"$nulls":5},"",null,null,0]
["∑USPind ","Sommatoria degli utenti finali (esclusi utenti indiretti) con diritto all'indennizzo automatico per SP","n.",{"$nulls":5},"",null,null,0]
["IndC,m","Ammontare complessivo degli indennizzi erogato agli utenti finali (esclusi utenti indiretti) interessati da mancato rispetto degli standard specifici del servizio di misura","€",{"$nulls":5},"",null,null,0]
["IndNC,m","Ammontare complessivo degli indennizzi non ancora corrisposto agli utenti finali (esclusi utenti indiretti) interessati da mancato rispetto degli standard specifici di misura","€",{"$nulls":5},"",null,null,0]
[{"$nulls":11},{"$f":"IF(I49=\"\",0,1)","v":0}]
["ACQUEDOTTO - Ulteriori dati ",{"$nulls":10},0]
["Nf","Numero fonti di approvvigionamento di acqua destinata al consumo umano","n.",null,null,"Inteso come numero di punti di prelievo ed escluse le importazioni di acqua da altri gestori/grossisti",null,null,{"$f":"IF(E51<0,\"Il valore deve essere maggiore o uguale a zero\",\"\")","v":""},null,null,0]
["Npot","Numero impianti di potabilizzazione delle acque  (esclusa semplice disinfezione)","n.",null,null,"Esclusi i sistemi di dosaggio di disinfettanti in rete",null,null,{"$f":"IF(E52<0,\"Il valore deve essere maggiore o uguale a zero\",\"\")","v":""},null,null,0]
["WAM","Volume di acqua prelevato dall'ambiente","mc",null,{"$f":"'QT-Acquedotto'!E30","v":0},{"$nulls":6},0]
["WAMs","di cui da sorgenti","mc",{"$nulls":5},{"$f":"IF(OR(E54<0,E55<0,E56<0,E57<0,E54+E55+E56+E57<>E53),\"Ogni di cui deve essere maggiore o uguale a zero e la somma deve essere pari a WAM\",\"\")","v":""},null,null,0]
["WAMp","di cui da pozzi","mc",{"$nulls":8},0]
["WAMc","di cui da corsi d'acqua, laghi, bacini artificiali","mc",{"$nulls":8},0]
["WAMm","di cui da acque marine o salmastre","mc",{"$nulls":8},0]
["WA6","Volumi in ingresso al trattamento di potabilizzazione (esclusa semplice disinfezione)","mc",null,null,"Volume di acqua (prelevata dall’ambiente o importata) immesso negli impianti di potabilizzazione, è esclusa l’acqua sottoposta alla sola disinfezione",null,null,{"$f":"IF(OR(E58<0,E58>'QT-Acquedotto'!E28),\"Il valore deve essere maggiore o uguale a zero e minore di ∑WIN\",\"\")","v":""},null,null,0]
["WA6A","di cui sottoposta a trattamento fisico semplice","mc",null,null,"Comprende, ad esempio, stacciatura, sedimentazione, filtrazione",null,null,{"$f":"IF(OR(E59<>\"\",E60<>\"\",E61<>\"\"),IF(OR(E59<0,E60<0,E61<0,E59+E60+E61<>E58),\"Ogni di cui deve essere maggiore o uguale a zero e la somma deve essere pari a WA6\",\"\"),\"\")","v":""},null,null,0]
["WA6B","di cui sottoposta a trattamento fisico e chimico normale","mc",null,null,"Comprende, ad esempio, coagulazione e flocculazione (sono da escludere i volumi inseriti nella riga precedente)",{"$nulls":5},0]
["WA6C","di cui sottoposta a trattamento fisico e chimico spinto e/o affinamento","mc",null,null,"Comprende, ad esempio, ozonazione, adsorbimento, filtrazione su membrana, osmosi inversa (sono da escludere i volumi inseriti nelle righe precedenti)",{"$nulls":5},0]
["UtT","Numero di utenti finali serviti dal gestore per il servizio di acquedotto (esclusi utenti indiretti)","n.",null,{"$f":"'QT-Acquedotto'!E80","v":0},{"$nulls":6},0]
["UtTnf","Numero di utenti finali serviti per il servizio di acquedotto, ma non allacciati alla fognatura (esclusi utenti indiretti)","n.",null,null,"Si intendono gli utenti finali del servizio di acquedotto per cui non viene fatturato il servizio di fognatura; gli utenti sono da considerarsi serviti da fognatura anche nel caso in cui la stessa sia gestita separatamente da un altro gestore (rif. art. 156 del D.lgs 152/2006)",null,null,{"$f":"IF(OR(E63<0,E63>E62),\"Il valore deve essere maggiore o uguale a zero e minore di UtT\",\"\")","v":""},null,null,{"$f":"IF(I63=\"\",0,1)","v":0}]
["Nall,ACQ","Numero di prese di utenza","n.",{"$nulls":5},{"$f":"IF(E64<0,\"Il valore deve essere maggiore o uguale a zero\",\"\")","v":""},null,null,0]
["Lall","Lunghezza totale allacci","km",null,null,"Indicare lo sviluppo lineare totale delle condotte di allaccio, ovvero la somma delle lunghezze di tutte le condotte dallo stacco dalla rete principale al punto di consegna dell'acquedotto",null,null,{"$f":"IF(E65<0,\"Il valore deve essere maggiore o uguale a zero\",IF(E65>'QT-Acquedotto'!E44,\"Attenzione: il valore è superiore a Ld - verificare\",\"\"))","v":""},null,null,0]
["Lallstima","di cui lunghezza rilevata con georeferenziazione parziale","km",null,null,"Indicare lo sviluppo lineare delle condotte di allaccio parzialmente georeferenziate",null,null,{"$f":"IF(OR(E66<0,E66>E65),\"Il valore deve essere maggiore o uguale a zero e minore o uguale a Lall\",\"\")","v":""},null,null,0]
["Lallgeo","di cui lunghezza effettivamente rilevata con georeferenziazione completa (come da comma 7.3 RQTI)","km",null,null,"Indicare lo sviluppo lineare delle condotte di allaccio completamente georeferenziate (solo se corredato da istanza dell'EGA ai sensi del comma 7.3 RQTI)",null,null,{"$f":"IF(OR(E67<0,E67>E65),\"Il valore deve essere maggiore o uguale a zero e minore o uguale a Lall\",\"\")","v":""},null,null,0]
["Lp","Lunghezza totale delle condotte di adduzione e distribuzione, escluse le derivazioni d’utenza","km",null,{"$f":"'QT-Acquedotto'!E42","v":0},{"$nulls":6},0]
["Lp10","di cui con età di posa ≤ 10 anni","km",{"$nulls":5},{"$f":"IF(OR(E69<0,E70<0,E71<0,E72<0,E73<0,E74<0,E69+E70+E71+E72+E73+E74<>E68),\"Ogni di cui deve essere maggiore o uguale a zero e la somma deve essere pari a Lp\",\"\")","v":""},null,null,0]
["Lp11-30","di cui con età di posa 11-30 anni","km",{"$nulls":8},0]
["Lp31-40","di cui con età di posa 31-40 anni","km",{"$nulls":8},0]
["Lp41-50","di cui con età di posa 41-50 anni","km",{"$nulls":8},0]
["Lp50","di cui con età di posa > 50 anni","km",{"$nulls":8},0]
["LpNN","di cui con età di posa non nota","km",null,{"$f":"E68-E69-E70-E71-E72-E73","v":0},"Dato calcolato per differenza dai precedenti",{"$nulls":5},0]
["Lpgeo","Lunghezza rete principale di adduzione e di distribuzione georeferenziata","km",null,null,"Escluse le derivazioni d’utenza ",null,null,{"$f":"IF(OR(E75<0,E75>E68),\"Il valore deve essere maggiore o uguale a zero e minore o uguale a Lp\",\"\")","v":""},null,null,{"$f":"IF(I75=\"\",0,1)","v":0}]
["Lprp","Lunghezza rete sottoposta a ricerca perdite con tecniche acustiche o tecniche/tecnologie differenti aventi il medesimo scopo","km",null,null,"Solo la rete principale di adduzione e distribuzione, escluse le derivazioni d’utenza",null,null,{"$f":"IF(OR(E76<0,E76>E68),\"Il valore deve essere maggiore o uguale a zero e minore o uguale a Lp\",\"\")","v":""},null,null,0]
["Lddt","Estensione rete distrettualizzata telecontrollata","km",null,null,"Solo rete principale di distribuzione, escluse le derivazioni d’utenza. Da considerare solo i distretti permanenti",null,null,{"$f":"IF(OR(E77<0,E77>'QT-Acquedotto'!E44),\"Il valore deve essere maggiore o uguale a zero e minore o uguale a Ld\",\"\")","v":""},null,null,0]
["Lpd ","Estensione rete distrettualizzata ","km",null,null,"Escluse le derivazioni d’utenza. Da considerare solo i distretti permanenti",null,null,{"$f":"IF(OR(E78<0,E78>'QT-Acquedotto'!E42),\"Il valore deve essere maggiore o uguale a zero e minore o uguale a Lp\",\"\")","v":""},null,null,{"$f":"IF(I78=\"\",0,1)","v":0}]
["Lat","Estensione rete di adduzione telecontrollata","km",null,null,"Solo rete principale di adduzione, escluse le derivazioni d’utenza",null,null,{"$f":"IF(OR(E79<0,E79>'QT-Acquedotto'!E43),\"Il valore deve essere maggiore o uguale a zero e minore o uguale a La\",\"\")","v":""},null,null,0]
["Ldt","Estensione rete di distribuzione telecontrollata","km",null,null,"Solo rete principale di distribuzione, escluse le derivazioni d’utenza",null,null,{"$f":"IF(OR(E80<0,E80>'QT-Acquedotto'!E44),\"Il valore deve essere maggiore o uguale a zero e minore o uguale a Ld\",\"\")","v":""},null,null,{"$f":"IF(I80=\"\",0,1)","v":0}]
["Lpsos","Lunghezza complessiva condotte sostituite, incluse condotte sostituite o risanate con tecniche senza scavo","km",null,null,"Solo la rete principale di adduzione e distribuzione, escluse le derivazioni d’utenza",null,null,{"$f":"IF(OR(E81<0,E81>E68),\"Il valore deve essere maggiore o uguale a zero e minore o uguale a Lp\",\"\")","v":""},null,null,0]
["BreakACQ","Numero di rotture annue sulla rete di distribuzione principale","n.",null,null,"Escluse le derivazioni d’utenza ",null,null,{"$f":"IF(E82<0,\"Il valore deve essere maggiore o uguale a zero\",\"\")","v":""},null,null,0]
[{"$nulls":11},0]
["FOGNATURA - Ulteriori dati",{"$nulls":10},0]
["Lf","Lunghezza totale della rete fognaria principale (esclusi gli allacci)","km",null,{"$f":"'QT-Fognatura'!E24","v":0},{"$nulls":6},0]
["Lf10","di cui con età di posa ≤ 10 anni","km",{"$nulls":5},{"$f":"IF(OR(E86<0,E87<0,E88<0,E89<0,E90<0,E91<0,E86+E87+E88+E89+E90+E91<>E85),\"Ogni di cui deve essere maggiore o uguale a zero e la somma deve essere pari a Lf\",\"\")","v":""},null,null,0]
["Lf11-30","di cui con età di posa 11-30 anni","km",{"$nulls":8},0]
["Lf31-40","di cui con età di posa 31-40 anni","km",{"$nulls":8},0]
["Lf41-50","di cui con età di posa 41-50 anni","km",{"$nulls":8},0]
["Lf50","di cui con età di posa > 50 anni","km",{"$nulls":8},0]
["LfNN","di cui con età di posa non nota","km",null,{"$f":"E85-E86-E87-E88-E89-E90","v":0},"Dato calcolato per differenza dai precedenti",{"$nulls":5},0]
["Nall,FOG","Numero di allacciamenti alla rete fognaria","n.",{"$nulls":5},{"$f":"IF(E92<0,\"Il valore deve essere maggiore di zero\",\"\")","v":""},null,null,0]
["Lf,sos","Lunghezza complessiva condotte sostituite, incluse condotte sostituite o risanate con tecniche senza scavo","km",null,null,"Esclusi gli allacci",null,null,{"$f":"IF(OR(E93<0,E93>E85),\"Il valore deve essere maggiore o uguale a zero e minore o uguale a Lf\",\"\")","v":""},null,null,0]
["Lf,geo","Lunghezza rete fognaria georeferenziata","km",null,null,"Esclusi gli allacci",null,null,{"$f":"IF(OR(E94<0,E94>E85),\"Il valore deve essere maggiore o uguale a zero e minore o uguale a Lf\",\"\")","v":""},null,null,0]
["UtTFOG","Numero di utenti finali serviti dal gestore per il servizio di fognatura (esclusi utenti indiretti)","n.",null,null,"Come da definizioni RQTI",null,null,{"$f":"IF(E95<0,\"Il valore deve essere maggiore di zero\",\"\")","v":""},null,null,0]
["UtTFOG,dnd","        di cui utenze domestiche e non domestiche assimilabili","n.",null,null,"Come da definizioni TICSI",null,null,{"$f":"IF(OR(E96<>\"\",E97<>\"\"),IF(OR(E96<0,E97<0,E97+E96<>E95),\"Ogni di cui deve essere maggiore o uguale a zero e la somma deve essere pari a UtT_FOG\",\"\"),\"\")","v":""},null,null,0]
["UtTFOG,ind","        di cui utenze industriali","n.",null,null,"Come da definizioni TICSI. Non è la somma dei \"di cui\" sottostanti",{"$nulls":5},0]
["UtTFOG,ind,m","di cui dotate di misuratore di portata","n.",{"$nulls":5},{"$f":"IF(OR(E98<0,E98>E97),\"Il valore deve essere maggiore o uguale a zero e minore o uguale a UtT_FOG,ind\",\"\")","v":""},null,null,0]
["UtTFOG,ind,p","di cui dotate di pre-trattamenti","n.",{"$nulls":5},{"$f":"IF(OR(E99<0,E99>E97),\"Il valore deve essere maggiore o uguale a zero e minore o uguale a UtT_FOG,ind\",\"\")","v":""},null,null,0]
["UtTFOG,ind,d","di cui con parametri in deroga alla tabella 3, Allegato 5, Parte III, D.lgs 152/2006","n.",{"$nulls":5},{"$f":"IF(OR(E100<0,E100>E97),\"Il valore deve essere maggiore o uguale a zero e minore o uguale a UtT_FOG,ind\",\"\")","v":""},null,null,0]
["UtTcond,FOG","Numero di utenze condominiali servite dal gestore per il servizio di fognatura","n.",null,null,"Come da definizioni RQTI",null,null,{"$f":"IF(OR(E101<0,E101>E95),\"Il valore deve essere maggiore o uguale a zero e minore o uguale a UtT_FOG\",\"\")","v":""},null,null,0]
["UtTindr,FOG","Numero di utenti indiretti sottesi alle utenze condominiali servite dal gestore per il servizio di fognatura","n.",null,null,"Come da definizioni RQTI",null,null,{"$f":"IF(E102<E101,\"Il valore deve essere maggiore di UtT_cond,FOG\",\"\")","v":""},null,null,0]
["Utot,FOG","Numero di utenti finali serviti dal gestore per il servizio di fognatura (compresi utenti indiretti)","n.",null,{"$f":"IF((E95-E101+E102)<0,\"\",E95-E101+E102)","v":0},{"$nulls":6},{"$f":"IF(I103=\"\",0,1)","v":0}]
["Aggtot","Numero agglomerati individuati nel territorio gestito","n.",null,{"$f":"'QT-Depurazione'!E36","v":0},{"$nulls":3},{"$f":"IF(E104<0,\"Il valore deve essere maggiore o uguale a zero\",\"\")","v":""},null,null,0]
["AggA1","di cui < 1.000 A.E.","n.",null,null,"Laddove disponibile",null,null,{"$f":"IF(OR(E105<>\"\",E106<>\"\",E107<>\"\",E108<>\"\",E109<>\"\",E110<>\"\",E111<>\"\"),IF(OR(E105<0,E106<0,E107<0,E108<0,E109<0,E110<0,E111<0,E111+E110+E109+E108+E107+E106+E105<>E104),\"Ogni di cui deve essere maggiore o uguale a zero e la somma deve essere pari a Agg_tot\",\"\"),\"\")","v":""},null,null,0]
["AggA2","di cui 1.000 <= A.E. < 2.000 ","n.",null,null,"Laddove disponibile",{"$nulls":5},0]
["AggB","di cui 2.000 <= A.E. < 10.000","n.",null,null,"Laddove disponibile",{"$nulls":5},0]
["AggC1","di cui 10.000 <= A.E. < 50.000","n.",null,null,"Laddove disponibile",{"$nulls":5},0]
["AggC2","di cui 50.000 <= A.E. < 100.000","n.",null,null,"Laddove disponibile",{"$nulls":5},0]
["AggD","di cui 100.000 <= A.E. < 500.000","n.",null,null,"Laddove disponibile",{"$nulls":5},0]
["AggE","di cui A.E. >= 500.000","n.",null,null,"Laddove disponibile",{"$nulls":5},0]
["Cargen","Totale carico inquinante delle acque reflue del territorio servito (carico generato)","A.E.",null,null,"Carico biodegradabile generato nel territorio in cui è svolto il servizio di fognatura",null,null,{"$f":"IF(E112<0,\"Il valore deve essere maggiore di zero\",\"\")","v":""},null,null,0]
["Cargen,dnd","di cui di origine domestica o non domestica assimilabile","A.E.",{"$nulls":5},{"$f":"IF(OR(E113<>\"\",E114<>\"\"),IF(OR(E113<0,E114<0,E114+E113<>E112),\"Ogni di cui deve essere maggiore o uguale a zero e la somma deve essere pari a Car_gen\",\"\"),\"\")","v":""},null,null,0]
["Cargen,ind","di cui di origine industriale","A.E.",{"$nulls":8},0]
["Carcol","Totale carico inquinante delle acque reflue collettate in rete fognaria (carico collettato)","A.E.",null,null,"Componente di carico biodegradabile generato nel territorio in cui è svolto il servizio di fognatura ed effettivamente collettato in fognatura",null,null,{"$f":"IF(OR(E115<0,E115>E112),\"Il valore deve essere maggiore di zero e minore o uguale a Car_gen\",\"\")","v":""},null,null,0]
["Carcol,dnd","di cui di origine domestica o non domestica assimilabile","A.E.",{"$nulls":5},{"$f":"IF(OR(E116<>\"\",E117<>\"\"),IF(OR(E116<0,E117<0,E117+E116<>E115),\"Ogni di cui deve essere maggiore o uguale a zero e la somma deve essere pari a Car_col\",\"\"),\"\")","v":""},null,null,{"$f":"IF(I116=\"\",0,1)","v":0}]
["Carcol,ind","di cui di origine industriale","A.E.",{"$nulls":8},0]
[{"$nulls":11},{"$f":"IF(I118=\"\",0,1)","v":0}]
["DEPURAZIONE - Ulteriori dati",{"$nulls":10},0]
["Ndep","Numero complessivo di impianti di depurazione (incluse vasche Imhoff)","n.",null,{"$f":"'QT-Depurazione'!E92","v":0},{"$nulls":6},0]
["Ndep0","di cui vasche Imhoff","n.",null,{"$f":"J161","v":0},"Vedere la successiva sezione \"Numero di depuratori per tipologia di trattamento e potenzialità di trattamento\"",null,null,{"$f":"IF(OR(E121<>\"\",E122<>\"\",E123<>\"\",E124<>\"\",E125<>\"\"),IF(OR(E121<0,E122<0,E123<0,E124<0,E125<0,E121+E122+E123+E124+E125<>E120),\"Ogni di cui deve essere maggiore o uguale a zero e la somma deve essere pari a Ndep\",\"\"),\"\")","v":""},null,null,0]
["Ndep1","di cui con trattamento sino al primario","n.",null,{"$f":"J162","v":0},"Vedere la successiva sezione \"Numero di depuratori per tipologia di trattamento e potenzialità di trattamento\"",{"$nulls":5},0]
["Ndep2","di cui con trattamento sino al secondario","n.",null,{"$f":"J163","v":0},"Vedere la successiva sezione \"Numero di depuratori per tipologia di trattamento e potenzialità di trattamento\"",{"$nulls":5},0]
["Ndep3","di cui con trattamento sino al terziario","n.",null,{"$f":"J164","v":0},"Vedere la successiva sezione \"Numero di depuratori per tipologia di trattamento e potenzialità di trattamento\"",{"$nulls":5},0]
["Ndep4","di cui con trattamento sino al quaternario","n.",null,{"$f":"J165","v":0},"Vedere la successiva sezione \"Numero di depuratori per tipologia di trattamento e potenzialità di trattamento\"",{"$nulls":5},0]
["Ndep","Numero complessivo di impianti di depurazione (incluse vasche Imhoff) ","n.",null,{"$f":"E120","v":0},{"$nulls":6},{"$f":"IF(I126=\"\",0,1)","v":0}]
["NdepA1","di cui con potenzialità A.E. < 1.000","n.",null,{"$f":"C166","v":0},"Vedere la successiva sezione \"Numero di depuratori per tipologia di trattamento e potenzialità di trattamento\"",null,null,{"$f":"IF(OR(E127<>\"\",E128<>\"\",E129<>\"\",E130<>\"\",E131<>\"\",E132<>\"\",E133<>\"\"),IF(OR(E127<0,E128<0,E129<0,E130<0,E131<0,E132<0,E133<0,E133+E132+E131+E130+E129+E128+E127<>E126),\"Ogni di cui deve essere maggiore o uguale a zero e la somma deve essere pari a Ndep\",\"\"),\"\")","v":""},null,null,{"$f":"IF(I127=\"\",0,1)","v":0}]
["NdepA2","di cui con potenzialità 1.000 <= A.E. < 2.000 ","n.",null,{"$f":"D166","v":0},"Vedere la successiva sezione \"Numero di depuratori per tipologia di trattamento e potenzialità di trattamento\"",{"$nulls":5},{"$f":"IF(I128=\"\",0,1)","v":0}]
["NdepB","di cui con potenzialità 2.000 <= A.E. < 10.000 ","n.",null,{"$f":"E166","v":0},"Vedere la successiva sezione \"Numero di depuratori per tipologia di trattamento e potenzialità di trattamento\"",{"$nulls":5},0]
["NdepC1","di cui con potenzialità 10.000 <= A.E. < 50.000","n.",null,{"$f":"F166","v":0},"Vedere la successiva sezione \"Numero di depuratori per tipologia di trattamento e potenzialità di trattamento\"",{"$nulls":5},0]
["NdepC2","di cui con potenzialità 50.000 <= A.E. < 100.000","n.",null,{"$f":"G166","v":0},"Vedere la successiva sezione \"Numero di depuratori per tipologia di trattamento e potenzialità di trattamento\"",{"$nulls":5},{"$f":"IF(I131=\"\",0,1)","v":0}]
["NdepD","di cui con potenzialità 100.000 <= A.E. <500.000","n.",null,{"$f":"H166","v":0},"Vedere la successiva sezione \"Numero di depuratori per tipologia di trattamento e potenzialità di trattamento\"",{"$nulls":5},0]
["NdepE","di cui con potenzialità A.E. >= 500.000","n.",null,{"$f":"I166","v":0},"Vedere la successiva sezione \"Numero di depuratori per tipologia di trattamento e potenzialità di trattamento\"",{"$nulls":5},0]
["Cargen_dep","Totale carico inquinante delle acque reflue del territorio gestito (carico generato)","A.E.",null,null,"In caso di gestione completamente integrata, questo valore coincide con il carico generato Cargen di cui alla riga 112",null,null,{"$f":"IF(E134<0,\"Il valore deve essere maggiore o uguale a zero\",\"\")","v":""},null,null,0]
["Cardep","Totale carico inquinante collettato in rete fognaria e depurato in impianti di trattamento di acque reflue urbane incluse vasche Imhoff ","A.E.",null,{"$f":"'QT-Depurazione'!E8","v":0},{"$nulls":6},0]
["Cardep0","di cui confluito in vasche Imhoff","A.E.",null,{"$f":"J171","v":0},"Vedere la successiva sezione \"Carico inquinante collettato (A.E.) per tipologia di trattamento e potenzialità di trattamento\"",null,null,{"$f":"IF(OR(E136<>\"\",E137<>\"\",E138<>\"\",E139<>\"\",E140<>\"\"),IF(OR(E136<0,E137<0,E138<0,E139<0,E140<0,E136+E137+E138+E139+E140<>E135),\"Ogni di cui deve essere maggiore o uguale a zero e la somma deve essere pari a Car_dep\",\"\"),\"\")","v":""},null,null,0]
["Cardep1","di cui confluito in trattamenti sino ai primari","A.E.",null,{"$f":"J172","v":0},"Vedere la successiva sezione \"Carico inquinante collettato (A.E.) per tipologia di trattamento e potenzialità di trattamento\"",{"$nulls":5},0]
["Cardep2","di cui confluito in trattamenti sino ai secondari","A.E.",null,{"$f":"J173","v":0},"Vedere la successiva sezione \"Carico inquinante collettato (A.E.) per tipologia di trattamento e potenzialità di trattamento\"",{"$nulls":5},0]
["Cardep3","di cui confluito in trattamenti sino ai terziari","A.E.",null,{"$f":"J174","v":0},"Vedere la successiva sezione \"Carico inquinante collettato (A.E.) per tipologia di trattamento e potenzialità di trattamento\"",{"$nulls":5},0]
["Cardep4","di cui confluito in trattamenti sino al quaternario","A.E.",null,{"$f":"J175","v":0},"Vedere la successiva sezione \"Carico inquinante collettato (A.E.) per tipologia di trattamento e potenzialità di trattamento\"",{"$nulls":5},0]
["Cardep","Totale carico inquinante collettato in rete fognaria e depurato in impianti di trattamento di acque reflue urbane incluse vasche Imhoff ","A.E.",null,{"$f":"E135","v":0},{"$nulls":6},{"$f":"IF(I141=\"\",0,1)","v":0}]
["CardepA1","di cui con potenzialità A.E. < 1.000","A.E.",null,{"$f":"C176","v":0},"Vedere la successiva sezione \"Carico inquinante collettato (A.E.) per tipologia di trattamento e potenzialità di trattamento\"",null,null,{"$f":"IF(OR(E142<>\"\",E143<>\"\",E144<>\"\",E145<>\"\",E146<>\"\",E147<>\"\",E148<>\"\"),IF(OR(E142<0,E143<0,E144<0,E145<0,E146<0,E147<0,E148<0,E142+E143+E144+E145+E146+E147+E148<>E141),\"Ogni di cui deve essere maggiore o uguale a zero e la somma deve essere pari a Cardep\",\"\"),\"\")","v":""},null,null,{"$f":"IF(I142=\"\",0,1)","v":0}]
["CardepA2","di cui con potenzialità 1.000 <= A.E. < 2.000 ","A.E.",null,{"$f":"D176","v":0},"Vedere la successiva sezione \"Carico inquinante collettato (A.E.) per tipologia di trattamento e potenzialità di trattamento\"",{"$nulls":5},0]
["CardepB","di cui con potenzialità 2.000 <= A.E. < 10.000 ","A.E.",null,{"$f":"E176","v":0},"Vedere la successiva sezione \"Carico inquinante collettato (A.E.) per tipologia di trattamento e potenzialità di trattamento\"",{"$nulls":5},0]
["CardepC1","di cui con potenzialità 10.000 <= A.E. < 50.000","A.E.",null,{"$f":"F176","v":0},"Vedere la successiva sezione \"Carico inquinante collettato (A.E.) per tipologia di trattamento e potenzialità di trattamento\"",{"$nulls":5},0]
["CardepC2","di cui con potenzialità 50.000 <= A.E. < 100.000","A.E.",null,{"$f":"G176","v":0},"Vedere la successiva sezione \"Carico inquinante collettato (A.E.) per tipologia di trattamento e potenzialità di trattamento\"",{"$nulls":5},{"$f":"IF(I146=\"\",0,1)","v":0}]
["CardepD","di cui con potenzialità 100.000 <= A.E. <500.000","A.E.",null,{"$f":"H176","v":0},"Vedere la successiva sezione \"Carico inquinante collettato (A.E.) per tipologia di trattamento e potenzialità di trattamento\"",{"$nulls":5},0]
["CardepE","di cui con potenzialità A.E. >= 500.000","A.E.",null,{"$f":"I176","v":0},"Vedere la successiva sezione \"Carico inquinante collettato (A.E.) per tipologia di trattamento e potenzialità di trattamento\"",{"$nulls":5},0]
["WDEPin","Volume totale reflui in ingresso alla depurazione","mc",{"$nulls":5},{"$f":"IF(E149<0,\"Il valore deve essere maggiore di zero\",\"\")","v":""},null,null,0]
["WRIF_Lin","Volume totale rifiuti liquidi in ingresso alla depurazione","mc",{"$nulls":5},{"$f":"IF(E150<0,\"Il valore deve essere maggiore o uguale a zero\",\"\")","v":""},null,null,0]
["WDEP","Volume totale reflui depurati in uscita dalla depurazione","mc",null,null,"Voce spostata nel foglio QT-Depurazione",{"$nulls":5},0]
["WDEP,r1","di cui destinabile al riutilizzo","mc",null,null,"Voce spostata nel foglio QT-Depurazione",{"$nulls":5},0]
["WDEP,r2","di cui destinato al riutilizzo","mc",null,null,"Voce spostata nel foglio QT-Depurazione",{"$nulls":5},0]
["Ndepess","Numero complessivo di impianti di depurazione con sezione di essiccamento dei fanghi","n.",{"$nulls":5},{"$f":"IF(OR(E154<0,E154>E120),\"Il valore deve essere maggiore o uguale a zero e minore o uguale a Ndep\",\"\")","v":""},null,null,0]
["Ndepdig_an","Numero complessivo di impianti di depurazione con digestione anaerobica nella linea di trattamento fanghi","n.",null,null,"Non è la somma dei \"di cui\" sottostanti",null,null,{"$f":"IF(OR(E155<0,E155>E120),\"Il valore deve essere maggiore o uguale a zero e minore o uguale a Ndep\",\"\")","v":""},null,null,0]
["Ndepdig_an,FOR","di cui co-trattamento con FORSU/altri scarti organici","n.",{"$nulls":5},{"$f":"IF(OR(E156<0,E156>E155),\"Il valore deve essere maggiore o uguale a zero e minore o uguale a Ndepdig_an\",\"\")","v":""},null,null,0]
["Ndepdig_an,BGAS","di cui con valorizzazione energetica del biogas prodotto","n.",{"$nulls":5},{"$f":"IF(OR(E157<0,E157>E155),\"Il valore deve essere maggiore o uguale a zero e minore o uguale a Ndepdig_an\",\"\")","v":""},null,null,0]
[]
[null,"Numero di depuratori per tipologia di trattamento e potenzialità di trattamento (anno 2025)"]
[null,"Tipo trattamento/ Potenzialità","< 1.000 A.E.","1000<= A.E. < 2.000 ","2.000 <= A.E. < 10.000","10.000 <= A.E. < 50.000","50.000 <= A.E. < 100.000","100.000 <= A.E. < 500.000","A.E. >= 500.000","Totale"]
[null,"vasche Imhoff",{"$nulls":7},{"$f":"SUM(C161:I161)","v":0},{"$f":"IF(SUM(C161:I161)<>J161,\"La somma delle celle non restituisce il totale imputato\",\"\")","v":""},{"$f":"IF(SUM(C161:I161)<>J161,1,0)","v":0}]
[null,"trattamento sino al primario",{"$nulls":7},{"$f":"SUM(C162:I162)","v":0},"",0]
[null,"trattamento sino al secondario",{"$nulls":7},{"$f":"SUM(C163:I163)","v":0},"",0]
[null,"trattamento sino al terziario",{"$nulls":7},{"$f":"SUM(C164:I164)","v":0},"",0]
[null,"trattamento sino al quaternario",{"$nulls":7},{"$f":"SUM(C165:I165)","v":0},"",0]
[null,"Totale",{"$f":"SUM(C161:C165)","v":0},{"$f":"SUM(D161:D165)","v":0},0,0,{"$f":"SUM(G161:G165)","v":0},{"$f":"SUM(H161:H165)","v":0},{"$f":"SUM(I161:I165)","v":0},{"$f":"E120","v":0},"",0]
[null,null,{"$f":"IF(SUM(C161:C165)<>C166,\"La somma delle celle non restituisce il totale imputato\",\"\")","v":""},"","","",{"$f":"IF(SUM(G161:G165)<>G166,\"La somma delle celle non restituisce il totale imputato\",\"\")","v":""},{"$f":"IF(SUM(H161:H165)<>H166,\"La somma delle celle non restituisce il totale imputato\",\"\")","v":""},{"$f":"IF(SUM(I161:I165)<>I166,\"La somma delle celle non restituisce il totale imputato\",\"\")","v":""},null,null,{"$f":"COUNTIF(C167:I167,\"La somma delle celle non restituisce il totale imputato\")","v":0}]
[]
[null,"Carico inquinante collettato (A.E.) per tipologia di trattamento e potenzialità di trattamento (anno 2025)"]
[null,"Tipo trattamento/ Potenzialità","< 1.000 A.E.","1000<= A.E. < 2.000 ","2.000 <= A.E. < 10.000","10.000 <= A.E. < 50.000","50.000 <= A.E. < 100.000","100.000 <= A.E. < 500.000","A.E. >= 500.000","Totale"]
[null,"vasche Imhoff",{"$nulls":7},{"$f":"SUM(C171:I171)","v":0},{"$f":"IF(SUM(C171:I171)<>J171,\"La somma delle celle non restituisce il totale imputato\",\"\")","v":""},{"$f":"IF(SUM(C171:I171)<>J171,1,0)","v":0}]
[null,"trattamento sino al primario",{"$nulls":7},{"$f":"SUM(C172:I172)","v":0},"",0]
[null,"trattamento sino al secondario",{"$nulls":7},{"$f":"SUM(C173:I173)","v":0},"",0]
[null,"trattamento sino al terziario",{"$nulls":7},{"$f":"SUM(C174:I174)","v":0},"",0]
[null,"trattamento sino al quaternario",{"$nulls":7},{"$f":"SUM(C175:I175)","v":0},"",0]
[null,"Totale",{"$f":"SUM(C171:C175)","v":0},{"$f":"SUM(D171:D175)","v":0},0,0,{"$f":"SUM(G171:G175)","v":0},{"$f":"SUM(H171:H175)","v":0},{"$f":"SUM(I171:I175)","v":0},{"$f":"E135","v":0},"",0]
[null,null,{"$f":"IF(SUM(C171:C175)<>C176,\"La somma delle celle non restituisce il totale imputato\",\"\")","v":""},{"$f":"IF(SUM(D171:D175)<>D176,\"La somma delle celle non restituisce il totale imputato\",\"\")","v":""},{"$f":"IF(SUM(E171:E175)<>E176,\"La somma delle celle non restituisce il totale imputato\",\"\")","v":""},{"$f":"IF(SUM(F171:F175)<>F176,\"La somma delle celle non restituisce il totale imputato\",\"\")","v":""},{"$f":"IF(SUM(G171:G175)<>G176,\"La somma delle celle non restituisce il totale imputato\",\"\")","v":""},"",{"$f":"IF(SUM(I171:I175)<>I176,\"La somma delle celle non restituisce il totale imputato\",\"\")","v":""},null,null,{"$f":"COUNTIF(C177:I177,\"La somma delle celle non restituisce il totale imputato\")","v":0}]
[]
[]
[]
[]
[]
[]
[null,"X"]

{"sheet":"QT-Resilienza","index":5,"n_rows":121,"n_cols":12,"rows_kept":121,"merged":[[40,8,46,8]]}
[null,"Dati per l'applicazione dei meccanismi di \nincentivazione RQTI (premi e penalità)\nTutti i valori imputati sono intesi essere valori \nconsuntivi ",{"$nulls":9},"Errori compilazione colonna \"Valore Anno 2025\""]
["Notazione dato ","Descrizione dato","UdM",null,"Valore Anno 2025","Note compilazione",null,null,"Errore rilevato in colonna \"Valore Anno 2025\"",null,null,{"$f":"SUM(L3:L90)","v":0}]
["ACQ","Il gestore gestisce il servizio di acquedotto?","-",null,{"$f":"'QT-Acquedotto'!E3","v":0},{"$nulls":6},{"$f":"IF(I3=\"\",0,1)","v":0}]
["FOG","Il gestore gestisce il servizio di fognatura?","-",null,{"$f":"'QT-Fognatura'!E3","v":0},{"$nulls":6},0]
["DEP","Il gestore gestisce il servizio di depurazione?","-",null,{"$f":"'QT-Depurazione'!E3","v":0},{"$nulls":6},0]
["QR1","Indicare se il macro-indicatore M0 è determinato congiuntamente con altri gestori (grossisti)","-",null,null,"Fornire dettagli in relazione in merito alle gestioni valutate congiuntamente",{"$nulls":5},0]
["QR2","In caso affermativo, indicare i codici ID_ARERA dei grossisti considerati ","-",null,null,"Se è considerato più di un gestore grossista, indicare tutti gli ID_ARERA consecutivamente, separati da un trattino",null,null,{"$f":"IF(AND(E6=\"SI\",E7=\"\"),\"Indicare codici ID_ARERA dei grossisti considerati\",\"\")","v":""},null,null,0]
[]
["Valutazione prerequisiti e indicazione istanze presentate per M0"]
["Preq4M0","Indicare l'esito della validazione ai fini della valutazione della disponibilità e affidabilità dei dati per M0 (prerequisito Preq4) ","-",null,null,"Indicare la presenza o meno del prerequisito Preq4 (Art.23 RQTI) ",null,null,{"$f":"IF(AND(E$3=\"SI\",OR(E10=\"Non adeguato\",E10=\"\")),\"Attenzione, prerequisito mancante\",\"\")","v":""},null,null,{"$f":"IF(I10=\"\",0,1)","v":0}]
["IstD,M0","Indicare se è stata formulata istanza per eventi imprevisti e imprevedibili che hanno comportato il mancato rispetto degli obiettivi per M0","-",null,null,"Istanza ex-post ai sensi del comma 5.4, del. 917/2017 ",{"$nulls":5},0]
[]
["Calcolo dell'indicatore M0a"]
["∑disp_SII","Somma dei volumi di disponibilità idrica a livello di gestione del SII","mc",null,{"$f":"E15+E16+E17+E18+E19","v":0},{"$nulls":6},0]
["∑falda_SII","di cui proveniente da falda_SII","mc",null,null,"Volumi indicati nelle concessioni di derivazione, ai sensi del comma 5-ter.2",null,null,{"$f":"IF(E15<0,\"Il valore deve essere maggiore o uguale a zero\",\"\")","v":""},null,null,0]
["∑invasi_SII","di cui proveniente da invasi_SII","mc",null,null,"Volumi indicati nelle concessioni di derivazione, ai sensi del comma 5-ter.2",null,null,"",null,null,0]
["∑CIS_SII","di cui proveniente da altri corpi idrici superficiali_SII","mc",null,null,"Volumi indicati nelle concessioni di derivazione, ai sensi del comma 5-ter.2",null,null,"",null,null,0]
["∑dissalazione_SII","di cui proveniente da dissalazione_SII","mc",null,null,"Capacità autorizzata, ai sensi del comma 5-ter.2",null,null,"",null,null,0]
["∑riuso_SII","di cui proveniente da riuso_SII","mc",null,{"$f":"'QT-Depurazione'!E134","v":0},"Volume effettivamente destinato al riutilizzo, ai sensi del comma 5-ter.2",null,null,{"$f":"IF(E19<>'QT-Depurazione'!E134,\"Il valore risulta diverso da WDEP,r2 riportato nel foglio QT-Depurazione: motivare in relazione\",\"\")","v":""},null,null,0]
["Conc_ter_SII","Quote di concessioni di terzi","mc",{"$nulls":5},{"$f":"IF(E20<0,\"Il valore deve essere maggiore o uguale a zero\",\"\")","v":""},null,null,0]
["Wimp_SII","Volume di acqua importata da altri soggetti","mc",null,null,"Volume di acqua (potabile o non potabile) prelevato da sistemi di acquedotto/captazione gestiti da altre gestioni e immesso nella rete di adduzione e/o di distribuzione",null,null,{"$f":"IF(E21<>'QT-Acquedotto'!E29,\"Il valore risulta diverso da Wimp riportato nel foglio QT-Acquedotto: motivare in relazione\",\"\")","v":""},null,null,0]
["Wesp_SII","Volume di acqua esportata in adduzione e/o in distribuzione","mc",null,null,"Volume di acqua (potabile o non potabile) prelevato dalla rete di adduzione e/o di distribuzione e ceduto a sistemi di acquedotto gestiti da altre gestioni",null,null,{"$f":"IF(E22<>'QT-Acquedotto'!E33,\"Il valore risulta diverso da Wesp riportato nel foglio QT-Acquedotto: motivare in relazione\",\"\")","v":""},null,null,0]
["Interconnessioni_SII","Valore assoluto dei volumi scambiati tra gestioni (ceduti o acquistati) per il tramite di interconnessioni_SII","mc",null,{"$f":"E21+E22","v":0},{"$nulls":6},0]
["Cons_SII","Consumi SII","mc",null,{"$f":"'QT-Acquedotto'!E28","v":0},"Qualora il dato riportato in automatico non corrisponda al dato reale, motivare in relazione",null,null,{"$f":"IF(E24<>'QT-Acquedotto'!E28,\"Motivare in relazione\",\"\")","v":""},null,null,0]
["M0a","Resilienza idrica a livello di gestione del servizio idrico integrato ","-",null,{"$f":"IF(AND(E15=\"\",E16=\"\",E17=\"\",E18=\"\",E19=0,E21=0),\"\",(E24-E22)/(E14+E20+E21))","v":""},"Vedere RQTI all'articolo 5-ter",null,null,{"$f":"IF(AND(E$3=\"SI\",E25=\"\"),\"Indicatore non calcolabile\",\"\")","v":""},null,null,0]
[]
["Calcolo dell'indicatore M0b - fase sperimentale"]
["QR3","L'Autorità di Bacino Distrettuale competente ha provveduto alla definizione della dimensione territoriale di riferimento per la determinazione di M0b per l'anno in considerazione?","-",null,null,"Vedere RQTI al comma 5-quater.5 lett. a) ",{"$nulls":5},0]
["QR4","Indicare se il territorio considerato è inferiore a quello regionale","-",null,null,"Vedere RQTI al comma 5-quater.5 lett. a) - Specificare dettagli in relazione ",null,null,{"$f":"IF(E29=\"SI\",\"Motivare sulla base di un apposito studio/analisi dei criteri idrogeologici\",\"\")","v":""},null,null,0]
["QR5","Per l'annualità in considerazione è stata dichiarata crisi idrica con riferimento al territorio considerato?","-",{"$nulls":8},0]
["QR6","Sempre con riferimento al territorio considerato, in quali altre annualità è stata dichiarata crisi idrica? (a partire dal 2018 incluso) - specificare",{"$nulls":9},0]
["QR7","Indicare la condizione di criticità del territorio (alta, media, bassa)","-",null,null,"Vedere RQTI alla Tav. 1.ter - Specificare in Relazione le annualità di crisi idrica",null,null,{"$f":"IF(E3=0,\"\",IF(E32=\"\",\"Selezionare la condizione di criticità\",\"\"))","v":""},null,null,0]
["Cons_tot","Consumi idrici totali","mc",null,{"$f":"E34+E36+E38+E40","v":0},"Vedere RQTI al comma 5-quater.2",{"$nulls":5},0]
["Cons_ap","di cui consumi acqua potabile","mc",null,null,"Il valore deve essere almeno pari a quello riportato nella voce \"Cons_SII\" (riga 24)",null,null,{"$f":"IF(E34<E24,\"Il valore deve essere maggiore o uguale a Cons_SII\",\"\")","v":""},null,null,0]
["Cons_ap_mis"," di cui consumi acqua potabile provenienti da fonti misurate","mc",{"$nulls":5},{"$f":"IF(E35>E34,\"Il valore deve essere minore o uguale a Cons_ap\",\"\")","v":""},null,null,0]
["Cons_irr","di cui consumi irrigui","mc",{"$nulls":5},{"$f":"IF(E36<0,\"Il valore deve essere maggiore o uguale a zero\",\"\")","v":""},null,null,0]
["Cons_irr_mis"," di cui consumi irrigui provenienti da fonti misurate","mc",{"$nulls":5},{"$f":"IF(E37>E36,\"Il valore deve essere minore o uguale a Cons_irr\",\"\")","v":""},null,null,0]
["Cons_ind","di cui consumi industriali","mc",{"$nulls":5},"",null,null,0]
["Cons_ind_mis"," di cui consumi indistriali provenienti da fonti misurate","mc",{"$nulls":5},{"$f":"IF(E39>E38,\"Il valore deve essere minore o uguale a Cons_ind\",\"\")","v":""},null,null,0]
["Cons_al","di cui altri consumi","mc",{"$nulls":5},"",null,null,0]
["Cons_al_ap","di cui autoapprovvigionamento potabile","mc",null,null,"Laddove il dettaglio sia disponibile",null,null,{"$f":"IF(OR(E41<>\"\",E42<>\"\",E43<>\"\",E44<>\"\",E45<>\"\",E46<>\"\",E47<>\"\"),IF(OR(E41<0,E42<0,E43<0,E44<0,E45<0,E46<0,E47<0,E41+E42+E43+E44+E45+E46+E47<>E40),\"Ogni di cui deve essere maggiore o uguale a zero e la somma deve essere pari a Cons_al\",\"\"),\"\")","v":""},null,null,0]
["Cons_al_ig","di cui uso igienico ed usi assimilati","mc",null,null,"Laddove il dettaglio sia disponibile",{"$nulls":5},0]
["Cons_al_p","di cui uso piscicolo","mc",null,null,"Laddove il dettaglio sia disponibile",{"$nulls":5},0]
["Cons_al_z","di cui uso zootecnico","mc",null,null,"Laddove il dettaglio sia disponibile",{"$nulls":5},0]
["Cons_al_t","di cui uso nell’ambito di acquapark o stabilimenti termali e simili","mc",null,null,"Laddove il dettaglio sia disponibile",{"$nulls":5},0]
["Cons_al_im","di cui acque minerali destinate all’imbottigliamento","mc",null,null,"Laddove il dettaglio sia disponibile",{"$nulls":5},0]
["Cons_al_ult","di cui consumi ulteriori","mc",null,null,"Laddove il dettaglio sia disponibile - Fornire dettagli in relazione in merito alla tipologia di ulteriore tipologia di consumo considerata",{"$nulls":5},0]
["Cons_al","di cui altri consumi","mc",null,{"$f":"E40","v":0},{"$nulls":3},{"$f":"IF(E48<0,\"Il valore deve essere maggiore o uguale a zero\",\"\")","v":""},null,null,0]
["Cons_al_mis"," di cui altri consumi provenienti da fonti misurate","mc",{"$nulls":5},{"$f":"IF(E49>E48,\"Il valore deve essere minore o uguale a Cons_al\",\"\")","v":""},null,null,0]
["Cons_irr_crisi","Indicare se i consumi irrigui sono ottenuti come media dei prelievi delle 3 annualità più recenti in cui non si sono verificate crisi idriche","-",null,null,"Vedere RQTI al comma 5-quater.5 lett. b.1) ",null,null,{"$f":"IF(AND(E50=\"SI\",E30=\"NO\"),\"Attenzione: è stato indicato NO al quesito QR5\",\"\")","v":""},null,null,{"$f":"IF(I50=\"\",0,1)","v":0}]
["Cons_ind_crisi","Indicare se i consumi industriali sono ottenuti come media dei prelievi delle 3 annualità più recenti in cui non si sono verificate crisi idriche","-",null,null,"Vedere RQTI al comma 5-quater.5 lett. b.2) ",null,null,{"$f":"IF(AND(E51=\"SI\",E30=\"NO\"),\"Attenzione: è stato indicato NO al quesito QR5\",\"\")","v":""},null,null,{"$f":"IF(I51=\"\",0,1)","v":0}]
["∑disp_tot","Somma dei volumi di disponibilità idrica a livello sovraordinato","mc",null,{"$f":"IF(E56=\"\",\"\",E56+E57+E59+E61+E62)","v":""},"Vedere RQTI al comma 5-bis.4",{"$nulls":5},0]
["QR8","Indicare \"NO\" se non si intende utilizzare - neanche parzialmente - la modalità di stima euristica di cui alla Tavola 1.ter (viceversa non compilare)","-",null,null,"Motivare in relazione secondo quanto previsto dal comma 5-quater.5 lett. d.5) della RQTI",{"$nulls":5},{"$f":"IF(I53=\"\",0,1)","v":0}]
["∑falda_calc","Calcolo euristico di cui alla Tavola 1.ter","mc",null,{"$f":"IF(OR(E32=\"\",E53=\"NO\"),\"\",IF(E32=\"Bassa\",MAX(0,3*E33-(E57+E59+E61+E62)-E64),IF(E32=\"Media\",MAX(0,1.3*E33-(E57+E59+E61+E62)-E64),IF(E32=\"Alta\",MAX(0,0.9*E33-(E57+E59+E61+E62)-E64)))))","v":""},"Vedere RQTI alla Tav. 1.ter",{"$nulls":5},0]
["∑falda_mis","Volumi di disponibilità idrica provenienti da falda ricavabili da misurazioni effettive","mc",null,null,"Specificare in relazione le metodologie adottate, con particolare riferimento alla ricostruzione tridimensionale dei volumi di falda, sulla base delle caratteristiche geologiche, idrogeologiche e geomorfologiche del sottosuolo",null,null,{"$f":"IF(E53<>\"NO\",\"\",IF(AND(E15<>\"\",E54=\"\",E55=\"\"),\"Il valore deve essere maggiore o uguale a zero e maggiore o uguale a ∑falda_SII\",\"\"))","v":""},null,null,{"$f":"IF(I55=\"\",0,1)","v":0}]
["∑falda_tot","Volumi di disponibilità idrica provenienti da falda","mc",null,{"$f":"IF(E53<>\"NO\",E54,E55)","v":""},"Vedere RQTI al comma 5-quater.5 lett. d.5) ",null,null,{"$f":"IF(E56<0,\"Il valore deve essere maggiore o uguale a zero\",IF(E56<E15,\"Il valore è inferiore a ∑falda_SII\",\"\"))","v":""},null,null,{"$f":"IF(I56=\"\",0,1)","v":0}]
["∑invasi_tot","Volumi di disponibilità idrica provenienti da invasi","mc",{"$nulls":5},{"$f":"IF(OR(E57<0,E57<E16),\"Il valore deve essere maggiore o uguale a zero e maggiore o uguale a ∑invasi_SII\",\"\")","v":""},null,null,0]
["∑invasi_tot_mis"," di cui disponibilità da invasi proveniente da fonti misurate","mc",{"$nulls":5},{"$f":"IF(E58>E57,\"Il valore deve essere minore o uguale a ∑invasi_tot\",\"\")","v":""},null,null,0]
["∑CIS_tot","Volumi di disponibilità idrica provenienti da altri corpi idrici superficiali","mc",{"$nulls":5},{"$f":"IF(OR(E59<0,E59<E17),\"Il valore deve essere maggiore o uguale a zero e maggiore o uguale a ∑CIS_SII\",\"\")","v":""},null,null,0]
["∑CIS_tot_mis"," di cui disponibilità da CIS proveniente da fonti misurate","mc",{"$nulls":5},{"$f":"IF(E60>E59,\"Il valore deve essere minore o uguale a ∑CIS_tot\",\"\")","v":""},null,null,0]
["∑dissalazione_tot","Volumi di disponibilità idrica provenienti da dissalazione","mc",null,null,"Specificare in relazione se è considerata la capacità autorizzata o la capacità di trattamento massima degli impianti",null,null,{"$f":"IF(OR(E61<0,E61<E18),\"Il valore deve essere maggiore o uguale a zero e maggiore o uguale a ∑dissalazione_SII\",\"\")","v":""},null,null,0]
["∑riuso_tot","Volumi di disponibilità idrica provenienti da riuso","mc",{"$nulls":5},{"$f":"IF(OR(E62<0,E62<E19),\"Il valore deve essere maggiore o uguale a zero e maggiore o uguale a ∑riuso_SII\",\"\")","v":""},null,null,0]
["∑riuso_tot_mis"," di cui disponibilità da riuso proveniente da fonti misurate","mc",{"$nulls":5},{"$f":"IF(E63>E62,\"Il valore deve essere minore o uguale a ∑riuso_tot\",\"\")","v":""},null,null,0]
["Wimp_tot","Volumi di acqua acquistata da gestori posti al di fuori del territorio considerato","mc",null,null,"Vedere RQTI al comma 5-quater.2",null,null,{"$f":"IF(E64<0,\"Il valore deve essere maggiore o uguale a zero\",\"\")","v":""},null,null,0]
["Wesp_tot","Volumi di acqua ceduta all'ingrosso al di fuori del territorio considerato","mc",null,null,"Vedere RQTI al comma 5-quater.2",null,null,{"$f":"IF(E65<0,\"Il valore deve essere maggiore o uguale a zero\",\"\")","v":""},null,null,0]
["M0b","Resilienza idrica a livello sovraordinato ","-",null,{"$f":"IF(AND(E56=\"\",E57=\"\",E59=\"\",E61=\"\",E62=\"\",E64=\"\"),\"\",(E33-E65)/(E52+E64))","v":""},"Vedere RQTI all'articolo 5-quater",null,null,{"$f":"IF(AND(E$3=\"SI\",E66=\"\"),\"Indicatore non calcolabile\",\"\")","v":""},null,null,{"$f":"IF(I66=\"\",0,1)","v":0}]
[]
["Calcolo dell'obiettivo e degli indicatori secondari"]
["M0CL","Resilienza idrica - Classe di appartenenza","-",null,{"$f":"IF(OR(E25=\"\",E66=\"\"),\"\",IF(AND(E25<0.4,E66<=1),\"A\",IF(AND(E25<0.5,E66<=1),\"B\",IF(AND(E25<0.7,E66<=1),\"C\",IF(AND(E25<0.95,E66<=1),\"D\",\"E\")))))","v":""},"Vedere RQTI all'articolo 5-bis",{"$nulls":5},0]
["OB0","Resilienza idrica - Obiettivo ","-",null,{"$f":"IF(E69=\"A\",\"Mantenimento\",IF(E69=\"B\",\"+0,2% di DISP\",IF(E69=\"C\",\"+0,5% di DISP\",IF(E69=\"D\",\"+0,7% di DISP\",IF(E69=\"E\",\"+1% di DISP\",\"\")))))","v":""},"Vedere RQTI all'articolo 5-bis",{"$nulls":5},{"$f":"IF(I70=\"\",0,1)","v":0}]
["DISP","Disponibilità idrica","mc",null,{"$f":"E14+E20+E23","v":0},"Vedere RQTI al comma 5-bis.4",{"$nulls":5},{"$f":"IF(I71=\"\",0,1)","v":0}]
["WEI+(a-3)","WEI+ anno (a-3)","%",null,null," Valore riferito all'area territoriale individuata per l’indicatore M0b",{"$nulls":5},{"$f":"IF(I72=\"\",0,1)","v":0}]
["WEI+(a-2)","WEI+ anno (a-2)","%",null,null," Valore riferito all'area territoriale individuata per l’indicatore M0b",{"$nulls":5},0]
["WEI+(a-1)","WEI+ anno (a-1)","%",null,null," Valore riferito all'area territoriale individuata per l’indicatore M0b",{"$nulls":5},0]
["WEI+(a)","WEI+ anno (a)","%",null,null," Valore riferito all'area territoriale individuata per l’indicatore M0b",{"$nulls":5},0]
["G0.0a","Impatto della ricarica rispetto ai consumi del territorio","%",null,{"$f":"IFERROR(IF(E25=\"\",\"\",AVERAGE(E72:E75)),\"\")","v":""},"Vedere RQTI al comma 5-bis.6 punto 1.a)",{"$nulls":5},0]
["IF(a-7)","Internal_flow anno (a-7)","mm ",null,null," Valore riferito all'area territoriale individuata per l’indicatore M0b",{"$nulls":5},0]
["IF(a-6)","Internal_flow anno (a-6)","mm",null,null," Valore riferito all'area territoriale individuata per l’indicatore M0b",{"$nulls":5},0]
["IF(a-5)","Internal_flow anno (a-5)","mm",null,null," Valore riferito all'area territoriale individuata per l’indicatore M0b",{"$nulls":5},0]
["IF(a-4)","Internal_flow anno (a-4)","mm",null,null," Valore riferito all'area territoriale individuata per l’indicatore M0b",{"$nulls":5},0]
["IF(a-3)","Internal_flow anno (a-3)","mm",null,null," Valore riferito all'area territoriale individuata per l’indicatore M0b",{"$nulls":5},0]
["IF(a-1)","Internal_flow anno (a-2)","mm",null,null," Valore riferito all'area territoriale individuata per l’indicatore M0b",{"$nulls":5},0]
["IF(a-2)","Internal_flow anno (a-1)","mm",null,null," Valore riferito all'area territoriale individuata per l’indicatore M0b",{"$nulls":5},0]
["IF(a)","Internal_flow anno (a)","mm",null,null," Valore riferito all'area territoriale individuata per l’indicatore M0b",{"$nulls":5},0]
["G0.0b","Trend temporale della ricarica","-",null,{"$f":"IFERROR(IF(E25=\"\",\"\",SUM(E81:E84)/SUM(E77:E80)),\"\")","v":""},"Vedere RQTI al comma 5-bis.6 punto 1.b)",{"$nulls":5},0]
["Wmax","Volume massimo derivabile dal sistema delle fonti di approvvigionamento nel giorno di massimo consumo dell'anno ","mc/gg",null,null,"all'interno del perimetro del gestore del SII",null,null,{"$f":"IF(E86<0,\"Il valore deve essere maggiore o uguale a zero\",\"\")","v":""},null,null,0]
["Wgg","Volume necessario a soddisfare la domanda nel giorno di massimo consumo dell'anno","mc/gg",null,null,"all'interno del perimetro del gestore del SII",null,null,{"$f":"IF(E87<0,\"Il valore deve essere maggiore o uguale a zero\",\"\")","v":""},null,null,0]
["G0.1","Disponibilità di picco","%",null,{"$f":"IF('QT-Acquedotto'!E67<0.7,1,IF(AND(E87>0,E86>0),E86/E87,\"\"))","v":""},"Vedere RQTI al comma 5-bis.6 punto 2.a)\n(è possibile che il dato sia superiore a 100%)",{"$nulls":5},0]
["Wmax_prod","Volume prodotto dalla fonte di approvvigionamento più produttiva dell’anno","mc",null,null,"all'interno del perimetro del gestore del SII",null,null,{"$f":"IF(E89<0,\"Il valore deve essere maggiore o uguale a zero\",\"\")","v":""},null,null,0]
["G0.2","Differenziazione delle fonti di approvvigionamento","%",null,{"$f":"IF(AND(E34>0,E89>0),E89/E34,\"\")","v":""},"Vedere RQTI al comma 5-bis.6 punto 2.b)",{"$nulls":5},0]
{"$rows_empty":17}
[null,"Adeguato"]
[null,"Non adeguato"]
[]
[null,"NO"]
[]
[]
[null,"X"]
[]
[null,"Bassa"]
[null,"Media"]
[null,"Alta"]
[]
[null,"SI"]
[null,"NO"]

{"sheet":"Riepilogo RQTI","index":6,"n_rows":97,"n_cols":7,"rows_kept":97,"merged":[[1,0,1,1],[2,0,10,0],[11,0,19,0],[20,0,26,0],[27,0,38,0],[39,0,50,0],[51,0,60,0],[61,0,68,0],[69,0,76,0]]}
[null,"Riepilogo RQTI: valutazione performance biennio 2024-2025"]
["Macro-indicatore",null,"Valori 2023 per definizione obiettivi","Definizione obiettivo 2024","Definizione obiettivo 2025","Valori 2024 consuntivi","Valori 2025 consuntivi"]
["M0","Presenza prerequisito Preq4M0",{"$nulls":4},{"$f":"IF('QT-Resilienza'!E10=\"\",\"\",'QT-Resilienza'!E10)","v":""}]
[null,"M0a",{"$nulls":4},{"$f":"'QT-Resilienza'!E25","v":""}]
[null,"M0b",{"$nulls":4},{"$f":"'QT-Resilienza'!E66","v":""}]
[null,"DISP",null,{"$f":"IF(C7=\"A\",C6,C9)","v":""},{"$f":"IF(D7=\"A\",D6,D9)","v":""},null,{"$f":"IF('QT-Resilienza'!E71=0,\"\",'QT-Resilienza'!E71)","v":""}]
[null,"Classe",{"$f":"IF(OR(C4=\"\",C5=\"\"),\"\",IF(AND(C4<0.4,C5<=1),\"A\",IF(AND(C4<0.5,C5<=1),\"B\",IF(AND(C4<0.7,C5<=1),\"C\",IF(AND(C4<0.95,C5<=1),\"D\",\"E\")))))","v":""},{"$f":"C7","v":""},{"$f":"D7","v":""},null,{"$f":"IF(OR(G4=\"\",G5=\"\"),\"\",IF(AND(G4<0.4,G5<=1),\"A\",IF(AND(G4<0.5,G5<=1),\"B\",IF(AND(G4<0.7,G5<=1),\"C\",IF(AND(G4<0.95,G5<=1),\"D\",\"E\")))))","v":""}]
[null,"Obiettivo RQTI",{"$f":"IF(C7=\"A\",\"Mantenimento\",IF(C7=\"B\",\"+0,2% di DISP\",IF(C7=\"C\",\"+0,5% di DISP\",IF(C7=\"D\",\"+0,7% di DISP\",IF(C7=\"E\",\"+1% di DISP\",\"\")))))","v":""},{"$f":"IF(D7=\"A\",\"Mantenimento\",IF(D7=\"B\",\"+0,2% di DISP\",IF(D7=\"C\",\"+0,5% di DISP\",IF(D7=\"D\",\"+0,7% di DISP\",IF(D7=\"E\",\"+1% di DISP\",\"\")))))","v":""}]
[null,"Valore obiettivo DISP",{"$f":"IF(C7=\"A\",\"\",IF(C7=\"B\",C6+(0.002*C6),IF(C7=\"C\",C6+(0.005*C6),IF(C7=\"D\",C6+(0.007*C6),IF(C7=\"E\",C6+(0.01*C6),\"\")))))","v":""},{"$f":"IF(D7=\"A\",\"\",IF(D7=\"B\",D6+(0.002*D6),IF(D7=\"C\",D6+(0.005*D6),IF(D7=\"D\",D6+(0.007*D6),IF(D7=\"E\",D6+(0.01*D6),\"\")))))","v":""}]
[null,"Raggiungimento obiettivo",{"$nulls":4},{"$f":"IF(E7=\"\",\"\",IF(OR(AND(E7=\"A\",G7=\"A\"),AND(G81=\"SI\",E7<>\"A\",G6>=E6)),\"SI\",\"NO\"))","v":""}]
[null,"Anno di riferimento per definizione obiettivi",2023]
["M1","Presenza prerequisito Preq1",{"$nulls":4},{"$f":"'QT-Acquedotto'!E22","v":""}]
[null,"Presenza prerequisito Preq4M1",{"$nulls":4},{"$f":"IF('QT-Acquedotto'!E23=\"\",\"\",'QT-Acquedotto'!E23)","v":""}]
[null,"M1a",null,{"$f":"IF(C16=\"A\",$C14,C18)","v":""},{"$f":"IF(D16=\"A\",$D14,D18)","v":""},null,{"$f":"IF('QT-Acquedotto'!E45=\"\",\"\",'QT-Acquedotto'!E45)","v":""}]
[null,"M1b",null,{"$f":"IF(C16=\"A\",C15,IF(C16=\"B\",C15-(0.02*C15),IF(C16=\"C\",C15-(0.04*C15),IF(C16=\"D\",C15-(0.05*C15),IF(C16=\"E\",C15-(0.06*C15),\"\")))))","v":""},{"$f":"IF(D16=\"A\",D15,IF(D16=\"B\",D15-(0.02*D15),IF(D16=\"C\",D15-(0.04*D15),IF(D16=\"D\",D15-(0.05*D15),IF(D16=\"E\",D15-(0.06*D15),\"\")))))","v":""},null,{"$f":"IF('QT-Acquedotto'!E46=\"\",\"\",'QT-Acquedotto'!E46)","v":""}]
[null,"Classe",{"$f":"IF(OR(C14=\"\",C15=\"\"),\"\",IF(AND(C14<12,C15<0.2),\"A\",IF(AND(C14<20,C15<0.35),\"B\",IF(AND(C14<35,C15<0.45),\"C\",IF(AND(C14<55,C15<0.55),\"D\",\"E\")))))","v":""},{"$f":"IF(OR(D14=\"\",D15=\"\"),\"\",IF(AND(D14<12,D15<0.2),\"A\",IF(AND(D14<20,D15<0.35),\"B\",IF(AND(D14<35,D15<0.45),\"C\",IF(AND(D14<55,D15<0.55),\"D\",\"E\")))))","v":""},{"$f":"IF(OR(E14=\"\",E15=\"\"),\"\",IF(AND(E14<12,E15<0.2),\"A\",IF(AND(E14<20,E15<0.35),\"B\",IF(AND(E14<35,E15<0.45),\"C\",IF(AND(E14<55,E15<0.55),\"D\",\"E\")))))","v":""},null,{"$f":"IF(OR(G14=\"\",G15=\"\"),\"\",IF(AND(G14<12,G15<0.2),\"A\",IF(AND(G14<20,G15<0.35),\"B\",IF(AND(G14<35,G15<0.45),\"C\",IF(AND(G14<55,G15<0.55),\"D\",\"E\")))))","v":""}]
[null,"Obiettivo RQTI",{"$f":"IF(C16=\"A\",\"Mantenimento\",IF(C16=\"B\",\"-2% di M1a\",IF(C16=\"C\",\"-4% di M1a\",IF(C16=\"D\",\"-5% di M1a\",IF(C16=\"E\",\"-6% di M1a\",\"\")))))","v":""},{"$f":"IF(D16=\"A\",\"Mantenimento\",IF(D16=\"B\",\"-2% di M1a\",IF(D16=\"C\",\"-4% di M1a\",IF(D16=\"D\",\"-5% di M1a\",IF(D16=\"E\",\"-6% di M1a\",\"\")))))","v":""}]
[null,"Valore obiettivo M1a",{"$f":"IF(C16=\"A\",\"\",IF(C16=\"B\",C14-(0.02*C14),IF(C16=\"C\",C14-(0.04*C14),IF(C16=\"D\",C14-(0.05*C14),IF(C16=\"E\",C14-(0.06*C14),\"\")))))","v":""},{"$f":"IF(D16=\"A\",\"\",IF(D16=\"B\",D14-(0.02*D14),IF(D16=\"C\",D14-(0.04*D14),IF(D16=\"D\",D14-(0.05*D14),IF(D16=\"E\",D14-(0.06*D14),\"\")))))","v":""}]
[null,"Raggiungimento obiettivo",{"$nulls":4},{"$f":"IF(E16=\"\",\"\",IF(OR(AND(E16=\"A\",G16=\"A\"),AND(G82=\"SI\",E16<>\"A\",G14<=E14)),\"SI\",\"NO\"))","v":""}]
[null,"Anno di riferimento per definizione obiettivi",{"$f":"$C$11","v":2023}]
["M2","Presenza prerequisito Preq4M2",{"$nulls":4},{"$f":"IF('QT-Acquedotto'!E76=\"\",\"\",'QT-Acquedotto'!E76)","v":""}]
[null,"M2",null,{"$f":"IF(C23=\"A\",C22,C25)","v":""},{"$f":"IF(D23=\"A\",D22,D25)","v":""},null,{"$f":"IF('QT-Acquedotto'!E91=\"\",\"\",'QT-Acquedotto'!E91)","v":""}]
[null,"Classe",{"$f":"IF(C22=\"\",\"\",IF(C22<0.75,\"A\",IF(C22<3,\"B\",IF(C22<10,\"C\",IF(C22<30,\"D\",\"E\")))))","v":""},{"$f":"IF(D22=\"\",\"\",IF(D22<0.75,\"A\",IF(D22<3,\"B\",IF(D22<10,\"C\",IF(D22<30,\"D\",\"E\")))))","v":""},{"$f":"IF(E22=\"\",\"\",IF(E22<0.75,\"A\",IF(E22<3,\"B\",IF(E22<10,\"C\",IF(E22<30,\"D\",\"E\")))))","v":""},null,{"$f":"IF(G22=\"\",\"\",IF(G22<0.75,\"A\",IF(G22<3,\"B\",IF(G22<10,\"C\",IF(G22<30,\"D\",\"E\")))))","v":""}]
[null,"Obiettivo RQTI",{"$f":"IF(C23=\"A\",\"Mantenimento\",IF(C23=\"B\",\"-2% di M2\",IF(C23=\"C\",\"-4% di M2\",IF(C23=\"D\",\"-6% di M2\",IF(C23=\"E\",\"-8% di M2\",\"\")))))","v":""},{"$f":"IF(D23=\"A\",\"Mantenimento\",IF(D23=\"B\",\"-2% di M2\",IF(D23=\"C\",\"-4% di M2\",IF(D23=\"D\",\"-6% di M2\",IF(D23=\"E\",\"-8% di M2\",\"\")))))","v":""}]
[null,"Valore obiettivo M2",{"$f":"IF(C23=\"A\",\"\",IF(C23=\"B\",C22-(0.02*C22),IF(C23=\"C\",C22-(0.04*C22),IF(C23=\"D\",C22-(0.06*C22),IF(C23=\"E\",C22-(0.08*C22),\"\")))))","v":""},{"$f":"IF(D23=\"A\",\"\",IF(D23=\"B\",D22-(0.02*D22),IF(D23=\"C\",D22-(0.04*D22),IF(D23=\"D\",D22-(0.06*D22),IF(D23=\"E\",D22-(0.08*D22),\"\")))))","v":""}]
[null,"Raggiungimento obiettivo",{"$nulls":4},{"$f":"IF(E23=\"\",\"\",IF(OR(AND(E23=\"A\",G23=\"A\"),AND(E23<>\"A\",G22<=E22)),\"SI\",\"NO\"))","v":""}]
[null,"Anno di riferimento per definizione obiettivi",{"$f":"$C$11","v":2023}]
["M3","Presenza prerequisito Preq2",{"$nulls":4},{"$f":"'QT-Acquedotto'!E123","v":""}]
[null,"Presenza prerequisito Preq4M3",{"$nulls":4},{"$f":"IF('QT-Acquedotto'!E124=\"\",\"\",'QT-Acquedotto'!E124)","v":""}]
[null,"M3a",null,{"$f":"IF(C30=\"\",\"\",C30)","v":""},{"$f":"IF(D30=\"\",\"\",D30)","v":""},null,{"$f":"IF('QT-Acquedotto'!E132=\"\",\"\",'QT-Acquedotto'!E132)","v":""}]
[null,"M3b",null,{"$f":"IF(C33=\"A\",C31,C36)","v":""},{"$f":"IF(D33=\"A\",D31,D36)","v":""},null,{"$f":"IF('QT-Acquedotto'!E137=\"\",\"\",'QT-Acquedotto'!E137)","v":""}]
[null,"M3c",{"$nulls":4},{"$f":"IF('QT-Acquedotto'!E144=\"\",\"\",'QT-Acquedotto'!E144)","v":""}]
[null,"Classe",{"$f":"IF(AND(C30=\"\",C31=\"\",C32=\"\"),\"\",IF(C30>(0.005/100),\"E\",IF(AND(C30<=(0.005/100),C31>(5/100)),\"D\",IF(AND(C30<=(0.005/100),C31>(1/100)),\"C\",IF(AND(C30<=(0.001/100),C31<=(1/100),C32<=(0.04/100)),\"A\",IF(AND(C30<=(0.005/100),C31<=(1/100)),\"B\",\"B\"))))))","v":""},{"$f":"IF(AND(D30=\"\",D31=\"\",D32=\"\"),\"\",IF(C33=\"A\",\"A\",IF(D30>(0.005/100),\"E\",IF(AND(D30<=(0.005/100),D31>(5/100)),\"D\",IF(AND(D30<=(0.005/100),D31>(1/100)),\"C\",IF(AND(D30<=(0.005/100),D31<=(1/100)),\"B\",\"\"))))))","v":""},{"$f":"IF(AND(E30=\"\",E31=\"\",E32=\"\"),\"\",IF(D33=\"A\",\"A\",IF(E30>(0.005/100),\"E\",IF(AND(E30<=(0.005/100),E31>(5/100)),\"D\",IF(AND(E30<=(0.005/100),E31>(1/100)),\"C\",IF(AND(E30<=(0.005/100),E31<=(1/100)),\"B\",\"\"))))))","v":""},null,{"$f":"IF(AND(G30=\"\",G31=\"\",G32=\"\"),\"\",IF(G30>(0.005/100),\"E\",IF(AND(G30<=(0.005/100),G31>(5/100)),\"D\",IF(AND(G30<=(0.005/100),G31>(1/100)),\"C\",IF(AND(G30<=(0.001/100),G31<=(1/100),G32<=(0.04/100)),\"A\",IF(AND(G30<=(0.005/100),G31<=(1/100)),\"B\",\"B\"))))))","v":""}]
[null,"Obiettivo RQTI",{"$f":"IF(C33=\"A\",\"Mantenimento\",IF(C33=\"B\",\"-4% di M3b\",IF(C33=\"C\",\"-6% di M3b\",IF(C33=\"D\",\"-8% di M3b\",IF(C33=\"E\",\"-10% di M3b\",\"\")))))","v":""},{"$f":"IF(C33=\"A\",\"Mantenimento\",IF(C33=\"B\",\"-4% di M3b\",IF(C33=\"C\",\"-6% di M3b\",IF(C33=\"D\",\"-8% di M3b\",IF(C33=\"E\",\"-10% di M3b\",\"\")))))","v":""}]
[null,"Valore obiettivo M3a"]
[null,"Valore obiettivo M3b",{"$f":"IF(C33=\"A\",\"\",IF(C33=\"B\",C31-(0.04*C31),IF(C33=\"C\",C31-(0.06*C31),IF(C33=\"D\",C31-(0.08*C31),IF(C33=\"E\",C31-(0.1*C31),\"\")))))","v":""},{"$f":"IF(D33=\"A\",\"\",IF(D33=\"B\",D31-(0.04*D31),IF(D33=\"C\",D31-(0.06*D31),IF(D33=\"D\",D31-(0.08*D31),IF(D33=\"E\",D31-(0.1*D31),\"\")))))","v":""}]
[null,"Valore obiettivo M3c"]
[null,"Raggiungimento obiettivo",{"$nulls":4},{"$f":"IF(E33=\"\",\"\",IF(OR(AND(E33=\"A\",G33=\"A\"),AND(G83=\"SI\",E33<>\"A\",G30<=E30,G31<=E31)),\"SI\",\"NO\"))","v":""}]
[null,"Anno di riferimento per definizione obiettivi",{"$f":"$C$11","v":2023}]
["M4","Presenza prerequisitoPreq3M4",{"$nulls":4},{"$f":"'QT-Fognatura'!E16","v":""}]
[null,"Presenza prerequisito Preq4M4",{"$nulls":4},{"$f":"IF('QT-Fognatura'!E17=\"\",\"\",'QT-Fognatura'!E17)","v":""}]
[null,"M4a",null,{"$f":"IF(C45=\"\",\"\",IF(C45=\"E\",C47,C42))","v":""},{"$f":"IF(D45=\"\",\"\",IF(D45=\"E\",D47,D42))","v":""},null,{"$f":"IF('QT-Fognatura'!E28=\"\",\"\",'QT-Fognatura'!E28)","v":""}]
[null,"M4b",null,{"$f":"IF(C45=\"\",\"\",IF(OR(C45=\"C\",C45=\"D\"),C48,C43))","v":""},{"$f":"IF(D45=\"\",\"\",IF(OR(D45=\"C\",D45=\"D\"),D48,D43))","v":""},null,{"$f":"IF('QT-Fognatura'!E32=\"\",\"\",'QT-Fognatura'!E32)","v":""}]
[null,"M4c",null,{"$f":"IF(C45=\"\",\"\",IF(C45=\"B\",C49,C44))","v":""},{"$f":"IF(D45=\"\",\"\",IF(D45=\"B\",D49,D44))","v":""},null,{"$f":"IF('QT-Fognatura'!E36=\"\",\"\",'QT-Fognatura'!E36)","v":""}]
[null,"Classe",{"$f":"IF(C42=\"\",\"\",IF(AND(C42=\"\",C43=\"\",C44=\"\"),\"\",IF(C42>=5,\"E\",IF(AND(C42<1,C43=0,C44<=0.1),\"A\",IF(AND(C42<5,C43=0),\"B\",IF(AND(C42<5,C43<=0.2),\"C\",IF(AND(C42<5,C43>0.2),\"D\",\"\")))))))","v":""},{"$f":"IF(D42=\"\",\"\",IF(AND(D42=\"\",D43=\"\",D44=\"\"),\"\",IF(D42>=5,\"E\",IF(AND(D42<1,D43=0,D44<=0.1),\"A\",IF(AND(D42<5,D43=0),\"B\",IF(AND(D42<5,D43<=0.2),\"C\",IF(AND(D42<5,D43>0.2),\"D\",\"\")))))))","v":""},{"$f":"IF(E42=\"\",\"\",IF(AND(E42=\"\",E43=\"\",E44=\"\"),\"\",IF(E42>=5,\"E\",IF(AND(E42<1,E43=0,E44<=0.1),\"A\",IF(AND(E42<5,E43=0),\"B\",IF(AND(E42<5,E43<=0.2),\"C\",IF(AND(E42<5,E43>0.2),\"D\",\"\")))))))","v":""},null,{"$f":"IF(G42=\"\",\"\",IF(AND(G42=\"\",G43=\"\",G44=\"\"),\"\",IF(G42>=5,\"E\",IF(AND(G42<1,G43=0,G44<=0.1),\"A\",IF(AND(G42<5,G43=0),\"B\",IF(AND(G42<5,G43<=0.2),\"C\",IF(AND(G42<5,G43>0.2),\"D\",\"\")))))))","v":""}]
[null,"Obiettivo RQTI",{"$f":"IF(C45=\"E\",\"-10% di M4a\",IF(C45=\"D\",\"-10% di M4b\",IF(C45=\"C\",\"-7% di M4b\",IF(C45=\"B\",\"-5% di M4c\",IF(C45=\"A\",\"Mantenimento\",\"\")))))","v":""},{"$f":"IF(D45=\"E\",\"-10% di M4a\",IF(D45=\"D\",\"-10% di M4b\",IF(D45=\"C\",\"-7% di M4b\",IF(D45=\"B\",\"-5% di M4c\",IF(D45=\"A\",\"Mantenimento\",\"\")))))","v":""}]
[null,"Valore obiettivo M4a",{"$f":"IF(C45=\"E\",C42-(0.1*C42),\"\")","v":""},{"$f":"IF(D45=\"E\",D42-(0.1*D42),\"\")","v":""}]
[null,"Valore obiettivo M4b",{"$f":"IF(C45=\"D\",(1-0.1)*C43,IF(C45=\"C\",(1-0.07)*C43,\"\"))","v":""},{"$f":"IF(D45=\"D\",(1-0.1)*D43,IF(D45=\"C\",(1-0.07)*D43,\"\"))","v":""}]
[null,"Valore obiettivo M4c",{"$f":"IF(C45=\"B\",(1-0.05)*C44,\"\")","v":""},{"$f":"IF(D45=\"B\",(1-0.05)*D44,\"\")","v":""}]
[null,"Raggiungimento obiettivo",{"$nulls":4},{"$f":"IF(E45=\"\",\"\",IF(OR(AND(E45=\"A\",G45=\"A\"),AND(G84=\"SI\",E45<>\"A\",G42<=E42,G43<=E43,G44<=E44)),\"SI\",\"NO\"))","v":""}]
[null,"Anno di riferimento per definizione obiettivi",{"$f":"$C$11","v":2023}]
["M5","Presenza prerequisitoPreq3M5",{"$nulls":4},{"$f":"'QT-Depurazione'!E17","v":""}]
[null,"Presenza prerequisito Preq4M5",{"$nulls":4},{"$f":"IF('QT-Depurazione'!E18=\"\",\"\",'QT-Depurazione'!E18)","v":""}]
[null,"MFtq,disc (∑MFtq,disc,imp)",null,{"$f":"IF(C57=\"A\",C54,C59)","v":""},{"$f":"IF(D57=\"A\",D54,D59)","v":""},null,{"$f":"IF('QT-Depurazione'!E31=\"\",\"\",'QT-Depurazione'!E31)","v":""}]
[null,"%SStot",{"$nulls":4},{"$f":"IF('QT-Depurazione'!E32=\"\",\"\",'QT-Depurazione'!E32)","v":""}]
[null,"M5",{"$nulls":4},{"$f":"IF('QT-Depurazione'!E33=\"\",\"\",'QT-Depurazione'!E33)","v":""}]
[null,"Classe",{"$f":"IF(C56=\"\",\"\",IF(C56>0.3,\"E\",IF(AND(C56>0.2,C56<=0.3),\"D\",IF(AND(C56>0.1,C56<=0.2),\"C\",IF(AND(C56>0.03,C56<=0.1),\"B\",\"A\")))))","v":""},{"$f":"C57","v":""},{"$f":"D57","v":""},null,{"$f":"IF(G56=\"\",\"\",IF(G56>0.3,\"E\",IF(AND(G56>0.2,G56<=0.3),\"D\",IF(AND(G56>0.1,G56<=0.2),\"C\",IF(AND(G56>0.03,G56<=0.1),\"B\",\"A\")))))","v":""}]
[null,"Obiettivo RQTI",{"$f":"IF(C57=\"A\",\"Mantenimento\",IF(C57=\"B\",\"-1% di MF tq,disc\",IF(C57=\"C\",\"-2% di MF tq,disc\",IF(C57=\"D\",\"-3% di MF tq,disc\",IF(C57=\"E\",\"-5% di MF tq,disc\",\"\")))))","v":""},{"$f":"IF(D57=\"A\",\"Mantenimento\",IF(D57=\"B\",\"-1% di MF tq,disc\",IF(D57=\"C\",\"-2% di MF tq,disc\",IF(D57=\"D\",\"-3% di MF tq,disc\",IF(D57=\"E\",\"-5% di MF tq,disc\",\"\")))))","v":""}]
[null,"Valore obiettivo MFtq,disc ",{"$f":"IF(C57=\"A\",\"\",IF(C57=\"B\",C54-(0.01*C54),IF(C57=\"C\",C54-(0.02*C54),IF(C57=\"D\",C54-(0.03*C54),IF(C57=\"E\",C54-(0.05*C54),\"\")))))","v":""},{"$f":"IF(D57=\"A\",\"\",IF(D57=\"B\",D54-(0.01*D54),IF(D57=\"C\",D54-(0.02*D54),IF(D57=\"D\",D54-(0.03*D54),IF(D57=\"E\",D54-(0.05*D54),\"\")))))","v":""}]
[null,"Raggiungimento obiettivo",{"$nulls":4},{"$f":"IF(E57=\"\",\"\",IF(OR(AND(E57=\"A\",G57=\"A\"),AND(G85=\"SI\",E57<>\"A\",G54<=E54)),\"SI\",\"NO\"))","v":""}]
[null,"Anno di riferimento per definizione obiettivi",{"$f":"$C$11","v":2023}]
["M6","Presenza prerequisitoPreq3M6",{"$nulls":4},{"$f":"'QT-Depurazione'!E84","v":""}]
[null,"Presenza prerequisito Preq4M6",{"$nulls":4},{"$f":"IF('QT-Depurazione'!E85=\"\",\"\",'QT-Depurazione'!E85)","v":""}]
[null,"M6",null,{"$f":"IF(C65=\"A\",C64,C67)","v":""},{"$f":"IF(D65=\"A\",D64,D67)","v":""},null,{"$f":"IF('QT-Depurazione'!E122=\"\",\"\",'QT-Depurazione'!E122)","v":""}]
[null,"Classe",{"$f":"IF(C64=\"\",\"\",IF(C64>=(15/100),\"E\",IF(C64>=(10/100),\"D\",IF(C64>=(5/100),\"C\",IF(C64>=(1/100),\"B\",\"A\")))))","v":""},{"$f":"IF(D64=\"\",\"\",IF(D64>=(15/100),\"E\",IF(D64>=(10/100),\"D\",IF(D64>=(5/100),\"C\",IF(D64>=(1/100),\"B\",\"A\")))))","v":""},{"$f":"IF(E64=\"\",\"\",IF(E64>=(15/100),\"E\",IF(E64>=(10/100),\"D\",IF(E64>=(5/100),\"C\",IF(E64>=(1/100),\"B\",\"A\")))))","v":""},null,{"$f":"IF(G64=\"\",\"\",IF(G64>=(15/100),\"E\",IF(G64>=(10/100),\"D\",IF(G64>=(5/100),\"C\",IF(G64>=(1/100),\"B\",\"A\")))))","v":""}]
[null,"Obiettivo RQTI",{"$f":"IF(C65=\"A\",\"Mantenimento\",IF(C65=\"B\",\"-6% di M6\",IF(C65=\"C\",\"-10% di M6\",IF(C65=\"D\",\"-15% di M6\",IF(C65=\"E\",\"-20% di M6\",\"\")))))","v":""},{"$f":"IF(D65=\"A\",\"Mantenimento\",IF(D65=\"B\",\"-6% di M6\",IF(D65=\"C\",\"-10% di M6\",IF(D65=\"D\",\"-15% di M6\",IF(D65=\"E\",\"-20% di M6\",\"\")))))","v":""}]
[null,"Valore obiettivo M6",{"$f":"IF(C65=\"A\",\"\",IF(C65=\"B\",C64-(0.06*C64),IF(C65=\"C\",C64-(0.1*C64),IF(C65=\"D\",C64-(0.15*C64),IF(C65=\"E\",C64-(0.2*C64),\"\")))))","v":""},{"$f":"IF(D65=\"A\",\"\",IF(D65=\"B\",D64-(0.06*D64),IF(D65=\"C\",D64-(0.1*D64),IF(D65=\"D\",D64-(0.15*D64),IF(D65=\"E\",D64-(0.2*D64),\"\")))))","v":""}]
[null,"Raggiungimento obiettivo",{"$nulls":4},{"$f":"IF(E65=\"\",\"\",IF(OR(AND(E65=\"A\",G65=\"A\"),AND(E65<>\"A\",G64<=E64)),\"SI\",\"NO\"))","v":""}]
[null,"Anno di riferimento per definizione obiettivi",{"$f":"$C$11","v":2023}]
["RIU","Presenza prerequisitoPreq3M6",{"$f":"IF(C62=\"\",\"\",C62)","v":""},{"$nulls":3},{"$f":"'QT-Depurazione'!E84","v":""}]
[null,"Presenza prerequisito Preq4M6",{"$f":"IF(C63=\"\",\"\",C63)","v":""},{"$nulls":3},{"$f":"IF('QT-Depurazione'!E85=\"\",\"\",'QT-Depurazione'!E85)","v":""}]
[null,"RIU",null,null,{"$f":"C75","v":""},null,{"$f":"'QT-Depurazione'!E136","v":""}]
[null,"Classe",{"$f":"IF(C72=\"\",\"\",IF(C72<0.05,\"A\",IF(C72<=0.45,\"B\",IF(C72<=0.7,\"C\",\"D\"))))","v":""},null,{"$f":"IF(E72=\"\",\"\",IF(E72<0.05,\"A\",IF(E72<=0.45,\"B\",IF(E72<=0.7,\"C\",\"D\"))))","v":""},null,{"$f":"IF(G72=\"\",\"\",IF(G72<0.05,\"A\",IF(G72<=0.45,\"B\",IF(G72<=0.7,\"C\",\"D\"))))","v":""}]
[null,"Obiettivo MTI-4",{"$f":"IF(C73=\"\",\"\",IF(C73=\"A\",\"RIU_2023\",IF(C73=\"B\",\"RIU_2023-0,02\",IF(C73=\"C\",\"RIU_2023-0,05\",\"RIU_2023-0,1\"))))","v":""}]
[null,"Valore obiettivo RIU",{"$f":"IF(C73=\"\",\"\",IF(C73=\"A\",C72,IF(C73=\"B\",C72-0.02,IF(C73=\"C\",C72-0.05,C72-0.1))))","v":""}]
[null,"Raggiungimento obiettivo",{"$nulls":4},{"$f":"IF(E73=\"\",\"\",IF(OR(AND(E73=\"A\",G73=\"A\"),AND(E73<>\"A\",G72<=E72)),\"SI\",\"NO\"))","v":""}]
[null,"Anno di riferimento per definizione obiettivi",{"$f":"$C$11","v":2023}]
[]
[{"$nulls":3},"Verifica mancato peggioramento classe"]
[{"$nulls":5},2024,2025]
[{"$nulls":3},"M0",null,null,{"$f":"IF(OR(E7=\"\",G7=\"\"),\"\",IF(AND(E7=\"A\",G7<>\"A\"),\"NO\",IF(AND(E7=\"B\",OR(G7=\"C\",G7=\"D\",G7=\"E\")),\"NO\",IF(AND(E7=\"C\",OR(G7=\"D\",G7=\"E\")),\"NO\",IF(AND(E7=\"D\",G7=\"E\"),\"NO\",\"SI\")))))","v":""}]
[{"$nulls":3},"M1",null,null,{"$f":"IF(OR(E16=\"\",G16=\"\"),\"\",IF(AND(E16=\"A\",G16<>\"A\"),\"NO\",IF(AND(E16=\"B\",OR(G16=\"C\",G16=\"D\",G16=\"E\")),\"NO\",IF(AND(E16=\"C\",OR(G16=\"D\",G16=\"E\")),\"NO\",IF(AND(E16=\"D\",G16=\"E\"),\"NO\",\"SI\")))))","v":""}]
[{"$nulls":3},"M3",null,null,{"$f":"IF(OR(E33=\"\",G33=\"\"),\"\",IF(AND(E33=\"A\",G33<>\"A\"),\"NO\",IF(AND(E33=\"B\",OR(G33=\"C\",G33=\"D\",G33=\"E\")),\"NO\",IF(AND(E33=\"C\",OR(G33=\"D\",G33=\"E\")),\"NO\",IF(AND(E33=\"D\",G33=\"E\"),\"NO\",\"SI\")))))","v":""}]
[{"$nulls":3},"M4",null,null,{"$f":"IF(OR(E45=\"\",G45=\"\"),\"\",IF(AND(E45=\"A\",G45<>\"A\"),\"NO\",IF(AND(E45=\"B\",OR(G45=\"C\",G45=\"D\",G45=\"E\")),\"NO\",IF(AND(E45=\"C\",OR(G45=\"D\",G45=\"E\")),\"NO\",IF(AND(E45=\"D\",G45=\"E\"),\"NO\",\"SI\")))))","v":""}]
[{"$nulls":3},"M5",null,null,{"$f":"IF(OR(E57=\"\",G57=\"\"),\"\",IF(AND(E57=\"A\",G57<>\"A\"),\"NO\",IF(AND(E57=\"B\",OR(G57=\"C\",G57=\"D\",G57=\"E\")),\"NO\",IF(AND(E57=\"C\",OR(G57=\"D\",G57=\"E\")),\"NO\",IF(AND(E57=\"D\",G57=\"E\"),\"NO\",\"SI\")))))","v":""}]
{"$rows_empty":8}
[{"$nulls":3},"Adeguato"]
[{"$nulls":3},"Non adeguato"]
[{"$nulls":3},"SI"]
[{"$nulls":3},"NO"]

{"sheet":"TT_Gestori-ATO","index":7,"n_rows":1882,"n_cols":9,"rows_kept":1882,"hidden":true}
[{"$nulls":8},"aggiornata 16/02/2026"]
[null,"ID ATO","ATO",null,null,"ID ARERA Gestore","GESTORE"]
[null,101,"ATO 1 - VERBANO-CUSIO-OSSOLA E PIANURA NOVARESE",null,null,5,"AZIENDA PUBBLISERVIZI BRUNICO"]
[null,102,"ATO 2 - BIELLESE, VERCELLESE, CASALESE",null,null,52,"SOGIP S.R.L."]
[null,103,"ATO 3 - TORINO",null,null,55,"COMUNE DI VERMIGLIO"]
[null,104,"ATO 4 - CUNEO",null,null,78,"Comune di Castello - Molina di Fiemme"]
[null,105,"ATO 5 - ASTIGIANO, MONFERRATO",null,null,79,"COMUNE DI CAVALESE"]
[null,106,"ATO 6 - ALESSANDRIA",null,null,183,"COMUNE DI PARCINES"]
[null,201,"ATO VALLE D'AOSTA",null,null,188,"COMUNE DI BARETE"]
[null,301,"ATO BG - BERGAMO",null,null,199,"COMUNE DI PALU' DEL FERSINA"]
[null,302,"ATO BS - BRESCIA",null,null,201,"COMUNE DI BESENELLO"]
[null,304,"ATO CO - COMO",null,null,206,"COMUNE DI FAI DELLA PAGANELLA"]
[null,305,"ATO CR - CREMONA",null,null,230,"A.S.SE.M. SPA"]
[null,306,"ATO LC - LECCO",null,null,245,"COMUNE DI AVIO"]
[null,307,"ATO LO - LODI",null,null,258,"COMUNE DI ANVERSA DEGLI ABRUZZI"]
[null,308,"ATO MI - Città Metropolitana di Milano",null,null,259,"COMUNE DI CASTIGLIONE DI SICILIA"]
[null,309,"ATO MN - MANTOVA",null,null,298,"COMUNE DI MALE'"]
[null,310,"ATO PV - PAVIA",null,null,308,"VIVA Servizi SpA"]
[null,311,"ATO SO - SONDRIO",null,null,314,"COMUNE DI FRANCAVILLA DI SICILIA"]
[null,312,"ATO VA - VARESE",null,null,335,"AMEA S.P.A."]
[null,313,"ATO MB - MONZA E DELLA BRIANZA",null,null,349,"COMUNE DI CASTEL DEL MONTE"]
[null,401,"ATO NL - TRENTO",null,null,371,"COMUNE DI VALPRATO SOANA"]
[null,402,"ATO BOLZANO",null,null,424,"AMAMBIENTE"]
[null,403,"ATO PUSTERIA",null,null,436,"SEAB - SERVIZI ENERGIA AMBIENTE BOLZANO S.P.A. / SEAB - ENERGIE- UMWELTBETRIEBE BOZEN A.G."]
[null,404,"ATO VAL VENOSTA",null,null,464,"ASET S.P.A."]
[null,405,"ATO VALLE ISARCO",null,null,542,"COMUNE DI ANDALO"]
[null,501,"ATO AV - ALTO VENETO",null,null,544,"Comune di Corvara in Badia"]
[null,502,"ATO B - BACCHIGLIONE",null,null,583,"COMUNE DI TIRES"]
[null,503,"ATO BR - BRENTA",null,null,630,"ACQUE DEL CHIAMPO S.P.A. SOCIETA' BENEFIT"]
[null,504,"ATO LV - LAGUNA DI VENEZIA",null,null,650,"COMUNE DI MOLVENO"]
[null,505,"ATO P - POLESINE",null,null,692,"SERVIZI INTEGRATI BELLUNESI SPA"]
[null,506,"ATO V - VERONA",null,null,759,"A.S.A. - AZIENDA SERVIZI AMBIENTALI SPA"]
[null,507,"ATO VC - VALLE DEL CHIAMPO",null,null,779,"COMUNE DI SLUDERNO"]
[null,508,"ATO VO - VENETO ORIENTALE",null,null,780,"ASM TIONE - AZIENDA SERVIZI MUNICIPALIZZATI"]
[null,605,"ATO Friuli-Venezia Giulia",null,null,805,"Gemeinde Sterzing / Comune di Vipiteno"]
[null,701,"ATO Centro-Est (GENOVA)",null,null,815,"COMUNE DI JELSI"]
[null,702,"ATO Ovest (IMPERIA)",null,null,841,"HERA S.P.A."]
[null,703,"ATO Est (LA SPEZIA)",null,null,926,"AcegasApsAmga S.p.A."]
[null,705,"ATO Centro-Ovest 1 (SAVONA)",null,null,927,"ALTO GARDA SERVIZI SPA"]
[null,706,"ATO Centro-Ovest 2 (SAVONA)",null,null,990,"ASM VERCELLI SPA"]
[null,801,"ATO 1 - PIACENZA",null,null,992,"NOVARETI SPA"]
[null,802,"ATO 2 - PARMA",null,null,1042,"Comune di Nalles"]
[null,803,"ATO 3 - REGGIO NELL'EMILIA",null,null,1045,"ASTEA SPA"]
[null,804,"ATO 4 - MODENA",null,null,1090,"AIMAG S.P.A."]
[null,805,"ATO 5 - BOLOGNA",null,null,1161,"VALLE UMBRA SERVIZI S.P.A."]
[null,806,"ATO 6 - FERRARA",null,null,1188,"ATAC CIVITANOVA SPA"]
[null,807,"ATO 7 - RAVENNA",null,null,1211,"COMUNE DI VEZZA D'OGLIO"]
[null,808,"ATO 8 - FORLI'-CESENA",null,null,1218,"LARIO RETI HOLDING"]
[null,809,"ATO 9 - RIMINI",null,null,1226,"Comune di Predazzo"]
[null,901,"ATO 1 - TOSCANA NORD",null,null,1234,"COMUNE DI ISERA"]
[null,902,"ATO 2 - BASSO VALDARNO (PISA)",null,null,1280,"Marche Multiservizi S.p.A."]
[null,903,"ATO 3 - MEDIO VALDARNO (FIRENZE)",null,null,1300,"ACQUAMBIENTE MARCHE SRL"]
[null,904,"ATO 4 - ALTO VALDARNO (AREZZO)",null,null,1301,"COMUNE DI OSSANA"]
[null,905,"ATO 5 - TOSCANA COSTA",null,null,1310,"COMUNE DI FROSOLONE"]
[null,906,"ATO 6 - OMBRONE (GROSSETO)",null,null,1330,"COMUNE DI VANDOIES"]
[null,1001,"ATI 1 e 2 - Ambito 1 e Ambito 2",null,null,1343,"ASM Bressanone SpA"]
[null,1002,"ATI 3 - Ambito 3",null,null,1348,"S.EC.AM. S.P.A."]
[null,1003,"ATI 4 - Ambito 4",null,null,1352,"COMUNE DI SANT'ORSOLA TERME"]
[null,1101,"ATO 1 - MARCHE NORD PESARO E URBINO",null,null,1362,"COMUNE DI CALDES"]
[null,1102,"ATO 2 - MARCHE CENTRO ANCONA",null,null,1373,"COMUNE DI CURON VENOSTA"]
[null,1103,"ATO 3 - MARCHE CENTRO MACERATA",null,null,1391,"COMUNE DI PACENTRO"]
[null,1104,"ATO 4 - MARCHE SUD ALTO PICENO MACERATESE",null,null,1392,"A.S.S.M. S.P.A. - TOLENTINO"]
[null,1105,"ATO 5 - MARCHE SUD ASCOLI PICENO",null,null,1417,"AIR AZIENDA INTERCOMUNALE ROTALIANA S.P.A. SOCIETÀ BENEFIT"]
[null,1201,"ATO 1 - LAZIO NORD VITERBO",null,null,1439,"PADANIA ACQUE S.P.A."]
[null,1202,"ATO 2 - LAZIO CENTRALE ROMA",null,null,1440,"RUZZO RETI SPA"]
[null,1203,"ATO 3 - LAZIO CENTRALE RIETI",null,null,1531,"COMUNE DI CAMPO TURES"]
[null,1204,"ATO 4 - LAZIO MERIDIONALE LATINA",null,null,1657,"A.S.P. S.P.A."]
[null,1205,"ATO 5 - LAZIO MERIDIONALE FROSINONE",null,null,1699,"Comune di Molini di Triora"]
[null,1301,"ATO 1 - AQUILANO",null,null,1704,"SOLOFRA SERVIZI SpA"]
[null,1302,"ATO 2 - MARSICANO",null,null,1761,"ACOSET"]
[null,1303,"ATO 3 - PELIGNO ALTO SANGRO",null,null,1791,"Comune di Rio di Pusteria"]
[null,1304,"ATO 4 - PESCARA",null,null,1812,"COMUNE DI USSITA"]
[null,1305,"ATO 5 - TERAMO",null,null,1874,"COMUNE DI FIUMEFREDDO DI SICILIA"]
[null,1306,"ATO 6 - CHIETI",null,null,1879,"COMUNE DI ROCCA PIA"]
[null,1401,"ATO MOLISE",null,null,1905,"COMUNE DI CLES"]
[null,1502,"AMBITO DISTRETTUALE NAPOLI",null,null,1914,"COMUNE DI PERDIFUMO"]
[null,1503,"AMBITO DISTRETTUALE SELE",null,null,1927,"COMUNE DI MALLES VENOSTA"]
[null,1504,"AMBITO DISTRETTUALE SARNESE-VESUVIANO",null,null,1953,"COMUNE DI RONCOBELLO"]
[null,1505,"AMBITO DISTRETTUALE CASERTA - TERRA DI LAVORO",null,null,1976,"COMUNE DI SAN GIULIANO DI PUGLIA"]
[null,1506,"ATO - Distretto Irpino",null,null,1988,"COMUNE DI RICCIA"]
[null,1507,"ATO - Distretto Sannita",null,null,2136,"COMUNE DI CHAMPDEPRAZ"]
[null,1601,"ATO PUGLIA",null,null,2149,"Comune di Cornedo all'Isarco"]
[null,1701,"ATO BASILICATA",null,null,2189,"VERITAS SPA"]
[null,1806,"ATO UNICO REGIONE CALABRIA",null,null,2323,"Comune di Moso in Passiria"]
[null,1901,"ATO 1 - PALERMO",null,null,2325,"COMUNE DI PERCA"]
[null,1902,"ATO 2 - CATANIA",null,null,2326,"Gemeinde St. Leonhard in Passeier / Comune di San Leonardo in Passiria"]
[null,1903,"ATO 3 - MESSINA",null,null,2332,"Gemeinde Luesen / Comune di Luson"]
[null,1904,"ATO 4 - RAGUSA",null,null,2333,"Comune di San Rufo"]
[null,1905,"ATO 5 - ENNA",null,null,2572,"comune di Rasun-Anterselva"]
[null,1906,"ATO 6 - CALTANISSETTA",null,null,2872,"COMUNE DI BASELGA DI PINE'"]
[null,1907,"ATO 7 - TRAPANI",null,null,2886,"COMUNE DI CARISOLO"]
[null,1908,"ATO 8 - SIRACUSA",null,null,2937,"SOCIETA' METROPOLITANA ACQUE TORINO"]
[null,1909,"ATO 9 - AGRIGENTO",null,null,2946,"COMUNE DI MENDATICA"]
[null,2001,"ATO SARDEGNA",null,null,2958,"Comune Città di Glorenza"]
[{"$nulls":5},2967,"ETRA SPA"]
[{"$nulls":5},2982,"Lereti S.p.A."]
[{"$nulls":5},2997,"COMUNE DI TESERO"]
[{"$nulls":5},3045,"IRETI S.p.A."]
[{"$nulls":5},3061,"Comunità Comprensoriale Val Venosta"]
[{"$nulls":5},3125,"ACQUEDOTTO PUGLIESE SPA"]
[{"$nulls":5},3299,"A2A CICLO IDRICO"]
[{"$nulls":5},3548,"Gemeinde Terlan / Comune di Terlano"]
[{"$nulls":5},3577,"Comune di Chiusa"]
[{"$nulls":5},3659,"Comune di Chienes"]
[{"$nulls":5},3714,"COMUNE DI LACES"]
[{"$nulls":5},3720,"COMUNE DI SARENTINO"]
[{"$nulls":5},3733,"Iren Acqua S.p.A."]
[{"$nulls":5},3913,"CONSORZIO PER L'ACQUEDOTTO DI AZZON"]
[{"$nulls":5},4080,"Comune di Marlengo"]
[{"$nulls":5},4082,"Comune di Verano"]
[{"$nulls":5},4717,"Comune di Naz-Sciaves"]
[{"$nulls":5},4917,"Comune di Scena"]
[{"$nulls":5},5093,"Comune di Lagundo"]
[{"$nulls":5},5096,"Comune di Lasa"]
[{"$nulls":5},5098,"Comune di Lana"]
[{"$nulls":5},5156,"GEMEINDE JENESIEN / COMUNE DI SAN GENESIO ATESINO"]
[{"$nulls":5},5452,"Gemeinde Villnöß / Comune di Funes"]
[{"$nulls":5},5461,"Comune di Appiano sulla Strada del Vino"]
[{"$nulls":5},5462,"Comune di Terento"]
[{"$nulls":5},5516,"COMUNE DI CASTELLO TESINO"]
[{"$nulls":5},5657,"COMUNE DI MIGNANO MONTE LUNGO"]
[{"$nulls":5},6188,"COMUNE DI GROTTE DI CASTRO"]
[{"$nulls":5},6618,"COMUNE DI PESCOPENNATARO"]
[{"$nulls":5},7331,"CO.R.D.A.R. VALSESIA spa"]
[{"$nulls":5},7345,"ACQUEDOTTO VALTIGLIONE S.P.A."]
[{"$nulls":5},7373,"ENERGIA VERDE ED IDRICA S.P.A."]
[{"$nulls":5},7379,"COMUNE DI ACI CASTELLO"]
[{"$nulls":5},7381,"GESTIONE ACQUA SPA"]
[{"$nulls":5},7396,"IRISACQUA SRL"]
[{"$nulls":5},7462,"UNIACQUE SPA"]
[{"$nulls":5},7473,"Comune di Cerveno"]
[{"$nulls":5},7534,"SERVIZIO IDRICO INTEGRATO S.C.p.A."]
[{"$nulls":5},7608,"SERVIZI IDRICI ETNEI S.P.A"]
[{"$nulls":5},7700,"C.A.D.F. S.p.A."]
[{"$nulls":5},7702,"Consac Gestioni Idriche S.p.a."]
[{"$nulls":5},7725,"Gestione Servizi Sannio - GE.SE.SA."]
[{"$nulls":5},7778,"SACA SERVIZI AMBIENTALI CENTRO ABRUZZO"]
[{"$nulls":5},7942,"Acque di Casalotto S.p.A."]
[{"$nulls":5},8051,"CONSORZIO ACQUEDOTTISTICO MARSICANO SPA"]
[{"$nulls":5},8054,"Umbra Acque S.p.A."]
[{"$nulls":5},8092,"SORGEAQUA S.R.L."]
[{"$nulls":5},8241,"ACQUE CARCACI DEL FASANO SPA"]
[{"$nulls":5},8246,"AZIENDA GARDESANA SERVIZI SPA"]
[{"$nulls":5},8294,"VALLE ORBA DEPURAZIONE S.R.L."]
[{"$nulls":5},8302,"COMUNI RIUNITI BELFORTE MONFERRATO SRL"]
[{"$nulls":5},9039,"A.M.A. S.p.A."]
[{"$nulls":5},9229,"EMILIAMBIENTE"]
[{"$nulls":5},9253,"CORDAR SPA BIELLA SERVIZI"]
[{"$nulls":5},9369,"GRAN SASSO ACQUA S.P.A."]
[{"$nulls":5},9768,"AUSINO S.P.A"]
[{"$nulls":5},9844,"ASIS SALERNITANA RETI E IMPIANTI S.P.A."]
[{"$nulls":5},9907,"Comune di Capracotta"]
[{"$nulls":5},9909,"Acque S.p.A."]
[{"$nulls":5},10042,"G.E.A.L. S.P.A. Gestione esercizio acquedotti Lucchesi"]
[{"$nulls":5},10202,"GORI S.p.A."]
[{"$nulls":5},10468,"Realizzazione e gestione servizi pubblici locali spa, per brevità COGEIDE spa"]
[{"$nulls":5},10612,"acquevenete spa"]
[{"$nulls":5},10626,"ABM NEXT SRL"]
[{"$nulls":5},11605,"MONTAGNA2000"]
[{"$nulls":5},12341,"BRIANZACQUE SRL"]
[{"$nulls":5},12577,"COMUNE DI SANT'ARSENIO"]
[{"$nulls":5},12617,"AQUA SEPRIO SERVIZI SRL"]
[{"$nulls":5},12619,"Azienda Servizi Municipalizzati di Merano Spa"]
[{"$nulls":5},12622,"COMUNE DI FOSSALTO"]
[{"$nulls":5},12701,"ACEA MOLISE SRL"]
[{"$nulls":5},12732,"Acque Veronesi s.c. a r.l."]
[{"$nulls":5},12786,"comune di monteroduni"]
[{"$nulls":5},12790,"ACQUA NOVARA.VCO S.P.A."]
[{"$nulls":5},12816,"CAFC S.p.A."]
[{"$nulls":5},12850,"COMUNE DI SCILLATO"]
[{"$nulls":5},12856,"COMUNE DI PESCHE"]
[{"$nulls":5},12859,"Comune di Carlentini"]
[{"$nulls":5},12905,"ALPI ACQUE"]
[{"$nulls":5},12911,"ALTA LANGA SERVIZI S.P.A."]
[{"$nulls":5},12929,"A.C.Q.U.A. V.I.T.A.N.A."]
[{"$nulls":5},12936,"COMUNE DI CORTENO GOLGI"]
[{"$nulls":5},12938,"EGEA ACQUE S.P.A."]
[{"$nulls":5},13014,"Comune di Castello di Annone"]
[{"$nulls":5},13117,"Idrablu"]
[{"$nulls":5},13146,"HydroGEA spa"]
[{"$nulls":5},13186,"COMUNE DI POGGIO SANNITA"]
[{"$nulls":5},13189,"CONSORZIO DEI COMUNI PER L'ACQUEDOTTO DEL MONFERRATO"]
[{"$nulls":5},13224,"COMUNE DI VASTOGIRARDI"]
[{"$nulls":5},13325,"A.P.M. SPA AZIENDA PLURISERVIZI MACERATA"]
[{"$nulls":5},13395,"COMUNE DI AGNONE"]
[{"$nulls":5},13397,"E.G.U.A. S.r.l."]
[{"$nulls":5},13500,"MONDO ACQUA"]
[{"$nulls":5},13511,"AZIENDA SPECIALE TOANO"]
[{"$nulls":5},13533,"COMUNE DI MOTTA SANT'ANASTASIA"]
[{"$nulls":5},13573,"nuove acque spa"]
[{"$nulls":5},13583,"Comune di Colletorto"]
[{"$nulls":5},13599,"Comune di SAN MARTINO IN PENSILIS"]
[{"$nulls":5},13627,"SOGEA Srl"]
[{"$nulls":5},13629,"COMUNE DI DURONIA"]
[{"$nulls":5},13634,"COMUNE DI GAMBATESA"]
[{"$nulls":5},13636,"Lamezia Multiservizi S.p.A."]
[{"$nulls":5},13645,"LARIANA DEPUR"]
[{"$nulls":5},13649,"AMAP Spa"]
[{"$nulls":5},13652,"AZIENDA SPECIALE COMUNI RIUNITI"]
[{"$nulls":5},13654,"Acquedotto della Piana S.p.A."]
[{"$nulls":5},13656,"ACQUEDOTTO DEL FIORA SPA"]
[{"$nulls":5},13659,"Comune di Ceto"]
[{"$nulls":5},13660,"GEMEINDE WELSCHNOFEN / COMUNE DI NOVA LEVANTE"]
[{"$nulls":5},13662,"GAIA SPA"]
[{"$nulls":5},13664,"SEBINO SERVIZI SRL"]
[{"$nulls":5},13688,"COMUNE DI CAMPOCHIARO"]
[{"$nulls":5},13691,"CIIP Cicli Integrati Impianti Primari S.p.A."]
[{"$nulls":5},13692,"COMUNE DI LIZZANO IN BELVEDERE"]
[{"$nulls":5},13700,"COMUNE DI MONTEFALCONE NEL SANNIO"]
[{"$nulls":5},13702,"Comune di Sortino"]
[{"$nulls":5},13704,"Comune di San Felice del Molise"]
[{"$nulls":5},13707,"COMUNE DI MAFALDA"]
[{"$nulls":5},13708,"Comune Costa Vescovato"]
[{"$nulls":5},13712,"COMUNE DI SAN MANGO SUL CALORE"]
[{"$nulls":5},13725,"CONSORZIO PER LA DEPURAZIONE DELLE ACQUE DI SCARICO DEL SAVONESE S.P.A."]
[{"$nulls":5},13744,"PUBLIACQUA"]
[{"$nulls":5},13749,"COMUNE DI CAPRIGLIA IRPINA"]
[{"$nulls":5},13752,"ACQUE AURORA S.R.L."]
[{"$nulls":5},13756,"COMUNE DI PIETRELCINA"]
[{"$nulls":5},13757,"COMUNE DI PIANCOGNO"]
[{"$nulls":5},13761,"ACQUALATINA SPA"]
[{"$nulls":5},13763,"COMUNE DI GROTTOLELLA"]
[{"$nulls":5},13764,"COMUNE DI TRIVENTO"]
[{"$nulls":5},13781,"COMUNE DI PENTONE"]
[{"$nulls":5},13782,"COMUNE DI TAVENNA"]
[{"$nulls":5},13792,"COMUNE DI CIVIASCO"]
[{"$nulls":5},13795,"COMUNE DI ACQUAVIVA COLLECROCE"]
[{"$nulls":5},13800,"MM S.P.A."]
[{"$nulls":5},13805,"ACEA ATO 5 SPA"]
[{"$nulls":5},13809,"ACQUAENNA S.C.P.A."]
[{"$nulls":5},13818,"Comune di ROTONDI"]
[{"$nulls":5},13820,"COMUNE DI SAN GREGORIO MAGNO"]
[{"$nulls":5},13836,"COMUNE DI CASTELMAURO"]
[{"$nulls":5},13841,"COMUNE DI AOSTA"]
[{"$nulls":5},13871,"A.C.A. S.P.A. IN HOUSE PROVIDING"]
[{"$nulls":5},13874,"COMUNE DI PIETRARUBBIA"]
[{"$nulls":5},13901,"COMUNE DI PETTORANELLO DEL MOLISE"]
[{"$nulls":5},13908,"MEDIO CHIAMPO SPA"]
[{"$nulls":5},13918,"COMUNE DI VOLTAGGIO"]
[{"$nulls":5},13925,"COMUNE DI ARNAD"]
[{"$nulls":5},13931,"Comune di Quart"]
[{"$nulls":5},13941,"I.T.L. Spa"]
[{"$nulls":5},13968,"COMUNE DI FIASTRA"]
[{"$nulls":5},13981,"Unité des Communes Valdôtaines Grand-Paradis"]
[{"$nulls":5},13989,"ACEA ATO2 S.P.A."]
[{"$nulls":5},13991,"COMUNE DI CALASCIO"]
[{"$nulls":5},14001,"COMUNE DI VALLEDOLMO"]
[{"$nulls":5},14027,"COMUNE DI TEMU'"]
[{"$nulls":5},14033,"COMUNE DI PALAZZOLO ACREIDE"]
[{"$nulls":5},14045,"PAVIA ACQUE S.C.A.R.L."]
[{"$nulls":5},14097,"IDRICA"]
[{"$nulls":5},14099,"COMUNE DI PETACCIATO"]
[{"$nulls":5},14105,"Acquedotto Consortile Biviere"]
[{"$nulls":5},14108,"AM.TER S.p.A."]
[{"$nulls":5},14139,"COMUNE DI SAINT-OYEN"]
[{"$nulls":5},14143,"Comune di Rosolini"]
[{"$nulls":5},14145,"COMUNE DI SEPINO"]
[{"$nulls":5},14148,"BUCARO GIUSEPPE E C. S.R.L."]
[{"$nulls":5},14150,"TENNACOLA SPA"]
[{"$nulls":5},14151,"Iren Acqua Tigullio S.p.A."]
[{"$nulls":5},14157,"Comune di Santa Maria Capua Vetere"]
[{"$nulls":5},14159,"Viacqua S.p.A."]
[{"$nulls":5},14167,"CIRONE DOMENICO & C. SAS"]
[{"$nulls":5},14168,"SOGEA srl"]
[{"$nulls":5},14172,"Acam Acque SpA"]
[{"$nulls":5},14177,"CAP HOLDING S.P.A"]
[{"$nulls":5},14188,"COMUNE DI ROCCAVIVARA"]
[{"$nulls":5},14190,"COMUNE DI CAPRAROLA"]
[{"$nulls":5},14195,"Comune di Buscemi"]
[{"$nulls":5},14196,"Comune di Etroubles"]
[{"$nulls":5},14197,"Acquedotti Ing. Sarino Pavone S.p.A."]
[{"$nulls":5},14198,"Comune di Strembo"]
[{"$nulls":5},14199,"Comune di Bocenago"]
[{"$nulls":5},14200,"Comune di Massimeno"]
[{"$nulls":5},14209,"Sorical"]
[{"$nulls":5},14211,"ALTO TREVIGIANO SERVIZI S.P.A."]
[{"$nulls":5},14212,"ACQUEDOTTO ROCCA ROSSA S.R.L."]
[{"$nulls":5},14216,"COMUNE DI VENAFRO"]
[{"$nulls":5},14223,"COMUNE DI AYMAVILLES"]
[{"$nulls":5},14226,"Comune di Cassaro"]
[{"$nulls":5},14230,"COMUNE DI SALCITO"]
[{"$nulls":5},14231,"COMUNE DI ALLEIN"]
[{"$nulls":5},14234,"COMUNE DI CADERZONE TERME"]
[{"$nulls":5},14236,"COMUNE DI SAINT-RHEMY-EN-BOSSES"]
[{"$nulls":5},14252,"COMUNE DI GRESSAN"]
[{"$nulls":5},14254,"comune di saint-marcel"]
[{"$nulls":5},14261,"COMUNE DI VILLENEUVE"]
[{"$nulls":5},14262,"COMUNE DI LA SALLE"]
[{"$nulls":5},14265,"COMUNE DI SAVIGNANO IRPINO"]
[{"$nulls":5},14267,"Acquedotto San Lazzaro S.p.A."]
[{"$nulls":5},14276,"COMUNE DI SAINT-DENIS"]
[{"$nulls":5},14278,"SO.GE.A. S.R.L. SOCIETA' GESTIONE ACQUEDOTTI"]
[{"$nulls":5},14284,"SE.I.DA. Servizi Idrici ed Ambientali S.r.l."]
[{"$nulls":5},14286,"comune di scontrone"]
[{"$nulls":5},14296,"Acquedotti Scpa"]
[{"$nulls":5},14299,"COMUNE DI TERZOLAS"]
[{"$nulls":5},14300,"Ottogas Srl"]
[{"$nulls":5},14306,"COMUNE DI RONZO-CHIENIS"]
[{"$nulls":5},14307,"Comune di Soraga di Fassa"]
[{"$nulls":5},14309,"COMUNE DI LIVO"]
[{"$nulls":5},14316,"COMUNE DI PEIO"]
[{"$nulls":5},14317,"COMUNE DI CAVEDAGO"]
[{"$nulls":5},14323,"COMUNE DI CHIUSANO DI SAN DOMENICO"]
[{"$nulls":5},14345,"COMUNE DI MONTENERO VAL COCCHIARA"]
[{"$nulls":5},14346,"Comune di Incudine"]
[{"$nulls":5},14348,"COMUNE DI CANAL SAN BOVO"]
[{"$nulls":5},14350,"COMUNE DI SANZENO"]
[{"$nulls":5},14351,"Comune di Pelugo"]
[{"$nulls":5},14353,"REGIONE CAMPANIA"]
[{"$nulls":5},14361,"ING. ANTONIO FIORE E C."]
[{"$nulls":5},14365,"ABC Acqua Bene Comune Napoli a.s."]
[{"$nulls":5},14368,"Comune di Pollein"]
[{"$nulls":5},14370,"COMUNE DI CIMONE"]
[{"$nulls":5},14378,"COMUNE DI PANCHIA'"]
[{"$nulls":5},14379,"COMUNE DI SPORMAGGIORE"]
[{"$nulls":5},14382,"ALTO CALORE SERVIZI S.P.A."]
[{"$nulls":5},14391,"COMUNE DI MONNO"]
[{"$nulls":5},14393,"Comune di Dambel"]
[{"$nulls":5},14398,"Comune di Monte San Giacomo"]
[{"$nulls":5},14399,"COMUNE DI MEZZANA"]
[{"$nulls":5},14400,"COMUNE DI FIEROZZO / GAMOA' VA VLAROTZ"]
[{"$nulls":5},14409,"comune di campagna"]
[{"$nulls":5},14410,"COMUNE DI BUONABITACOLO"]
[{"$nulls":5},14411,"COMUNE DI CALDONAZZO"]
[{"$nulls":5},14412,"COMUNE DI BONEFRO"]
[{"$nulls":5},14420,"COMUNE DI TORELLA DEL SANNIO"]
[{"$nulls":5},14424,"Ente Acquedotti Siciliani in liquidazione coatta amministrativa"]
[{"$nulls":5},14425,"Comune di Carrosio"]
[{"$nulls":5},14428,"Comune di Sanza"]
[{"$nulls":5},14429,"COMUNE DI RIGNANO FLAMINIO"]
[{"$nulls":5},14435,"ABBANOA SPA"]
[{"$nulls":5},14446,"COMUNE DI SFRUZ"]
[{"$nulls":5},14460,"COMUNE DI BONDONE"]
[{"$nulls":5},14482,"COMUNE DI LIPARI"]
[{"$nulls":5},14487,"comune di pantelleria"]
[{"$nulls":5},14488,"COMUNE DI TERRAGNOLO"]
[{"$nulls":5},14514,"comune di torre bormida"]
[{"$nulls":5},14517,"COMUNE DI CARZANO"]
[{"$nulls":5},14519,"COMUNE DI RUMO"]
[{"$nulls":5},14530,"COMUNE DI TRAMBILENO"]
[{"$nulls":5},14531,"COMUNE DI VIGNOLA FALESINA"]
[{"$nulls":5},14534,"COMUNE DI RUFFRE' MENDOLA"]
[{"$nulls":5},14552,"COMUNE DI PINZOLO"]
[{"$nulls":5},14553,"COMUNE DI GIOVO"]
[{"$nulls":5},14562,"COMUNE DI FERRAZZANO"]
[{"$nulls":5},14564,"COMUNE DI FIAVE'"]
[{"$nulls":5},14600,"COMUNE DI CAPRIANA"]
[{"$nulls":5},14611,"COMUNE DI CALCERANICA AL LAGO"]
[{"$nulls":5},14618,"COMUNE DI MONTEMITRO"]
[{"$nulls":5},14630,"COMUNE DI GIUSTINO"]
[{"$nulls":5},14639,"COMUNE DI SEGONZANO"]
[{"$nulls":5},14644,"Comune di Silandro"]
[{"$nulls":5},14666,"COMUNE DI SCURELLE"]
[{"$nulls":5},14717,"COMUNE DI TELVE"]
[{"$nulls":5},14772,"COMUNE DI CINTE TESINO"]
[{"$nulls":5},14782,"COMUNE DI CAVEDINE"]
[{"$nulls":5},14814,"Comune di Macchia d'Isernia"]
[{"$nulls":5},14828,"COMUNE DI COGNE"]
[{"$nulls":5},14833,"COMUNE DI DENNO"]
[{"$nulls":5},14854,"COMUNE DI CALVI RISORTA"]
[{"$nulls":5},14856,"Comune di Arco"]
[{"$nulls":5},14875,"COMUNE DI COMMEZZADURA"]
[{"$nulls":5},14883,"COMUNE DI TELVE DI SOPRA"]
[{"$nulls":5},14894,"COMUNE DI LEDRO"]
[{"$nulls":5},14895,"COMUNE DI MOENA"]
[{"$nulls":5},14905,"comune di riposto"]
[{"$nulls":5},14910,"COMUNE DI LONA LASES"]
[{"$nulls":5},14923,"COMUNE DI CAMPITELLO DI FASSA"]
[{"$nulls":5},14938,"COMUNE DI SPIAZZO"]
[{"$nulls":5},14956,"COMUNE DI NUS"]
[{"$nulls":5},14984,"COMUNE DI LAVARONE"]
[{"$nulls":5},15008,"SICAM SRL CON SOCIO UNICO"]
[{"$nulls":5},15023,"Comune di Brentonico"]
[{"$nulls":5},15031,"COMUNE DI DOBBIACO"]
[{"$nulls":5},15032,"COMUNE DI MAZZIN"]
[{"$nulls":5},15035,"TALETE S.P.A."]
[{"$nulls":5},15115,"acquedotti  U.C.C."]
[{"$nulls":5},15117,"COMUNE DI RABBI"]
[{"$nulls":5},15123,"ACQUEDOTTO POIANA S.P.A."]
[{"$nulls":5},15233,"Comune di Mercogliano"]
[{"$nulls":5},15237,"COMUNE DI CAMPODENNO"]
[{"$nulls":5},15255,"Comune di Monreale"]
[{"$nulls":5},15280,"COMUNE DI ORATINO"]
[{"$nulls":5},15486,"S.A.S.I. S.p.A."]
[{"$nulls":5},15548,"ACQUE DI CALTANISSETTA SPA"]
[{"$nulls":5},15700,"COMUNE DI MISTERBIANCO"]
[{"$nulls":5},15899,"Marktgemeinde Kaltern an der Weinstraße / Comune di Caldaro sulla strada del vino"]
[{"$nulls":5},15984,"COMUNE DI EGNA"]
[{"$nulls":5},16673,"COMUNE DI PRATO ALLO STELVIO"]
[{"$nulls":5},16769,"SIDRA S.P.A."]
[{"$nulls":5},16770,"Comune di Racines"]
[{"$nulls":5},16779,"SOCIETA' ACQUA LODIGIANA SRL"]
[{"$nulls":5},16851,"COMUNE DI PELLIZZANO"]
[{"$nulls":5},16858,"Comune di Afragola"]
[{"$nulls":5},16880,"COMUNE DI STORO"]
[{"$nulls":5},16890,"COMUNE DI MEZZANO"]
[{"$nulls":5},16919,"COMUNE NAGO-TORBOLE"]
[{"$nulls":5},16925,"COMUNE DI CANAZEI"]
[{"$nulls":5},16934,"COMUNE DI STENICO"]
[{"$nulls":5},16947,"COMUNE DI CASTEL CONDINO"]
[{"$nulls":5},16949,"COMUNE DI BIENO"]
[{"$nulls":5},16950,"COMUNE DI NOGAREDO"]
[{"$nulls":5},16952,"COMUNE DI VILLA LAGARINA"]
[{"$nulls":5},16955,"COMUNE DI TENNO"]
[{"$nulls":5},16958,"COMUNE DI BLEGGIO SUPERIORE"]
[{"$nulls":5},16962,"acquedotto lucano s.p.a."]
[{"$nulls":5},16964,"COMUNE DI VALLARSA"]
[{"$nulls":5},16965,"COMUNE DI POMAROLO"]
[{"$nulls":5},16971,"COMUNE DI COMANO TERME"]
[{"$nulls":5},16973,"COMUNE DI ZIANO DI FIEMME"]
[{"$nulls":5},16975,"COMUNE DI ACI CATENA"]
[{"$nulls":5},16978,"COMUNE DI IMER"]
[{"$nulls":5},16987,"COMUNE DI TRAPANI"]
[{"$nulls":5},17006,"COMUNE DI BRUSSON"]
[{"$nulls":5},17049,"COMUNE DI CHALLAND SAINT VICTOR"]
[{"$nulls":5},17055,"COMUNE DI CASTELVETERE IN VAL FORTORE"]
[{"$nulls":5},17069,"COMUNE DI BAGNOLI IRPINO"]
[{"$nulls":5},17079,"COMUNE DI ANTEY-SAINT-ANDRE"]
[{"$nulls":5},17083,"COMUNE DI FOLGARIA"]
[{"$nulls":5},17097,"Comune di Senale - San Felice"]
[{"$nulls":5},17100,"Comune di Avelengo"]
[{"$nulls":5},17110,"Comune di Ton"]
[{"$nulls":5},17117,"Comune di Martello"]
[{"$nulls":5},17120,"Comune di Castelrotto"]
[{"$nulls":5},17123,"Comune di Barbiano"]
[{"$nulls":5},17126,"Comune di Valdaora"]
[{"$nulls":5},17134,"Comunità Comprensoriale Valle Isarco"]
[{"$nulls":5},17138,"COMUNE DI ALDINO"]
[{"$nulls":5},17139,"Comune di Monguelfo-Tesido"]
[{"$nulls":5},17146,"COMUNE DI TIROLO"]
[{"$nulls":5},17151,"Comune di Cermes"]
[{"$nulls":5},17152,"Comune di Ponte Gardena"]
[{"$nulls":5},17159,"Comune di Gargazzone"]
[{"$nulls":5},17160,"COMUNE DI POSTAL"]
[{"$nulls":5},17168,"COMUNE DI DRO"]
[{"$nulls":5},17169,"Comune San Martino in Passiria"]
[{"$nulls":5},17175,"Trinkwasser Genossenschaft Kastelruth m.b.H."]
[{"$nulls":5},17183,"Comune di Ora"]
[{"$nulls":5},17184,"COMUNE DI CASTELNUOVO"]
[{"$nulls":5},17185,"SERVIZI COMUNALI ASSOCIATI SRL"]
[{"$nulls":5},17190,"Comune di Caines"]
[{"$nulls":5},17193,"COMUNE DI FENIS"]
[{"$nulls":5},17198,"COMUNE DI POZZAGLIA SABINA"]
[{"$nulls":5},17199,"ARA PUSTERIA SPA"]
[{"$nulls":5},17209,"COMUNE DI SAINT-NICOLAS"]
[{"$nulls":5},17217,"Comune di Rifiano"]
[{"$nulls":5},17229,"Comune di Valle Aurina"]
[{"$nulls":5},17231,"COMUNE DI CEVO"]
[{"$nulls":5},17232,"COMUNE DI CASTEL DI LUCIO"]
[{"$nulls":5},17233,"comune di ollomont"]
[{"$nulls":5},17235,"COMUNE DI ALBIANO"]
[{"$nulls":5},17241,"COMUNE DI PIEVE TESINO"]
[{"$nulls":5},17244,"COMUNE DI LA MAGDELEINE"]
[{"$nulls":5},17255,"COMUNE DI VALGRISENCHE"]
[{"$nulls":5},17268,"COMUNE DI CHALLAND SAINT ANSELME"]
[{"$nulls":5},17287,"COMUNE DI AYAS"]
[{"$nulls":5},17297,"COMUNE DI SAMONE"]
[{"$nulls":5},17312,"COMUNE DI BEDOLLO"]
[{"$nulls":5},17321,"Comune di Fortezza"]
[{"$nulls":5},17337,"COMUNE DI JOVENCAN"]
[{"$nulls":5},17340,"S.I.I. S.P.A.SERVIZIO IDRICO INTEGRATO DEL BIELLESE E VERCELLESE"]
[{"$nulls":5},17351,"COMUNE DI CHARVENSOD"]
[{"$nulls":5},17355,"Comune di Stelvio"]
[{"$nulls":5},17357,"Comune di Meltina"]
[{"$nulls":5},17362,"COMUNE DI NATURNO"]
[{"$nulls":5},17363,"Comune di Fié allo Sciliar"]
[{"$nulls":5},17364,"Comune di Falzes"]
[{"$nulls":5},17366,"COMUNE DI CORTACCIA SULLA STRADA DEL VINO"]
[{"$nulls":5},17368,"Comune Campo di Trens"]
[{"$nulls":5},17369,"Comune di Villabassa"]
[{"$nulls":5},17370,"COMUNE DI EMARESE"]
[{"$nulls":5},17372,"Comune di Ortisei"]
[{"$nulls":5},17373,"COMUNE DI VELTURNO"]
[{"$nulls":5},17374,"Comune di Bronzolo"]
[{"$nulls":5},17375,"COMUNE DI RHEMES-NOTRE-DAME"]
[{"$nulls":5},17376,"COMUNE DI SAN CANDIDO"]
[{"$nulls":5},17379,"COMUNE DI TERMENO SULLA STRADA DEL VINO"]
[{"$nulls":5},17380,"COMUNE DI SESTO"]
[{"$nulls":5},17381,"Comune di Badia"]
[{"$nulls":5},17383,"Comune di Anterivo"]
[{"$nulls":5},17386,"COMUNE DI RHEMES-SAINT-GEORGES"]
[{"$nulls":5},17388,"COMUNE DI AVISE"]
[{"$nulls":5},17394,"Comune di Proves"]
[{"$nulls":5},17396,"Comune di Tesimo"]
[{"$nulls":5},17397,"Comune di Lauregno"]
[{"$nulls":5},17399,"COMUNE DI GAIS"]
[{"$nulls":5},17400,"COMUNE DI VALTOURNENCHE"]
[{"$nulls":5},17402,"Comune di Santa Cristina Val Gardena"]
[{"$nulls":5},17403,"COMUNE DI ARVIER"]
[{"$nulls":5},17407,"Comune di Villandro"]
[{"$nulls":5},17410,"Comune di Rodengo"]
[{"$nulls":5},17414,"COMUNE DI RONCEGNO TERME"]
[{"$nulls":5},17415,"Comune di Brennero"]
[{"$nulls":5},17416,"Comune di Ultimo"]
[{"$nulls":5},17422,"COMUNE DI SENALES"]
[{"$nulls":5},17423,"COMUNE DI SELVA DEI MOLINI"]
[{"$nulls":5},17424,"COMUNE DI VADENA"]
[{"$nulls":5},17426,"Comune di Cortina sulla strada del vino"]
[{"$nulls":5},17427,"Comune di Predoi"]
[{"$nulls":5},17428,"Comune di Varna"]
[{"$nulls":5},17429,"COMUNE DI TRODENA NEL PARCO NATURALE"]
[{"$nulls":5},17430,"Società Cooperativa Energie Pfunders"]
[{"$nulls":5},17431,"COMUNE DI SAN LORENZO DI SEBATO"]
[{"$nulls":5},17432,"Comune di Montagna sulla strada del vino/Gemeinde Montan an der Weinstraße"]
[{"$nulls":5},17434,"Comune di Magrè sulla Strada del Vino"]
[{"$nulls":5},17435,"Comune di San Martino in Badia"]
[{"$nulls":5},17436,"Comune di Renon"]
[{"$nulls":5},17437,"COMUNE DI SOVER"]
[{"$nulls":5},17438,"AMMINISTRAZIONE SEP. B.U.C. LUTAGO"]
[{"$nulls":5},17440,"AMMINISTRAZIONE SEP. B.U.C. RIO BIANCO"]
[{"$nulls":5},17442,"Comune di Braies"]
[{"$nulls":5},17446,"Comune di La Valle"]
[{"$nulls":5},17448,"ACQUEDOTTO DEL CARSO S.P.A. -  KRASKI VODOVOD D.D."]
[{"$nulls":5},17449,"COMUNE DI OSPEDALETTO"]
[{"$nulls":5},17451,"Comune di Plaus"]
[{"$nulls":5},17452,"COMUNE DI VERRAYES"]
[{"$nulls":5},17454,"ASBUC SPINGA"]
[{"$nulls":5},17455,"COMUNE DI BRISSOGNE"]
[{"$nulls":5},17459,"Comune di Val di Vizze"]
[{"$nulls":5},17460,"COMUNE DI VALFLORIANA"]
[{"$nulls":5},17466,"COMUNE DI MORGEX"]
[{"$nulls":5},17467,"Comune Valle di Casies"]
[{"$nulls":5},17470,"COMUNE DI SAINT-PIERRE"]
[{"$nulls":5},17471,"COMUNE DI LA THUILE"]
[{"$nulls":5},17472,"comune di Capitignano"]
[{"$nulls":5},17473,"COMUNE DI CHAMBAVE"]
[{"$nulls":5},17484,"Trink- und Löschwasserinteressentschaft Karnol"]
[{"$nulls":5},17488,"comune di sarre"]
[{"$nulls":5},17489,"Ammistrazione separata di beni di uso civico frazione San Benedetto"]
[{"$nulls":5},17490,"COMUNE DI SALORNO SULLA STRADA DEL VINO"]
[{"$nulls":5},17493,"COMUNE DI SPINETE"]
[{"$nulls":5},17497,"COMUNE DI CASTELBELLO-CIARDES"]
[{"$nulls":5},17498,"COMUNE DI SANT'ANGELO LIMOSANO"]
[{"$nulls":5},17499,"Acquedotto Cooperativo di Fié allo Sciliar"]
[{"$nulls":5},17500,"comune di frassilongo"]
[{"$nulls":5},17501,"COMUNE DI COLLE D'ANCHISE"]
[{"$nulls":5},17502,"COMUNE DI MONTJOVET"]
[{"$nulls":5},17506,"COMUNE DI SAN BIASE"]
[{"$nulls":5},17508,"COMUNE DI SAN MASSIMO"]
[{"$nulls":5},17515,"COMUNE DI CASTROPIGNANO"]
[{"$nulls":5},17522,"COMUNE DI SAN POLO MATESE"]
[{"$nulls":5},17526,"COMUNE DI CASTELFRANCO IN MISCANO"]
[{"$nulls":5},17527,"Comune di Laion - Gemeinde Lajen"]
[{"$nulls":5},17528,"Provincia Autonoma di Trento - Agenzia per la Depurazione - Servizio Gestione degli Impianti"]
[{"$nulls":5},17531,"Trinkwasserinteressentschaft Großberg-Meransen"]
[{"$nulls":5},17534,"Comune di San Giovanni in Galdo"]
[{"$nulls":5},17535,"COMUNE DI GUARDIAREGIA"]
[{"$nulls":5},17545,"COMUNE DI ALBANELLA"]
[{"$nulls":5},17562,"Comune di Pré Saint Didier"]
[{"$nulls":5},17665,"COMUNE DI ROISAN"]
[{"$nulls":5},17673,"COMUNE DI GIGNOD"]
[{"$nulls":5},17686,"COMUNE DI CROVIANA"]
[{"$nulls":5},17696,"Comune di Andriano"]
[{"$nulls":5},17761,"COMUNE DI SAINT-CHRISTOPHE"]
[{"$nulls":5},17831,"Comune di Selva di Val Gardena"]
[{"$nulls":5},17878,"comune di Châtillon"]
[{"$nulls":5},18149,"COMUNE DI NOVA PONENTE"]
[{"$nulls":5},18410,"COMUNE DI CAVIZZANA"]
[{"$nulls":5},18541,"COMUNE DI CARINARO"]
[{"$nulls":5},18551,"COMUNE DI INTROD"]
[{"$nulls":5},18580,"Comune di Valsavarenche"]
[{"$nulls":5},18586,"Comune di Ronchi Valsugana"]
[{"$nulls":5},18590,"COMUNE DI TORCEGNO"]
[{"$nulls":5},18604,"COMUNE DI GANGI"]
[{"$nulls":5},18625,"COMUNE DI PONTEY"]
[{"$nulls":5},18663,"COMUNE DI VIONE"]
[{"$nulls":5},18679,"COMUNE DI ROURE"]
[{"$nulls":5},18747,"COMUNE DI DOUES"]
[{"$nulls":5},18756,"COMUNE DI PERRERO"]
[{"$nulls":5},18822,"Comune di Fenestrelle"]
[{"$nulls":5},18864,"Comune di Salza di Pinerolo"]
[{"$nulls":5},18913,"COMUNE DI BRONTE"]
[{"$nulls":5},18915,"Sistemi Salerno - Servizi idrici Spa"]
[{"$nulls":5},19076,"Comune di Prali"]
[{"$nulls":5},19187,"Comune di Laives"]
[{"$nulls":5},19555,"COMUNE DI BUROLO"]
[{"$nulls":5},19617,"COMUNE DI VALPELLINE"]
[{"$nulls":5},19660,"Unité des Communes valdotaines Mont-Rose"]
[{"$nulls":5},19742,"COMUNE DI CIVIDATE CAMUNO"]
[{"$nulls":5},19743,"COMUNE DI BACOLI"]
[{"$nulls":5},19751,"COMUNE DI TRIORA"]
[{"$nulls":5},19771,"Comune di Caposele"]
[{"$nulls":5},19775,"Comune di Baiano"]
[{"$nulls":5},19777,"COMUNE DI GIANICO"]
[{"$nulls":5},19779,"COMUNE DI ARTOGNE"]
[{"$nulls":5},19781,"COMUNE DI PIAN CAMUNO"]
[{"$nulls":5},19795,"COMUNE DI SAN LORENZELLO"]
[{"$nulls":5},19797,"Comune di Casalbore"]
[{"$nulls":5},19802,"COMUNE DI PUGLIANELLO"]
[{"$nulls":5},19807,"Comune di Avellino"]
[{"$nulls":5},19809,"COMUNE DI LUSCIANO"]
[{"$nulls":5},19812,"COMUNE DI MOIANO"]
[{"$nulls":5},19815,"COMUNE DI AIROLA"]
[{"$nulls":5},19822,"Comune di Casagiove"]
[{"$nulls":5},19823,"COMUNE DI MENFI"]
[{"$nulls":5},19849,"COMUNE DI MALEGNO"]
[{"$nulls":5},19851,"COMUNE DI MONTENERO DI BISACCIA"]
[{"$nulls":5},19892,"COMUNE DI MONTEGROSSO PIAN LATTE"]
[{"$nulls":5},19902,"Comune di Mazzarrone"]
[{"$nulls":5},19919,"COMUNE DI CAMPOLI DEL MONTE TABURNO"]
[{"$nulls":5},19952,"COMUNE DI BELSITO"]
[{"$nulls":5},19967,"COMUNE DI FABRICA DI ROMA"]
[{"$nulls":5},20010,"COMUNE DI VALLO TORINESE"]
[{"$nulls":5},20035,"COMUNE DI PETINA"]
[{"$nulls":5},20074,"COMUNE DI NIARDO"]
[{"$nulls":5},20096,"comune di padula"]
[{"$nulls":5},20136,"COMUNE DI MANDELA"]
[{"$nulls":5},20171,"COMUNE DI POSTIGLIONE"]
[{"$nulls":5},20219,"Comune di Oliveto Citra"]
[{"$nulls":5},20231,"COMUNE DI BIANCAVILLA"]
[{"$nulls":5},20288,"Comune di Cosio d'Arroscia"]
[{"$nulls":5},20331,"Servizi Ambientali s.p.a."]
[{"$nulls":5},20605,"COMUNE DI POMPEIANA"]
[{"$nulls":5},20702,"COMUNE DI CASTELLO DEL MATESE"]
[{"$nulls":5},20736,"COMUNE DI SANT'ANGELO ALL'ESCA"]
[{"$nulls":5},20752,"COMUNE DI DOMICELLA"]
[{"$nulls":5},20831,"COMUNE DI MALETTO"]
[{"$nulls":5},20836,"COMUNE DI SASSINORO"]
[{"$nulls":5},20952,"COMUNE DI PALAGONIA"]
[{"$nulls":5},21099,"COMUNE DI SCORDIA"]
[{"$nulls":5},21108,"COMUNE DI RANDAZZO"]
[{"$nulls":5},21248,"comune di castel di iudica"]
[{"$nulls":5},21373,"COMUNE DI ROMAGNANO AL MONTE"]
[{"$nulls":5},21386,"comune di corleto monforte"]
[{"$nulls":5},21387,"comune di montesano sulla marcellana"]
[{"$nulls":5},21391,"COMUNE DI SALVITELLE"]
[{"$nulls":5},21401,"COMUNE DI CANDIDA"]
[{"$nulls":5},21413,"COMUNE DI PIETRAROJA"]
[{"$nulls":5},21422,"comune di montefusco"]
[{"$nulls":5},21427,"COMUNE DI ATRIPALDA"]
[{"$nulls":5},21428,"COMUNE DI FORINO"]
[{"$nulls":5},21431,"COMUNE DI MONTEFALCIONE"]
[{"$nulls":5},21432,"comune di baselice"]
[{"$nulls":5},21433,"COMUNE DI AIELLO DEL SABATO"]
[{"$nulls":5},21438,"Comune di Conza della Campania"]
[{"$nulls":5},21442,"COMUNE DI LUOGOSANO"]
[{"$nulls":5},21445,"COMUNE DI PETRURO IRPINO"]
[{"$nulls":5},21458,"COMUNE DI CARBONATE"]
[{"$nulls":5},21460,"COMUNE DI LOCATE VARESINO"]
[{"$nulls":5},21461,"COMUNE DI PIAGGINE"]
[{"$nulls":5},21464,"COMUNE DI CASSANO IRPINO"]
[{"$nulls":5},21466,"comune di giffoni valle piana"]
[{"$nulls":5},21470,"COMUNE DI PONTELANDOLFO"]
[{"$nulls":5},21472,"COMUNE DI CARIFE"]
[{"$nulls":5},21473,"COMUNE DI PRATA DI PRINCIPATO ULTRA"]
[{"$nulls":5},21474,"Comune di Taurasi"]
[{"$nulls":5},21476,"Comune di Zuccarello"]
[{"$nulls":5},21478,"COMUNE DI MAGLIANO VETERE"]
[{"$nulls":5},21479,"comune di vallesaccarda"]
[{"$nulls":5},21480,"COMUNE DI FONTANAROSA"]
[{"$nulls":5},21485,"comune di san pietro al tanagro"]
[{"$nulls":5},21489,"COMUNE DI SAN SALVATORE TELESINO"]
[{"$nulls":5},21494,"COMUNE DI SANT'ANGELO DEI LOMBARDI"]
[{"$nulls":5},21497,"Comune di Mugnano del Cardinale"]
[{"$nulls":5},21500,"COMUNE DI SAN MARCO DEI CAVOTI"]
[{"$nulls":5},21503,"Comune di Avella"]
[{"$nulls":5},21504,"COMUNE DI ALTAVILLA IRPINA"]
[{"$nulls":5},21506,"COMUNE DI BIENNO"]
[{"$nulls":5},21507,"COMUNE DI TORRIONI"]
[{"$nulls":5},21512,"COMUNE DI MIAZZINA"]
[{"$nulls":5},21513,"COMUNE DI MONTEFORTE CILENTO"]
[{"$nulls":5},21521,"COMO ACQUA S.R.L."]
[{"$nulls":5},21522,"comune di SANT'ANGELO A SCALA"]
[{"$nulls":5},21533,"COMUNE DI MONTEMARANO"]
[{"$nulls":5},21543,"Comune di San Giorgio del Sannio"]
[{"$nulls":5},21549,"Comune di Rocchetta e Croce"]
[{"$nulls":5},21550,"Comune di Serino"]
[{"$nulls":5},21557,"COMUNE DI LUCINASCO"]
[{"$nulls":5},21559,"COMUNE DI RANZO"]
[{"$nulls":5},21562,"COMUNE DI AQUILA D'ARROSCIA"]
[{"$nulls":5},21563,"RIVIERACQUA S.P.A"]
[{"$nulls":5},21565,"comune di caravonica"]
[{"$nulls":5},21566,"COMUNE DI VASIA"]
[{"$nulls":5},21567,"COMUNE DI REZZO"]
[{"$nulls":5},21569,"COMUNE DI AIROLE"]
[{"$nulls":5},21570,"COMUNE SAN NAZZARO"]
[{"$nulls":5},21572,"COMUNE DI ARMO"]
[{"$nulls":5},21574,"COMUNE DI CHIUSANICO"]
[{"$nulls":5},21575,"Comune di Cesio"]
[{"$nulls":5},21576,"COMUNE DI BORGOMARO"]
[{"$nulls":5},21586,"Jonica Multiservizi S.p.A."]
[{"$nulls":5},21587,"COMUNE DI PIETRABRUNA"]
[{"$nulls":5},21591,"COMUNE DI APRICALE"]
[{"$nulls":5},21599,"COMUNE DI BAJARDO"]
[{"$nulls":5},21600,"COMUNE DI OLIVETTA SAN MICHELE"]
[{"$nulls":5},21601,"Comune di Prelà"]
[{"$nulls":5},21609,"COMUNE DI ROCCHETTA NERVINA"]
[{"$nulls":5},21614,"COMUNE DI AURIGO"]
[{"$nulls":5},21617,"COMUNE DI PIGNA"]
[{"$nulls":5},21622,"comune di castel vittorio"]
[{"$nulls":5},21624,"Comune di Sessa Aurunca"]
[{"$nulls":5},21628,"COMUNE DI TORO"]
[{"$nulls":5},21629,"COMUNE DI LEQUIO BERRIA"]
[{"$nulls":5},21643,"COMUNE DI PIZZONE"]
[{"$nulls":5},21648,"Società Acqua Procida S.A.P. S.r.l."]
[{"$nulls":5},21650,"COMUNE DI PRIERO"]
[{"$nulls":5},21651,"Comune di Carovilli"]
[{"$nulls":5},21652,"COMUNE DI CASTELNUOVO DI CEVA"]
[{"$nulls":5},21661,"Comune di Oyace"]
[{"$nulls":5},21664,"Comune di Verrès"]
[{"$nulls":5},21666,"COMUNE DI BIONAZ"]
[{"$nulls":5},21686,"COMUNE DI BATTIFOLLO"]
[{"$nulls":5},21733,"Comune di Pozzuoli"]
[{"$nulls":5},21804,"Comune di Maissana"]
[{"$nulls":5},21805,"COMUNE DI ISSOGNE"]
[{"$nulls":5},21831,"Comune di Casalbuono"]
[{"$nulls":5},21833,"COMUNE DI PROVVIDENTI"]
[{"$nulls":5},21834,"COMUNE DI MONTELONGO"]
[{"$nulls":5},21836,"COMUNE DI MORRONE DEL SANNIO"]
[{"$nulls":5},21857,"COMUNE DI PALATA"]
[{"$nulls":5},21872,"comune di civitacampomarano"]
[{"$nulls":5},21969,"comune di Drena"]
[{"$nulls":5},22010,"COMUNE DI MONTORIO NEI FRENTANI"]
[{"$nulls":5},22016,"COMUNE DI LONGANO"]
[{"$nulls":5},22017,"COMUNE DI RIPABOTTONI"]
[{"$nulls":5},22021,"COMUNE DI MACCHIAGODENA"]
[{"$nulls":5},22044,"COMUNE DI MOLISE"]
[{"$nulls":5},22068,"COMUNE DI BAGNOLI DEL TRIGNO"]
[{"$nulls":5},22072,"Comune di Praia a Mare"]
[{"$nulls":5},22084,"COMUNE DI CERCEMAGGIORE"]
[{"$nulls":5},22093,"COMUNE DI GILDONE"]
[{"$nulls":5},22098,"COMUNE DI LAPPANO"]
[{"$nulls":5},22114,"COMUNE DI CASTELPIZZUTO"]
[{"$nulls":5},22121,"COMUNE DI CHIAUCI"]
[{"$nulls":5},22126,"comune di casalciprano"]
[{"$nulls":5},22128,"COMUNE DI CASTELLINO DEL BIFERNO"]
[{"$nulls":5},22129,"comune di Francica"]
[{"$nulls":5},22131,"COMUNE DI SAN GIULIANO DEL SANNIO"]
[{"$nulls":5},22132,"COMUNE DI BARANELLO"]
[{"$nulls":5},22141,"COMUNE DI PESCOLANCIANO"]
[{"$nulls":5},22142,"COMUNE DI PIETRACUPA"]
[{"$nulls":5},22143,"COMUNE DI TUFARA"]
[{"$nulls":5},22146,"Comune di Sant'Elia a Pianisi"]
[{"$nulls":5},22147,"COMUNE DI FORNELLI"]
[{"$nulls":5},22154,"COMUNE DI MONTAQUILA"]
[{"$nulls":5},22157,"Comune di Davoli"]
[{"$nulls":5},22158,"COMUNE DI FILIGNANO"]
[{"$nulls":5},22159,"COMUNE DI CANTALUPO NEL SANNIO"]
[{"$nulls":5},22161,"COMUNE DI MARZI"]
[{"$nulls":5},22165,"Comune di Morano Calabro"]
[{"$nulls":5},22166,"COMUNE DI CAMPANA"]
[{"$nulls":5},22168,"COMUNE DI VALLEFIORITA"]
[{"$nulls":5},22169,"COMUNE DI LIMOSANO"]
[{"$nulls":5},22171,"COMUNE DI ESINE"]
[{"$nulls":5},22175,"COMUNE DI BELMONTE DEL SANNIO"]
[{"$nulls":5},22185,"comune di Roccasicura"]
[{"$nulls":5},22186,"COMUNE DI SANT'ELENA SANNITA"]
[{"$nulls":5},22198,"Comune di San Vito sullo Ionio"]
[{"$nulls":5},22207,"COMUNE DI GUGLIONESI"]
[{"$nulls":5},22214,"COMUNE DI MIRANDA"]
[{"$nulls":5},22226,"COMUNE DI MONACILIONI"]
[{"$nulls":5},22245,"COMUNE DI MANGONE"]
[{"$nulls":5},22263,"COMUNE DI CARPINONE"]
[{"$nulls":5},22308,"COMUNE DI GUARDIALFIERA"]
[{"$nulls":5},22351,"COMUNE DI CASTEL MORRONE"]
[{"$nulls":5},22362,"COMUNE DI MONTAGANO"]
[{"$nulls":5},22446,"COMUNE DI SESSANO DEL MOLISE"]
[{"$nulls":5},22469,"COMUNE DI URURI"]
[{"$nulls":5},22485,"COMUNE DI MURIALDO"]
[{"$nulls":5},22515,"COMUNE DI CASTELBOTTACCIO"]
[{"$nulls":5},22534,"COMUNE DI LUCITO"]
[{"$nulls":5},22539,"COMUNE DI MATRICE"]
[{"$nulls":5},22554,"COMUNE DI PIETRACATELLA"]
[{"$nulls":5},22580,"Comune di Cicala"]
[{"$nulls":5},22581,"COMUNE DI CASTELPETROSO"]
[{"$nulls":5},22649,"Comune di Simeri Crichi"]
[{"$nulls":5},22684,"Comune di Cerva"]
[{"$nulls":5},22688,"Comune di Breno"]
[{"$nulls":5},22698,"COMUNE DI TROPEA"]
[{"$nulls":5},22714,"Comune di Civitavecchia"]
[{"$nulls":5},22721,"COMUNE DI APOLLOSA"]
[{"$nulls":5},22722,"COMUNE DI SANT'ANDREA DI CONZA"]
[{"$nulls":5},22723,"COMUNE DI TORELLA DEI LOMBARDI"]
[{"$nulls":5},22728,"COMUNE DI PACHINO"]
[{"$nulls":5},22734,"comune di roccagloriosa"]
[{"$nulls":5},22737,"comune di circello"]
[{"$nulls":5},22746,"COMUNE DI GIUGLIANO IN CAMPANIA"]
[{"$nulls":5},22747,"COMUNE DI MELILLI"]
[{"$nulls":5},22753,"COMUNE DI CASTEL BARONIA"]
[{"$nulls":5},22754,"COMUNE DI TRASQUERA"]
[{"$nulls":5},22763,"comune di canicattini bagni"]
[{"$nulls":5},22765,"COMUNE DI CONTURSI TERME"]
[{"$nulls":5},22777,"COMUNE DI TRIPI"]
[{"$nulls":5},22781,"Comune di Montefalcone di Val Fortore"]
[{"$nulls":5},22786,"COMUNE DI POGGIO SAN VICINO"]
[{"$nulls":5},22790,"COMUNE DI SCAGNELLO"]
[{"$nulls":5},22794,"COMUNE DI CASORIA"]
[{"$nulls":5},22799,"COMUNE DI SAVIORE DELL'ADAMELLO"]
[{"$nulls":5},22811,"COMUNE DI VITTORIA"]
[{"$nulls":5},22812,"COMUNE DI BURCEI"]
[{"$nulls":5},22813,"COMUNE DI GURRO"]
[{"$nulls":5},22837,"COMUNE DI BERGOLO"]
[{"$nulls":5},22843,"COMUNE DI COLLEDIMEZZO"]
[{"$nulls":5},22844,"COMUNE DI CARDITO"]
[{"$nulls":5},22846,"COMUNE DI ROCCHETTA BELBO"]
[{"$nulls":5},22858,"COMUNE DI LONGONE SABINO"]
[{"$nulls":5},22859,"COMUNE DI CASTELFRANCI"]
[{"$nulls":5},22860,"COMUNE DI VOLTURARA IRPINA"]
[{"$nulls":5},22863,"Comune di Bolognola"]
[{"$nulls":5},22877,"Comune di Teano"]
[{"$nulls":5},22878,"comune di balestrino"]
[{"$nulls":5},22889,"COMUNE DI CASTELBIANCO"]
[{"$nulls":5},22890,"COMUNE DI BULTEI"]
[{"$nulls":5},22898,"COMUNE DI ROCCELLA VALDEMONE"]
[{"$nulls":5},22899,"COMUNE DI CALITRI"]
[{"$nulls":5},22900,"Comune di Roccabascerana"]
[{"$nulls":5},22904,"COMUNE DI MOJO ALCANTARA"]
[{"$nulls":5},22906,"COMUNE DI ROIO DEL SANGRO"]
[{"$nulls":5},22910,"Comune di Ginestra degli Schiavoni"]
[{"$nulls":5},22912,"COMUNE DI MONTELEONE DI PUGLIA"]
[{"$nulls":5},22916,"COMUNE DI NASINO"]
[{"$nulls":5},22919,"COMUNE DI ANELA"]
[{"$nulls":5},22920,"COMUNE DI CONCERVIANO"]
[{"$nulls":5},22921,"Comune di Alcamo"]
[{"$nulls":5},22923,"COMUNE DI VARISELLA"]
[{"$nulls":5},22925,"comune di erli"]
[{"$nulls":5},22928,"DOMUS ACQUA SRL"]
[{"$nulls":5},22930,"COMUNE DI SANT'ANGELO A CUPOLO"]
[{"$nulls":5},22932,"COMUNE DI VALDINA"]
[{"$nulls":5},22936,"COMUNE DI MONTEFERRANTE"]
[{"$nulls":5},22938,"Comune di Castroreale"]
[{"$nulls":5},22944,"Comune di Rofrano"]
[{"$nulls":5},22948,"COMUNE DI CESA"]
[{"$nulls":5},22952,"Comune di Aquilonia"]
[{"$nulls":5},22956,"COMUNE DI TURANIA"]
[{"$nulls":5},22957,"COMUNE DI MODOLO"]
[{"$nulls":5},22962,"comune di quarto"]
[{"$nulls":5},22965,"Comune di Magliolo"]
[{"$nulls":5},22967,"Comune di San Nicolò di Comelico"]
[{"$nulls":5},22990,"COMUNE DI SANTA MARGHERITA DI BELICE"]
[{"$nulls":5},22995,"COMUNE DI VILLA SAN GIOVANNI"]
[{"$nulls":5},22999,"COMUNE DI FLORIDIA"]
[{"$nulls":5},23002,"COMUNE DI ESPORLATU"]
[{"$nulls":5},23007,"Livenza Tagliamento Acque S.p.A."]
[{"$nulls":5},23010,"COMUNE DI OLZAI"]
[{"$nulls":5},23018,"Comune di Maddaloni"]
[{"$nulls":5},23020,"COMUNE DI AVERSA"]
[{"$nulls":5},23022,"comune di nuxis"]
[{"$nulls":5},23032,"COMUNE DI CIMBERGO"]
[{"$nulls":5},23038,"COMUNE DI SIDERNO"]
[{"$nulls":5},23042,"Comune di Monte di Procida"]
[{"$nulls":5},23044,"COMUNE DI ONO SAN PIETRO"]
[{"$nulls":5},23068,"COMUNE DI BOTTIDDA"]
[{"$nulls":5},23082,"COMUNE DI TEULADA"]
[{"$nulls":5},23092,"COMUNE DI SERRAMANNA"]
[{"$nulls":5},23097,"COMUNE DI PAULILATINO"]
[{"$nulls":5},23098,"COMUNE DI PASPARDO"]
[{"$nulls":5},23137,"Comune di Portopalo di Capo Passero"]
[{"$nulls":5},23146,"COMUNE DI FLUMINIMAGGIORE"]
[{"$nulls":5},23150,"COMUNE DI SEUI"]
[{"$nulls":5},23186,"Comune di Marano di Napoli"]
[{"$nulls":5},23354,"COMUNE DI SANTU LUSSURGIU"]
[{"$nulls":5},23717,"COMUNE DI VILLAGRANDE STRISAILI"]
[{"$nulls":5},23724,"Comune di Camerata Cornello"]
[{"$nulls":5},23782,"comune di priolo gargallo"]
[{"$nulls":5},23791,"COMUNE DI STRAMBINELLO"]
[{"$nulls":5},23798,"Comune di Isola di Fondra"]
[{"$nulls":5},23800,"COMUNE DI ARZANA"]
[{"$nulls":5},23804,"COMUNE DI BERZO INFERIORE"]
[{"$nulls":5},23806,"COMUNE DI REINO"]
[{"$nulls":5},23807,"COMUNE DI SANTA BRIGIDA"]
[{"$nulls":5},23808,"COMUNE DI LIMATOLA"]
[{"$nulls":5},23814,"COMUNE DI ALFEDENA"]
[{"$nulls":5},23818,"CONSORZIO DI BONIFICA TERRE D'APULIA"]
[{"$nulls":5},23819,"COMUNE DI RONCIGLIONE"]
[{"$nulls":5},23826,"COMUNE DI BONARCADO"]
[{"$nulls":5},23835,"COMUNE DI CAMPO CALABRO"]
[{"$nulls":5},23837,"Comune di Braone"]
[{"$nulls":5},23838,"COMUNE DI PERFUGAS"]
[{"$nulls":5},23839,"COMUNE DI SANTA LUCIA DEL MELA"]
[{"$nulls":5},23841,"COMUNE DI MASCALI"]
[{"$nulls":5},23843,"COMUNE DI TERTENIA"]
[{"$nulls":5},23846,"Comune di Lentini"]
[{"$nulls":5},23849,"COMUNE DI CAPO DI PONTE"]
[{"$nulls":5},23850,"COMUNE DI SAN FILIPPO DEL MELA"]
[{"$nulls":5},23855,"Comune di Canistro"]
[{"$nulls":5},23859,"COMUNE DI BORNO"]
[{"$nulls":5},23860,"Comune di Bussi sul Tirino"]
[{"$nulls":5},23861,"COMUNE DI AUGUSTA"]
[{"$nulls":5},23862,"COMUNE DI SCALETTA ZANCLEA"]
[{"$nulls":5},23863,"Comune di Castell'Umberto"]
[{"$nulls":5},23865,"CONSORZIO COMUNI DELLA MEDIA SABINA"]
[{"$nulls":5},23868,"Comune di Curti"]
[{"$nulls":5},23873,"COMUNE DI CUSANO MUTRI"]
[{"$nulls":5},23881,"COMUNE DI CASTELDELFINO"]
[{"$nulls":5},23888,"COMUNE DI PIETRAMELARA"]
[{"$nulls":5},23891,"COMUNE DI ROTELLO"]
[{"$nulls":5},23893,"COMUNE DI PALAZZO CANAVESE"]
[{"$nulls":5},23894,"Comune di Filadelfia"]
[{"$nulls":5},23904,"COMUNE DI FALLO"]
[{"$nulls":5},23906,"A.M.A.M. Azienda Meridionale Acque Messina S.p.A."]
[{"$nulls":5},23907,"COMUNE DI CAPRI LEONE"]
[{"$nulls":5},23913,"Comune di Quindici"]
[{"$nulls":5},23914,"COMUNE DI FRATTAMINORE"]
[{"$nulls":5},23917,"COMUNE DI  MOSCHIANO"]
[{"$nulls":5},23918,"COMUNE DI GUARDIA SANFRAMONDI"]
[{"$nulls":5},23920,"COMUNE DI VENTICANO"]
[{"$nulls":5},23922,"COMUNE DI CASTELVETERE SUL CALORE"]
[{"$nulls":5},23926,"COMUNE DI ITALA"]
[{"$nulls":5},23927,"Servizi Integrati Acque del Mediterraneo - SIAM"]
[{"$nulls":5},23934,"COMUNE DI QUADRELLE"]
[{"$nulls":5},23935,"C.I.R.A.  S.R.L."]
[{"$nulls":5},23940,"Comune di Gualtieri Sicaminò"]
[{"$nulls":5},23943,"Comune di Parolise"]
[{"$nulls":5},23948,"comune di mirabella imbaccari"]
[{"$nulls":5},23949,"Comune di Lauro"]
[{"$nulls":5},23952,"COMUNE DI PIETRADEFUSI"]
[{"$nulls":5},23953,"COMUNE DI CHIANCHE"]
[{"$nulls":5},23965,"Comune di Ferla"]
[{"$nulls":5},23968,"COMUNE DI PAOLISI"]
[{"$nulls":5},23989,"COMUNE DI CALANNA"]
[{"$nulls":5},23991,"COMUNE DI LIBERI"]
[{"$nulls":5},24027,"Azienda Speciale Regionale Molise Acque"]
[{"$nulls":5},24046,"COMUNE DI DUGENTA"]
[{"$nulls":5},24054,"Comune di Gratteri"]
[{"$nulls":5},24062,"COMUNE DI FIUMEDINISI"]
[{"$nulls":5},24086,"Comune di Sersale"]
[{"$nulls":5},24093,"comune di casalduni"]
[{"$nulls":5},24109,"Comune di Santa Domenica Vittoria"]
[{"$nulls":5},24122,"Comune di Santa Caterina dello Ionio"]
[{"$nulls":5},24170,"Comune di Barcellona Pozzo di Gotto"]
[{"$nulls":5},24179,"COMUNE DI COLOSIMI"]
[{"$nulls":5},24198,"comune di catanzaro"]
[{"$nulls":5},24211,"Comune di Melito di Porto Salvo"]
[{"$nulls":5},24212,"AZIENDA REGIONALE DELLE ATTIVITA PRODUTTIVE"]
[{"$nulls":5},24215,"Comune di Castelbuono"]
[{"$nulls":5},24218,"COMUNE DI BAGNOREGIO"]
[{"$nulls":5},24317,"COMUNE DI MONTALBANO ELICONA"]
[{"$nulls":5},24369,"Comune di Buccheri"]
[{"$nulls":5},24373,"COMUNE DI PALLAGORIO"]
[{"$nulls":5},24419,"Comune di San Roberto"]
[{"$nulls":5},24423,"comune bocchigliero"]
[{"$nulls":5},24486,"COMUNE DI CUSIO"]
[{"$nulls":5},24533,"PIAVE SERVIZI S.P.A."]
[{"$nulls":5},24552,"COMUNE DI MAIERATO"]
[{"$nulls":5},24557,"Comune di Rosarno"]
[{"$nulls":5},24561,"COMUNE DI TUSA"]
[{"$nulls":5},24562,"Comune di Bivongi"]
[{"$nulls":5},24565,"COMUNE DI PREDAIA"]
[{"$nulls":5},24566,"COMUNE DI PACE DEL MELA"]
[{"$nulls":5},24570,"COMUNE DI PAZZANO"]
[{"$nulls":5},24572,"COMUNE DI ZUNGRI"]
[{"$nulls":5},24576,"Comune di San Luca"]
[{"$nulls":5},24580,"COMUNE DI SANTA TERESA DI RIVA"]
[{"$nulls":5},24581,"COMUNE DI GALLODORO"]
[{"$nulls":5},24582,"COMUNE DI SAN NICOLA DA CRISSA"]
[{"$nulls":5},24585,"COMUNE DI POLIA"]
[{"$nulls":5},24587,"COMUNE DI BRUZZANO ZEFFIRIO"]
[{"$nulls":5},24589,"COMUNE DI ZAMBRONE"]
[{"$nulls":5},24590,"COMUNE DI SAN PIER NICETO"]
[{"$nulls":5},24591,"COMUNE DI BIANCO"]
[{"$nulls":5},24593,"COMUNE DI STILO"]
[{"$nulls":5},24596,"COMUNE DI MONTEROSSO CALABRO"]
[{"$nulls":5},24597,"COMUNE DI MILETO"]
[{"$nulls":5},24598,"Comune di Piraino"]
[{"$nulls":5},24599,"Comune di Spilinga"]
[{"$nulls":5},24600,"Comune di Vibo Valentia"]
[{"$nulls":5},24603,"Comune di Serra San Bruno"]
[{"$nulls":5},24604,"Comune di Maropati"]
[{"$nulls":5},24605,"COMUNE DI STEFANACONI"]
[{"$nulls":5},24608,"COMUNE DI BENESTARE"]
[{"$nulls":5},24609,"COMUNE DI PLATI'"]
[{"$nulls":5},24610,"COMUNE DI RADDUSA"]
[{"$nulls":5},24611,"COMUNE DI BRANCALEONE"]
[{"$nulls":5},24612,"COMUNE DI AGNANA CALABRA"]
[{"$nulls":5},24613,"COMUNE DI BOVALINO"]
[{"$nulls":5},24614,"COMUNE DI LOCRI"]
[{"$nulls":5},24615,"COMUNE DI BORGO CHIESE"]
[{"$nulls":5},24649,"COMUNE DI CASTEL IVANO"]
[{"$nulls":5},24658,"COMUNE DI DIMARO FOLGARIDA"]
[{"$nulls":5},24663,"COMUNE DI SELLA GIUDICARIE"]
[{"$nulls":5},24669,"CONSORZIO ACQUEDOTTO TRA I COMUNI DI FRAGNETO MONFORTE E FRAGNETO L'ABATE"]
[{"$nulls":5},24672,"Acque Potabili Servizi Idrici Integrati Srl"]
[{"$nulls":5},24675,"COMUNE DI ANZOLA D'OSSOLA"]
[{"$nulls":5},24692,"Comune di Vendone"]
[{"$nulls":5},24693,"COMUNE DI CASANOVA LERRONE"]
[{"$nulls":5},24700,"COMUNE DI BURGOS"]
[{"$nulls":5},24703,"comune di bosia"]
[{"$nulls":5},24725,"Comune di Villafranca Tirrena"]
[{"$nulls":5},24729,"Comune di Maiolo"]
[{"$nulls":5},24730,"COMUNE DI BESSUDE"]
[{"$nulls":5},24759,"Consorzio Acquedotto Campo-Salieto"]
[{"$nulls":5},24760,"Consorzio Acquedotto Vicinia di Cojana"]
[{"$nulls":5},24764,"COMUNE DI PENNADOMO"]
[{"$nulls":5},24800,"Comune di Misilmeri"]
[{"$nulls":5},24810,"Comune di Ponte di Legno"]
[{"$nulls":5},24816,"AQA SRL SOCIETA' BENEFIT"]
[{"$nulls":5},24849,"COMUNE DI CAMPOTOSTO"]
[{"$nulls":5},24894,"Comune di Castronovo di Sicilia"]
[{"$nulls":5},24907,"Comune di Satriano"]
[{"$nulls":5},24910,"COMUNE DI MONTEPAONE"]
[{"$nulls":5},24912,"COMUNE DI SAN VERO MILIS"]
[{"$nulls":5},24920,"Comune di Giardinello"]
[{"$nulls":5},24960,"Comune di Ricadi"]
[{"$nulls":5},25017,"COMUNE DI FABRIZIA"]
[{"$nulls":5},25053,"COMUNE GERACI SICULO"]
[{"$nulls":5},25118,"COMUNE DI CASTELVECCHIO DI ROCCA BARBENA"]
[{"$nulls":5},25232,"TRINKWASSER-GENOSSENSCHAFT TERLAN"]
[{"$nulls":5},25259,"COMUNE DI ALTOPIANO DELLA VIGOLANA"]
[{"$nulls":5},25271,"Cooperativa gestione acquedotto vicinia Zuel di Sopra"]
[{"$nulls":5},25274,"COMUNE  di  ARZANO"]
[{"$nulls":5},25304,"COMUNE DI VILLE D'ANAUNIA"]
[{"$nulls":5},25313,"COMUNE DI ROCCAMENA"]
[{"$nulls":5},25315,"Comune di santa maria del cedro"]
[{"$nulls":5},25320,"Acqua Pubblica Sabina S.P.A."]
[{"$nulls":5},25323,"COMUNE DI SANTO STEFANO DI CAMASTRA"]
[{"$nulls":5},25324,"COMUNE DI VALLELAGHI"]
[{"$nulls":5},25327,"COMUNE DI SANT'ANGELO D'ALIFE"]
[{"$nulls":5},25328,"COMUNE DI POLLINA"]
[{"$nulls":5},25329,"COMUNE DI MOTTA D'AFFERMO"]
[{"$nulls":5},25340,"COMUNE DI TORRENOVA"]
[{"$nulls":5},25341,"COMUNE DI LETOJANNI"]
[{"$nulls":5},25343,"COMUNE DI SPADAFORA"]
[{"$nulls":5},25352,"COMUNE DI BAGNARA CALABRA"]
[{"$nulls":5},25353,"ALFA S.r.l."]
[{"$nulls":5},25365,"COMUNE DI PRIMIERO SAN MARTINO DI CASTROZZA"]
[{"$nulls":5},25391,"Comune di Terrasini"]
[{"$nulls":5},25404,"COMUNE DI GAGGI"]
[{"$nulls":5},25407,"COMUNE DI PIETRAVAIRANO"]
[{"$nulls":5},25539,"Comune di Giarre"]
[{"$nulls":5},25578,"COMUNE DI PIEVE DI BONO-PREZZO"]
[{"$nulls":5},25626,"Comune di Sclafani Bagni"]
[{"$nulls":5},25650,"COMUNE DI RECALE"]
[{"$nulls":5},25684,"UNIONE DEI COMUNI DELL'ALTA ANAUNIA"]
[{"$nulls":5},25755,"COMUNE DI PETRALIA SOTTANA"]
[{"$nulls":5},25761,"COMUNE DI SAN LORENZO DORSINO"]
[{"$nulls":5},25789,"COMUNE DI PAOLA"]
[{"$nulls":5},25796,"COMUNE DI ALTAVALLE"]
[{"$nulls":5},25797,"COMUNE DI BASSANO IN TEVERINA"]
[{"$nulls":5},25805,"COMUNE DI LOSINE"]
[{"$nulls":5},25812,"SOCIETA' COOPERATIVA ACQUA POTABILE DI CHIAVERANO"]
[{"$nulls":5},25814,"Comune di Latera"]
[{"$nulls":5},25815,"COMUNE DI BACENO"]
[{"$nulls":5},25819,"comune di vedeseta"]
[{"$nulls":5},25820,"Comune di Piazzatorre"]
[{"$nulls":5},25821,"COMUNE DI OLMO AL BREMBO"]
[{"$nulls":5},25827,"COMUNE DI BRANZI"]
[{"$nulls":5},25830,"COMUNE DI PETRALIA SOPRANA"]
[{"$nulls":5},25831,"COMUNE DI FILETTINO"]
[{"$nulls":5},25832,"COMUNE DI VASANELLO"]
[{"$nulls":5},25838,"cooperativa acqua potabile bienca srl"]
[{"$nulls":5},25857,"Comune di Caltavuturo"]
[{"$nulls":5},25859,"Comune di Ossimo"]
[{"$nulls":5},25861,"COMUNE DI PORTE DI RENDENA"]
[{"$nulls":5},25862,"COMUNE DI SUTRI"]
[{"$nulls":5},25863,"comune di gallese"]
[{"$nulls":5},25865,"COMUNE DI FARNESE"]
[{"$nulls":5},25868,"Comune di Cellere"]
[{"$nulls":5},25875,"COMUNE DI VANZONE CON SAN CARLO"]
[{"$nulls":5},25883,"COMUNE DI FORMAZZA"]
[{"$nulls":5},25884,"COMUNE DI LUBRIANO"]
[{"$nulls":5},25887,"COMUNE DI BASSANO ROMANO"]
[{"$nulls":5},25888,"comune di castiglione in teverina"]
[{"$nulls":5},25889,"Comune di Carfizzi"]
[{"$nulls":5},25893,"COMUNE DI ISCHIA DI CASTRO"]
[{"$nulls":5},25895,"COMUNE DI DRUOGNO"]
[{"$nulls":5},25898,"COMUNE DI VALENTANO"]
[{"$nulls":5},25910,"Comune di Monasterolo Casotto"]
[{"$nulls":5},25911,"comune di onano"]
[{"$nulls":5},25914,"COMUNE DI TRE VILLE"]
[{"$nulls":5},25923,"SI.EL. Srl"]
[{"$nulls":5},25924,"Comune di Proceno"]
[{"$nulls":5},25928,"comune di roccagiovine"]
[{"$nulls":5},25932,"COMUNE DI MEZZOLDO"]
[{"$nulls":5},25933,"COMUNE DI VALDAONE"]
[{"$nulls":5},25944,"COMUNE DI RIOFREDDO"]
[{"$nulls":5},25950,"COMUNE DI VALLEPIETRA"]
[{"$nulls":5},25954,"COMUNE DI CINETO ROMANO"]
[{"$nulls":5},25957,"COMUNE DI CAPENA"]
[{"$nulls":5},25959,"COMUNE DI SAN BIAGIO SARACINISCO"]
[{"$nulls":5},25968,"COMUNE DI GERANO"]
[{"$nulls":5},25970,"COMUNE DI PETRONA'"]
[{"$nulls":5},25974,"Comune di Calatafimi Segesta"]
[{"$nulls":5},25978,"COMUNE DI CEMBRA LISIGNAGO"]
[{"$nulls":5},25984,"COMUNE DI MADRUZZO"]
[{"$nulls":5},25991,"Comune di Condrò"]
[{"$nulls":5},25993,"comune di palma di montechiaro"]
[{"$nulls":5},25997,"COMUNE DI AVERARA"]
[{"$nulls":5},26004,"SOCIETA' GESTIONE RIUNITA IDRICO S.P.A."]
[{"$nulls":5},26007,"COMUNE DI BUONALBERGO"]
[{"$nulls":5},26014,"Comune di Galati Mamertino"]
[{"$nulls":5},26019,"A.SPE.CO.N."]
[{"$nulls":5},26036,"So.r.i spa"]
[{"$nulls":5},26053,"Comune di Zeri"]
[{"$nulls":5},26092,"COMUNE DI BORGO LARES"]
[{"$nulls":5},26117,"Comune di Vitulazio"]
[{"$nulls":5},26135,"Comune di Ardore"]
[{"$nulls":5},26136,"comune di pastorano"]
[{"$nulls":5},26156,"COMUNE DI REITANO"]
[{"$nulls":5},26194,"COMUNE DI COTRONEI"]
[{"$nulls":5},26225,"COMUNE DI BELGIOIOSO"]
[{"$nulls":5},26340,"COMUNE DI FRAZZANO'"]
[{"$nulls":5},26530,"COMUNE DI AMBLAR-DON"]
[{"$nulls":5},26576,"Consorzio tra Comuni per la Gestione del Servizio Idrico Integrato nel Crotonese"]
[{"$nulls":5},26592,"CONSORZIO VALLE CRATI"]
[{"$nulls":5},26624,"COMUNE DI SAN NICOLA ARCELLA"]
[{"$nulls":5},26637,"COMUNE DI SAN MARCO D'ALUNZIO"]
[{"$nulls":5},26645,"C.A.M.A. srl"]
[{"$nulls":5},26652,"COMUNE DI CONTA'"]
[{"$nulls":5},26656,"Acque Bresciane Srl"]
[{"$nulls":5},26688,"CONSORZIO INTERCOMUNALE ACQUEDOTTO VINA"]
[{"$nulls":5},26705,"Comune di Sefro"]
[{"$nulls":5},26747,"comune di casapulla"]
[{"$nulls":5},26785,"COMUNE DI GIARDINI NAXOS"]
[{"$nulls":5},26801,"COMUNE DI ALTO RENO TERME"]
[{"$nulls":5},26913,"COMUNE DI SAGRON MIS"]
[{"$nulls":5},27081,"COMUNE DI BERCETO"]
[{"$nulls":5},27100,"Comune di Fanano"]
[{"$nulls":5},27116,"NOVITO ACQUE SRL"]
[{"$nulls":5},27152,"Nepta S.p.A."]
[{"$nulls":5},27202,"Comune di San Piero Patti"]
[{"$nulls":5},27215,"COMUNE DI PALMI"]
[{"$nulls":5},27228,"COMUNE DI TORREGROTTA"]
[{"$nulls":5},27329,"COMUNE DI CERENZIA"]
[{"$nulls":5},27366,"COMUNE DI COURMAYEUR"]
[{"$nulls":5},27441,"COMUNE DI PRIZZI"]
[{"$nulls":5},27446,"COMUNE DI BORGETTO"]
[{"$nulls":5},27473,"comune di collesano"]
[{"$nulls":5},27507,"comune di belmonte mezzagno"]
[{"$nulls":5},27556,"COMUNE DI CAMPOFIORITO"]
[{"$nulls":5},27576,"COMUNE DI CINISI"]
[{"$nulls":5},27644,"COMUNE DI RASSA"]
[{"$nulls":5},27748,"Comune di Altofonte"]
[{"$nulls":5},27777,"COMUNE DI TRABIA"]
[{"$nulls":5},27783,"COMUNE DI RAMACCA"]
[{"$nulls":5},27788,"COMUNE DI GADONI"]
[{"$nulls":5},27791,"COMUNE DI PACECO"]
[{"$nulls":5},27792,"COMUNE DI VINADIO"]
[{"$nulls":5},27793,"COMUNE DI SAN GIACOMO DEGLI SCHIAVONI"]
[{"$nulls":5},27794,"Comune di Montelepre"]
[{"$nulls":5},27797,"COMUNE DI VALLELONGA"]
[{"$nulls":5},27798,"comune di Librizzi"]
[{"$nulls":5},27799,"COMUNE DI SINAGRA"]
[{"$nulls":5},27801,"Comune di Furci Siculo"]
[{"$nulls":5},27805,"comune di candidoni"]
[{"$nulls":5},27806,"Comune di Ustica"]
[{"$nulls":5},27807,"COMUNE DI SANT'ALFIO"]
[{"$nulls":5},27808,"Comune di Mandanici"]
[{"$nulls":5},27809,"Comune di  Gibellina"]
[{"$nulls":5},27810,"Comune di Venetico"]
[{"$nulls":5},27812,"COMUNE DI CASIGNANA"]
[{"$nulls":5},27813,"COMUNE DI UCRIA"]
[{"$nulls":5},27814,"COMUNE DI PETTINEO"]
[{"$nulls":5},27816,"COMUNE DI MARSALA"]
[{"$nulls":5},27817,"Comune di Tortora"]
[{"$nulls":5},27818,"COMUNE DI VITA"]
[{"$nulls":5},27824,"COMUNE DI CIMINA'"]
[{"$nulls":5},27825,"comune di biccari"]
[{"$nulls":5},27831,"COMUNE DI ROVITO"]
[{"$nulls":5},27832,"COMUNE DI MARANO PRINCIPATO"]
[{"$nulls":5},27834,"COMUNE DI FAETO"]
[{"$nulls":5},27835,"COMUNE DI MISTRETTA"]
[{"$nulls":5},27839,"Comune di Palazzo Adriano"]
[{"$nulls":5},27840,"CONSORZIO BELLOLAMPO"]
[{"$nulls":5},27841,"COMUNE DI CARONIA"]
[{"$nulls":5},27842,"Comune di Cervicati"]
[{"$nulls":5},27844,"COMUNE DI CAMPOFELICE DI ROCCELLA"]
[{"$nulls":5},27845,"COMUNE DI PANETTIERI"]
[{"$nulls":5},27849,"COMUNE SAN PIETRO IN GUARANO"]
[{"$nulls":5},27852,"COMUNE DI MONGRASSANO"]
[{"$nulls":5},27856,"Comune di Scigliano"]
[{"$nulls":5},27858,"Comune di Firmo"]
[{"$nulls":5},27861,"COMUNE DI SANTA DOMENICA TALAO"]
[{"$nulls":5},27862,"COMUNE DI MONTEGIORDANO"]
[{"$nulls":5},27866,"Comune di Argusto"]
[{"$nulls":5},27867,"Comune di Sellia"]
[{"$nulls":5},27871,"Comune di San Giorgio Morgeto"]
[{"$nulls":5},27872,"Comune di Paterno Calabro"]
[{"$nulls":5},27873,"COMUNE DI CASTIGLIONE COSENTINO"]
[{"$nulls":5},27875,"COMUNE DI PARGHELIA"]
[{"$nulls":5},27876,"COMUNE DI BORGIA"]
[{"$nulls":5},27885,"COMUNE DI ZUNGOLI"]
[{"$nulls":5},27889,"COMUNE DI MERI'"]
[{"$nulls":5},27890,"comune di mormanno"]
[{"$nulls":5},27891,"COMUNE DI ROTA GRECA"]
[{"$nulls":5},27893,"Comune di Taurianova"]
[{"$nulls":5},27897,"Comune di Calvizzano"]
[{"$nulls":5},27898,"COMUNE DI CASAL DI PRINCIPE"]
[{"$nulls":5},27901,"COMUNE DI CASALVECCHIO SICULO"]
[{"$nulls":5},27906,"Comune di Polizzi Generosa"]
[{"$nulls":5},27907,"COMUNE DI CONFLENTI"]
[{"$nulls":5},27910,"comune di Castel di Sasso"]
[{"$nulls":5},27913,"Comune Capriati a Volturno"]
[{"$nulls":5},27914,"Comune di Sellia Marina"]
[{"$nulls":5},27915,"COMUNE DI GIOIA TAURO"]
[{"$nulls":5},27916,"Comune di Milo"]
[{"$nulls":5},27918,"Comune di Cetraro"]
[{"$nulls":5},27920,"Comune di Settingiano"]
[{"$nulls":5},27921,"Comune di Ragalna"]
[{"$nulls":5},27922,"COMUNE DI TORRE LE NOCELLE"]
[{"$nulls":5},27926,"Consorzio per la Depurazione dei Liquami Tra i Comuni di Giarre Riposto Mascali Fiumefreddo di Sicilia Sant'Alfio"]
[{"$nulls":5},27929,"COMUNE DI MILAZZO"]
[{"$nulls":5},27930,"COMUNE DI CAIANELLO"]
[{"$nulls":5},27931,"COMUNE DI CASSANO ALL'IONIO"]
[{"$nulls":5},27932,"Comune di Rota d'Imagna"]
[{"$nulls":5},27936,"COMUNE DI MANIACE"]
[{"$nulls":5},27937,"COMUNE DI TAORMINA"]
[{"$nulls":5},27939,"COMUNE DI IONADI"]
[{"$nulls":5},27945,"comune di solopaca"]
[{"$nulls":5},27948,"Comune di Torre di Ruggiero"]
[{"$nulls":5},27949,"comune di casavatore"]
[{"$nulls":5},27950,"AQUA CONSULT TRATTAMENTO ACQUE"]
[{"$nulls":5},27953,"Comune di Chiaravalle Centrale"]
[{"$nulls":5},27954,"COMUNE DI LAINO CASTELLO"]
[{"$nulls":5},27956,"COMUNE DI SAVA"]
[{"$nulls":5},27957,"Comune di Gricignano di Aversa"]
[{"$nulls":5},27959,"COMUNE DI CASTROVILLARI"]
[{"$nulls":5},27960,"Comune di Casali del Manco"]
[{"$nulls":5},27961,"Comune di San Marcellino"]
[{"$nulls":5},27963,"COMUNE DI CAPODRISE"]
[{"$nulls":5},27964,"COMUNE DI SAN NICOLA LA STRADA"]
[{"$nulls":5},27968,"COMUNE DI TRENTOLA DUCENTA"]
[{"$nulls":5},27969,"COMUNE DI MACERATA CAMPANIA"]
[{"$nulls":5},27970,"Comune di Scalea"]
[{"$nulls":5},27972,"COMUNE DI CRISPANO"]
[{"$nulls":5},27975,"CONSORZIO ACQUA POTABILE DI SAGLIANO MICCA"]
[{"$nulls":5},27983,"COMUNE DI SAN PRISCO"]
[{"$nulls":5},27984,"Comune di Panni"]
[{"$nulls":5},27986,"COMUNE DI CAMPERTOGNO"]
[{"$nulls":5},27987,"Comune di Viagrande"]
[{"$nulls":5},27988,"COMUNE DI CAPIZZI"]
[{"$nulls":5},27989,"COMUNE DI MONTORO"]
[{"$nulls":5},27990,"Comune di Cesarò"]
[{"$nulls":5},27992,"COMUNE DI CAPO D'ORLANDO"]
[{"$nulls":5},27993,"Comune di Celenza Valfortore"]
[{"$nulls":5},27996,"COMUNE DI CASTELVETRANO"]
[{"$nulls":5},27999,"Comune di Succivo"]
[{"$nulls":5},28000,"COMUNE DI GIOIOSA IONICA"]
[{"$nulls":5},28001,"COMUNE DI CARAFFA DEL BIANCO"]
[{"$nulls":5},28003,"COMUNE DI GUARDIA PIEMONTESE"]
[{"$nulls":5},28004,"Comune di Bova Marina"]
[{"$nulls":5},28005,"comune di partanna"]
[{"$nulls":5},28006,"Comune di Pago Veiano"]
[{"$nulls":5},28009,"COMUNE DI FRANCOLISE"]
[{"$nulls":5},28012,"COMUNE DI POLISTENA"]
[{"$nulls":5},28013,"CONSORZIO ACQUA POTABILE CAUSSO"]
[{"$nulls":5},28014,"Comune di Soveria Simeri"]
[{"$nulls":5},28015,"Comune di Bisignano"]
[{"$nulls":5},28016,"COMUNE DI MELICUCCO"]
[{"$nulls":5},28017,"COMUNE DI ANTILLO (ME)"]
[{"$nulls":5},28018,"comune di caserta"]
[{"$nulls":5},28019,"COMUNE DI DELIANUOVA"]
[{"$nulls":5},28020,"COMUNE DI MUGNANO DI NAPOLI"]
[{"$nulls":5},28021,"COMUNE DI CARAFFA DI CATANZARO"]
[{"$nulls":5},28023,"CONSORZIO ACQUA POTABILE DI MIAGLIANO"]
[{"$nulls":5},28024,"Comune di Campobello di Mazara"]
[{"$nulls":5},28025,"COMUNE DI OPPIDO MAMERTINA"]
[{"$nulls":5},28026,"COMUNE DI SPORMINORE"]
[{"$nulls":5},28027,"COMUNE DI CINQUEFRONDI"]
[{"$nulls":5},28028,"COMUNE DI SCILLA"]
[{"$nulls":5},28031,"COMUNE DI TERRANOVA DA SIBARI"]
[{"$nulls":5},28034,"COMUNE DI SERRASTRETTA"]
[{"$nulls":5},28035,"COMUNE DI VILLARICCA"]
[{"$nulls":5},28036,"COMUNE DI CROSIA"]
[{"$nulls":5},28037,"Comune di Capistrano"]
[{"$nulls":5},28039,"COMUNE DI SAN GIOVANNI IN FIORE"]
[{"$nulls":5},28040,"COMUNE DI SOVERATO"]
[{"$nulls":5},28041,"COMUNE DI GIMIGLIANO"]
[{"$nulls":5},28042,"COMUNE DI SALEMI"]
[{"$nulls":5},28043,"COMUNE DI MIRABELLA ECLANO"]
[{"$nulls":5},28045,"COMUNE DI SANT'ALESSIO IN ASPROMONTE"]
[{"$nulls":5},28046,"Comune di Cosenza"]
[{"$nulls":5},28047,"COMUNE DI BUSSO"]
[{"$nulls":5},28050,"Comune di Teverola"]
[{"$nulls":5},28051,"COMUNE DI BELVEDERE MARITTIMO"]
[{"$nulls":5},28053,"COMUNE DI CASTELLANA SICULA"]
[{"$nulls":5},28054,"COMUNE DI ROMETTA"]
[{"$nulls":5},28055,"COMUNE DI SARACENA"]
[{"$nulls":5},28057,"COMUNE DI SAINT-VINCENT"]
[{"$nulls":5},28059,"COMUNE DI MONTALTO UFFUGO"]
[{"$nulls":5},28061,"comune di pizzo"]
[{"$nulls":5},28062,"COMUNE DI SAN MARCO ARGENTANO"]
[{"$nulls":5},28063,"comune di Santa Caterina Albanese"]
[{"$nulls":5},28065,"COMUNE DI PALOMONTE"]
[{"$nulls":5},28066,"Comune di Sant'Agata Di Militello"]
[{"$nulls":5},28067,"COMUNE DI ROSE"]
[{"$nulls":5},28070,"Comune di Villa Literno"]
[{"$nulls":5},28072,"COMUNE DI SAN SOSTI"]
[{"$nulls":5},28073,"COMUNE DI ROGGIANO GRAVINA"]
[{"$nulls":5},28074,"Comune di San Pietro Apostolo"]
[{"$nulls":5},28076,"COMUNE DI MOLOCHIO"]
[{"$nulls":5},28077,"COMUNE DI ACQUEDOLCI"]
[{"$nulls":5},28079,"Comune di Frascineto"]
[{"$nulls":5},28081,"COMUNE DI PIANOPOLI"]
[{"$nulls":5},28083,"COMUNE DI ARIENZO"]
[{"$nulls":5},28084,"Comune di Grottaminarda"]
[{"$nulls":5},28085,"COMUNE DI ACRI"]
[{"$nulls":5},28087,"COMUNE DI MONTEBELLO JONICO"]
[{"$nulls":5},28089,"COMUNE DI PIETRAFITTA"]
[{"$nulls":5},28090,"COMUNE DI VILLAFRATI"]
[{"$nulls":5},28091,"COMUNE DI ZUMPANO"]
[{"$nulls":5},28093,"Comune di Avola"]
[{"$nulls":5},28094,"Comune di Trebisacce"]
[{"$nulls":5},28095,"COMUNE DI PETROSINO"]
[{"$nulls":5},28096,"COMUNE DI MOTTAFOLLONE"]
[{"$nulls":5},28098,"COMUNE DI SACCO"]
[{"$nulls":5},28100,"Comune di Montecilfone"]
[{"$nulls":5},28105,"COMUNE DI MALVITO"]
[{"$nulls":5},28106,"COMUNE DI LUSTRA"]
[{"$nulls":5},28108,"COMUNE DI MENDICINO"]
[{"$nulls":5},28110,"Comune di Sant'Onofrio"]
[{"$nulls":5},28113,"COMUNE DI CORIGLIANO-ROSSANO"]
[{"$nulls":5},28115,"COMUNE DI FALCONE"]
[{"$nulls":5},28116,"COMUNE DI ERICE"]
[{"$nulls":5},28117,"COMUNE DI CELLOLE"]
[{"$nulls":5},28122,"Comune di Caivano"]
[{"$nulls":5},28123,"COMUNE DI CARLOPOLI"]
[{"$nulls":5},28125,"COMUNE DI ARIANO IRPINO"]
[{"$nulls":5},28127,"COMUNE DI CAPACCIO PAESTUM"]
[{"$nulls":5},28128,"COMUNE DI LAURINO"]
[{"$nulls":5},28129,"COMUNE DI FALCONARA ALBANESE"]
[{"$nulls":5},28134,"COMUNE DI PARETE"]
[{"$nulls":5},28135,"COMUNE DI CORVARA"]
[{"$nulls":5},28136,"Comune di Girifalco"]
[{"$nulls":5},28138,"Comune di Mazara del Vallo"]
[{"$nulls":5},28141,"COMUNE DI AMANTEA"]
[{"$nulls":5},28143,"COMUNE DI LATTARICO"]
[{"$nulls":5},28144,"COMUNE DI OLIVERI"]
[{"$nulls":5},28150,"COMUNE DI SAN VALENTINO IN ABRUZZO CITERIORE"]
[{"$nulls":5},28151,"COMUNE DI BAGALADI"]
[{"$nulls":5},28154,"COMUNE DI CROPALATI"]
[{"$nulls":5},28157,"COMUNE DI SANT'AGATA DI ESARO"]
[{"$nulls":5},28160,"Comune di Patti"]
[{"$nulls":5},28161,"COMUNE DI PERTICA BASSA"]
[{"$nulls":5},28165,"COMUNE DI VINCHIATURO"]
[{"$nulls":5},28171,"COMUNE DI CELICO"]
[{"$nulls":5},28172,"COMUNE DI SAN DONATO DI NINEA"]
[{"$nulls":5},28179,"COMUNE DI CRUCOLI"]
[{"$nulls":5},28181,"COMUNE DI ALI' TERME"]
[{"$nulls":5},28182,"COMUNE DI SOLARINO"]
[{"$nulls":5},28183,"COMUNE DI FERRUZZANO"]
[{"$nulls":5},28184,"comune di Platania"]
[{"$nulls":5},28186,"COMUNE DI RIONERO SANNITICO"]
[{"$nulls":5},28187,"COMUNE DI LAGO"]
[{"$nulls":5},28188,"COMUNE DI SANT'EUFEMIA A MAIELLA"]
[{"$nulls":5},28199,"comune di villamaina"]
[{"$nulls":5},28206,"COMUNE DI CERZETO"]
[{"$nulls":5},28209,"COMUNE DI GERACE"]
[{"$nulls":5},28211,"Comune di Santo Stefano Quisquina"]
[{"$nulls":5},28212,"Comune di Giustenice"]
[{"$nulls":5},28215,"COMUNE DI ONZO"]
[{"$nulls":5},28223,"Comune di Gizzeria"]
[{"$nulls":5},28229,"COMUNE DI TORANO CASTELLO"]
[{"$nulls":5},28272,"COMUNE DI FEROLETO ANTICO"]
[{"$nulls":5},28273,"COMUNE DI MARTIRANO LOMBARDO"]
[{"$nulls":5},28283,"COMUNE DI TIRIOLO"]
[{"$nulls":5},28289,"COMUNE DI ORTOVERO"]
[{"$nulls":5},28294,"COMUNE DI FICARRA"]
[{"$nulls":5},28295,"COMUNE DI CITTANOVA"]
[{"$nulls":5},28306,"COMUNE DI CASTROREGIO"]
[{"$nulls":5},28307,"COMUNE DI CASTEL SAN VINCENZO"]
[{"$nulls":5},28308,"COMUNE DI AMARONI"]
[{"$nulls":5},28309,"Comune di Cerchiara di Calabria"]
[{"$nulls":5},28310,"comune di gasperina"]
[{"$nulls":5},28315,"COMUNE DI SANTO STEFANO DI ROGLIANO"]
[{"$nulls":5},28316,"COMUNE SAN PIETRO A MAIDA"]
[{"$nulls":5},28317,"COMUNE DI GIUNGANO"]
[{"$nulls":5},28318,"comune di rombiolo"]
[{"$nulls":5},28319,"COMUNE DI MORRA DE SANCTIS"]
[{"$nulls":5},28320,"COMUNE DI MACCHIA VALFORTORE"]
[{"$nulls":5},28323,"COMUNE DI LARINO"]
[{"$nulls":5},28324,"COMUNE DI GUARDIA LOMBARDI"]
[{"$nulls":5},28326,"Comune di Basicò"]
[{"$nulls":5},28327,"COMUNE DI ALTAVILLA SILENTINA"]
[{"$nulls":5},28332,"COMUNE DI MIGLIERINA"]
[{"$nulls":5},28333,"COMUNE DI SANTA CRISTINA D'ASPROMONTE"]
[{"$nulls":5},28335,"COMUNE DI CAMMARATA"]
[{"$nulls":5},28339,"COMUNE DI CIANCIANA"]
[{"$nulls":5},28340,"COMUNE  DI  ACERNO"]
[{"$nulls":5},28341,"COMUNE DI PEDIVIGLIANO"]
[{"$nulls":5},28342,"COMUNE DI GRIMALDI"]
[{"$nulls":5},28343,"comune di longobucco"]
[{"$nulls":5},28345,"Comune di Alessandria della Rocca"]
[{"$nulls":5},28346,"comune di san marco la catola"]
[{"$nulls":5},28351,"COMUNE DI SERRATA"]
[{"$nulls":5},28355,"COMUNE DI PIGNATARO MAGGIORE"]
[{"$nulls":5},28358,"COMUNE DI SCALA COELI"]
[{"$nulls":5},28359,"Comune di Terravecchia"]
[{"$nulls":5},28360,"COMUNE DI CISANO SUL NEVA"]
[{"$nulls":5},28362,"Comune di Senerchia"]
[{"$nulls":5},28364,"COMUNE DI MONASTERACE"]
[{"$nulls":5},28365,"COMUNE DI VARAPODIO"]
[{"$nulls":5},28366,"COMUNE DI SAN FILI"]
[{"$nulls":5},28367,"COMUNE DI SAN LORENZO BELLIZZI"]
[{"$nulls":5},28371,"COMUNE DI LONGOBARDI"]
[{"$nulls":5},28375,"COMUNE DI PIETRABBONDANTE"]
[{"$nulls":5},28376,"COMUNE DI SASSELLO"]
[{"$nulls":5},28377,"CONSORZIO BONIFICA DI PAESTUM"]
[{"$nulls":5},28379,"VOLTURNO MULTIUTILITY SPA IN LIQUIDAZIONE"]
[{"$nulls":5},28383,"COMUNE DI ALI'"]
[{"$nulls":5},28388,"COMUNE DI BIANCHI"]
[{"$nulls":5},28390,"COMUNE DI BISACQUINO"]
[{"$nulls":5},28393,"Comune di Sesto Campano"]
[{"$nulls":5},28419,"COMUNE DI ARNASCO"]
[{"$nulls":5},28427,"COMUNE DI SAN LUCIDO"]
[{"$nulls":5},28429,"Comune di Rocca Canterano"]
[{"$nulls":5},28433,"Comune di San Marco Evangelista"]
[{"$nulls":5},28441,"comune di Petrella Tifernina"]
[{"$nulls":5},28442,"Comune di Cancello ed Arnone"]
[{"$nulls":5},28443,"COMUNE DI FURNARI"]
[{"$nulls":5},28452,"COMUNE DI MOTTA SANTA LUCIA"]
[{"$nulls":5},28453,"COMUNE DI CAMERATA NUOVA"]
[{"$nulls":5},28459,"COMUNE DI CALVANICO"]
[{"$nulls":5},28467,"COMUNE DI SPEZZANO ALBANESE"]
[{"$nulls":5},28472,"COMUNE DI CHEREMULE"]
[{"$nulls":5},28479,"COMUNE DI SANT'ILARIO DELLO IONIO"]
[{"$nulls":5},28488,"COMUNE DI MONFORTE SAN GIORGIO"]
[{"$nulls":5},28489,"COMUNE DI ACQUAFORMOSA"]
[{"$nulls":5},28505,"Consorzio di Bonifica della Basilicata"]
[{"$nulls":5},28507,"COMUNE DI  CAULONIA"]
[{"$nulls":5},28520,"COMUNE DI FUSCALDO"]
[{"$nulls":5},28522,"COMUNE DI GIOIOSA MAREA"]
[{"$nulls":5},28528,"COMUNE DI CORTALE"]
[{"$nulls":5},28529,"COMUNE DI ISNELLO"]
[{"$nulls":5},28537,"COMUNE DI MARINA DI GIOIOSA IONICA"]
[{"$nulls":5},28546,"COMUNE DI SAN GIORGIO ALBANESE"]
[{"$nulls":5},28549,"comune di castellammare del golfo"]
[{"$nulls":5},28550,"COMUNE DI SEMINARA"]
[{"$nulls":5},28555,"COMUNE DI ACQUARO"]
[{"$nulls":5},28556,"Comune di Samo"]
[{"$nulls":5},28557,"COMUNE DI TARSIA"]
[{"$nulls":5},28558,"COMUNE DI SAN VINCENZO LA COSTA"]
[{"$nulls":5},28564,"COMUNE DI BROGNATURO"]
[{"$nulls":5},28569,"COMUNE DI ROCCAPIEMONTE"]
[{"$nulls":5},28584,"Comune di Martirano"]
[{"$nulls":5},28587,"COMUNE DI TORTORICI"]
[{"$nulls":5},28593,"COMUNE DI LUNGRO"]
[{"$nulls":5},28609,"COMUNE DI CARIATI"]
[{"$nulls":5},28610,"COMUNE DI CONTESSA ENTELLINA"]
[{"$nulls":5},28612,"COMUNE DI SAN GIOVANNI DI GERACE"]
[{"$nulls":5},28615,"COMUNE DI CIRO' MARINA"]
[{"$nulls":5},28618,"COMUNE DI VAIRANO PATENORA"]
[{"$nulls":5},28622,"COMUNE DI RIZZICONI"]
[{"$nulls":5},28623,"COMUNE DI TERME VIGLIATORE"]
[{"$nulls":5},28624,"CAPT CONSORZIO ACQUA POTABILE DI TAVIGLIANO S."]
[{"$nulls":5},28629,"COMUNE DI NUSCO"]
[{"$nulls":5},28631,"COMUNE DI SPADOLA"]
[{"$nulls":5},28636,"CUAPTI CONSORZIO UTENTI ACQUA POTATILE TAVIGLIANO INFERIORE"]
[{"$nulls":5},28646,"COMUNE DI SAN DEMETRIO CORONE"]
[{"$nulls":5},28658,"comune di Altomonte"]
[{"$nulls":5},28659,"COMUNE DI NASO"]
[{"$nulls":5},28663,"COMUNE DI SAN CALOGERO"]
[{"$nulls":5},28664,"COMUNE DI VILLAPIANA"]
[{"$nulls":5},28666,"COMUNE DI SAN FERDINANDO"]
[{"$nulls":5},28669,"COMUNE DI CROPANI"]
[{"$nulls":5},28670,"COMUNE DI GUARDAVALLE"]
[{"$nulls":5},28674,"COMUNE DI SAN TAMMARO"]
[{"$nulls":5},28676,"Comune di Brolo"]
[{"$nulls":5},28686,"COMUNE DI CONDOFURI"]
[{"$nulls":5},28687,"COMUNE DI CURINGA"]
[{"$nulls":5},28692,"Comune di Rende"]
[{"$nulls":5},28700,"COMUNE DI MOTTA SAN GIOVANNI"]
[{"$nulls":5},28706,"COMUNE DI SANTA MARIA DEL MOLISE"]
[{"$nulls":5},28711,"COMUNE DI BUCCINO"]
[{"$nulls":5},28718,"comune di botricello"]
[{"$nulls":5},28722,"Comune di Cerreto Sannita"]
[{"$nulls":5},28725,"COMUNE DI CARCOFORO"]
[{"$nulls":5},28726,"Comune di San Nicola Manfredi"]
[{"$nulls":5},28730,"comune Acquaviva d'Isernia"]
[{"$nulls":5},28732,"COMUNE DI FALERNA"]
[{"$nulls":5},28733,"COMUNE DI SCAPOLI"]
[{"$nulls":5},28735,"COMUNE DI MOTTA CAMASTRA"]
[{"$nulls":5},28737,"Comune di Custonaci"]
[{"$nulls":5},28738,"comune di montecalvo irpino"]
[{"$nulls":5},28739,"comune di san vito lo capo"]
[{"$nulls":5},28740,"Comune di Saponara"]
[{"$nulls":5},28742,"COMUNE DI SANTA SOFIA D'EPIRO"]
[{"$nulls":5},28743,"COMUNE DI GALLO MATESE"]
[{"$nulls":5},28750,"COMUNE DI ROTONDA"]
[{"$nulls":5},28752,"Comune di San Leucio del Sannio"]
[{"$nulls":5},28753,"COMUNE DI ROCCALUMERA"]
[{"$nulls":5},28756,"COMUNE DI LAUREANA DI BORRELLO"]
[{"$nulls":5},28760,"COMUNE DI CEPPALONI"]
[{"$nulls":5},28761,"COMUNE DI GIOIA SANNITICA"]
[{"$nulls":5},28764,"Comune di Cerisano"]
[{"$nulls":5},28765,"Comune di Soveria Mannelli"]
[{"$nulls":5},28770,"COMUNE DI MELISSA"]
[{"$nulls":5},28775,"Comune di Limbadi"]
[{"$nulls":5},28776,"COMUNE DI ROCCA IMPERIALE"]
[{"$nulls":5},28777,"comune di nizza di sicilia"]
[{"$nulls":5},28779,"Comune di Camastra"]
[{"$nulls":5},28785,"COMUNE DI FAGNANO CASTELLO"]
[{"$nulls":5},28787,"COMUNE DI MARANO MARCHESATO"]
[{"$nulls":5},28788,"COMUNE DI TAVERNA"]
[{"$nulls":5},28789,"COMUNE DI VERBICARO"]
[{"$nulls":5},28790,"COMUNE DI PETRIZZI"]
[{"$nulls":5},28792,"COMUNE DI SAN PIETRO IN AMANTEA"]
[{"$nulls":5},28793,"Comune di Riolunato"]
[{"$nulls":5},28799,"COMUNE DI RIPALIMOSANI"]
[{"$nulls":5},28807,"COMUNE DI SERRA D'AIELLO"]
[{"$nulls":5},28809,"COMUNE DI ISCA SULLO IONIO"]
[{"$nulls":5},28811,"COMUNE DI APRIGLIANO"]
[{"$nulls":5},28812,"Comune di Amendolara"]
[{"$nulls":5},28813,"Comune di Jacurso"]
[{"$nulls":5},28823,"Comune di Fiumefreddo Bruzio"]
[{"$nulls":5},28826,"COMUNE DI CESSANITI"]
[{"$nulls":5},28827,"COMUNE DI FLUMERI"]
[{"$nulls":5},28828,"COMUNE DI STURNO"]
[{"$nulls":5},28831,"Comune di  Grotteria"]
[{"$nulls":5},28833,"COMUNE DI SANT'ANGELO DI BROLO"]
[{"$nulls":5},28834,"comune di san lorenzo del vallo"]
[{"$nulls":5},28839,"COMUNE DI ARENA"]
[{"$nulls":5},28840,"COMUNE DI CONTRADA"]
[{"$nulls":5},28853,"COMUNE DI SANT'ALESSIO SICULO"]
[{"$nulls":5},28858,"Comune di Africo"]
[{"$nulls":5},28861,"comune di vallata"]
[{"$nulls":5},28869,"COMUNE DI BIVONA"]
[{"$nulls":5},28874,"COMUNE DI PERITO"]
[{"$nulls":5},28875,"Comune di Cicerale"]
[{"$nulls":5},28877,"comune di montemiletto"]
[{"$nulls":5},28880,"Comune di Squillace"]
[{"$nulls":5},28882,"COMUNE DI SAN LORENZO"]
[{"$nulls":5},28887,"Comune di Felitto"]
[{"$nulls":5},28897,"COMUNE DI BAIA E LATINA"]
[{"$nulls":5},28912,"Comune di San Fratello"]
[{"$nulls":5},28924,"COMUNE DI SANTO STEFANO IN ASPROMONTE"]
[{"$nulls":5},28925,"COMUNE DI CIVITELLA ROVETO"]
[{"$nulls":5},28932,"Comune di Serramezzana"]
[{"$nulls":5},28936,"COMUNE DI BONIFATI"]
[{"$nulls":5},28944,"COMUNE DI RIACE"]
[{"$nulls":5},28948,"comune di graniti"]
[{"$nulls":5},28955,"COMUNE DI CARERI"]
[{"$nulls":5},28967,"COMUNE DI SANT'ANGELO DEL PESCO"]
[{"$nulls":5},28977,"COMUNE DI AMOROSI"]
[{"$nulls":5},28980,"COMUNE DI MAMMOLA"]
[{"$nulls":5},28988,"comune di stalettì"]
[{"$nulls":5},28992,"comune di san costantino calabro"]
[{"$nulls":5},28994,"Comune di Valle di Maddaloni"]
[{"$nulls":5},29011,"COMUNE DI VALLE DELL'ANGELO"]
[{"$nulls":5},29019,"COMUNE DI CASTELVENERE"]
[{"$nulls":5},29095,"COMUNE DI MIOGLIA"]
[{"$nulls":5},29096,"COMUNE DI CALVI"]
[{"$nulls":5},29125,"COMUNE DI SORIANO CALABRO"]
[{"$nulls":5},29127,"Comune di Roccamonfina"]
[{"$nulls":5},29168,"COMUNE DI MARCELLINARA"]
[{"$nulls":5},29169,"COMUNE DI GALATRO"]
[{"$nulls":5},29197,"COMUNE DI SANT'ANNA ARRESI"]
[{"$nulls":5},29219,"COMUNE DI PATERNOPOLI"]
[{"$nulls":5},29228,"COMUNE DI DRAPIA"]
[{"$nulls":5},29229,"COMUNE DI ORIOLO"]
[{"$nulls":5},29245,"Comune di Sinopoli"]
[{"$nulls":5},29252,"comune di galluccio"]
[{"$nulls":5},29264,"COMUNE DI RODI' MILICI"]
[{"$nulls":5},29270,"comune di simbario"]
[{"$nulls":5},29271,"COMUNE DI BUONVICINO"]
[{"$nulls":5},29272,"COMUNE DI VOLTURINO"]
[{"$nulls":5},29273,"Comune di Feroleto della Chiesa"]
[{"$nulls":5},29274,"COMUNE DI AGGIUS"]
[{"$nulls":5},29279,"COMUNE DI SANTOMENNA"]
[{"$nulls":5},29282,"comune di Andretta"]
[{"$nulls":5},29285,"COMUNE DI FILANDARI"]
[{"$nulls":5},29287,"COMUNE DI PRESENZANO"]
[{"$nulls":5},29291,"COMUNE DI ANOIA"]
[{"$nulls":5},29292,"COMUNE ROSETO CAPO SPULICO"]
[{"$nulls":5},29296,"Comune di Giffone"]
[{"$nulls":5},29301,"Comune di Dinami"]
[{"$nulls":5},29304,"COMUNE DI LAINO BORGO"]
[{"$nulls":5},29306,"Comune di Sant'Andrea Apostolo dello Ionio"]
[{"$nulls":5},29312,"COMUNE DI GRISOLIA"]
[{"$nulls":5},29316,"COMUNE FRANCAVILLA ANGITOLA"]
[{"$nulls":5},29323,"Comune di Francavilla Marittima"]
[{"$nulls":5},29325,"COMUNE DI PARENTI"]
[{"$nulls":5},29326,"COMUNE DI GAGLIATO"]
[{"$nulls":5},29331,"COMUNE DI PIANE CRATI"]
[{"$nulls":5},29334,"COMUNE DI CALOPEZZATI"]
[{"$nulls":5},29335,"comune di Sangineto"]
[{"$nulls":5},29339,"COMUNE DI LOTZORAI"]
[{"$nulls":5},29340,"COMUNE DI MAZZARRA' SANT'ANDREA"]
[{"$nulls":5},29341,"comune di Poggioreale"]
[{"$nulls":5},29344,"COMUNE DI CLETO"]
[{"$nulls":5},29346,"Comune di Colli a Volturno"]
[{"$nulls":5},29347,"comune di Novara di sicilia"]
[{"$nulls":5},29354,"COMUNE DI PALERMITI"]
[{"$nulls":5},29356,"COMUNE DI BELCASTRO"]
[{"$nulls":5},29364,"COMUNE DI ORSOMARSO"]
[{"$nulls":5},29365,"comune di caloveto"]
[{"$nulls":5},29366,"COMUNE DI FILOGASO"]
[{"$nulls":5},29367,"comune di Maierà"]
[{"$nulls":5},29369,"COMUNE DI MIRTO"]
[{"$nulls":5},29370,"COMUNE DI CASACALENDA"]
[{"$nulls":5},29372,"COMUNE DI MILITELLO ROSMARINO"]
[{"$nulls":5},29373,"COMUNE DI PRATA SANNITA"]
[{"$nulls":5},29374,"COMUNE DI ANTONIMINA"]
[{"$nulls":5},29377,"COMUNE DI FIUMALBO"]
[{"$nulls":5},29380,"comune di san pietro di caridà"]
[{"$nulls":5},29381,"COMUNE DI SAN BENEDETTO ULLANO"]
[{"$nulls":5},29383,"COMUNE DI MAGISANO"]
[{"$nulls":5},29384,"COMUNE DI ROCCAVALDINA"]
[{"$nulls":5},29386,"COMUNE DI MONTAURO"]
[{"$nulls":5},29387,"COMUNE DI PIZZONI"]
[{"$nulls":5},29388,"COMUNE DI PIETRAPAOLA"]
[{"$nulls":5},29390,"Comune di Sorbo San Basile"]
[{"$nulls":5},29391,"Comune di San Sostene"]
[{"$nulls":5},29392,"COMUNE DI BELLONA"]
[{"$nulls":5},29393,"COMUNE DI SAN TEODORO"]
[{"$nulls":5},29395,"comune di Vazzano"]
[{"$nulls":5},29396,"COMUNE DI SICIGNANO DEGLI ALBURNI"]
[{"$nulls":5},29397,"COMUNE DI RUVIANO"]
[{"$nulls":5},29398,"COMUNE DI ROGHUDI"]
[{"$nulls":5},29400,"comune di San Basile"]
[{"$nulls":5},29401,"comune di roccamandolfi"]
[{"$nulls":5},29403,"COMUNE DI DRAGONI"]
[{"$nulls":5},29405,"Comune di Rocchetta a Volturno"]
[{"$nulls":5},29406,"COMUNE DI PORTIGLIOLA"]
[{"$nulls":5},29407,"comune di fondachelli fantina"]
[{"$nulls":5},29408,"comune di lupara"]
[{"$nulls":5},29409,"comune di calabritto"]
[{"$nulls":5},29410,"COMUNE DI MASSIMINO"]
[{"$nulls":5},29412,"COMUNE DI GIUSVALLA"]
[{"$nulls":5},29413,"Comune di Vaccarizzo Albanese"]
[{"$nulls":5},29415,"Comune di San Martino di Finita"]
[{"$nulls":5},29417,"Comune di Sorianello"]
[{"$nulls":5},29420,"Comune di Dasà"]
[{"$nulls":5},29421,"comune di santa ninfa"]
[{"$nulls":5},29432,"Comune di Alberona"]
[{"$nulls":5},29438,"Comune di  San Lupo"]
[{"$nulls":5},29440,"COMUNE DI OSIGLIA"]
[{"$nulls":5},29442,"Comune di Santa Marina Salina"]
[{"$nulls":5},29447,"comune di ottati"]
[{"$nulls":5},29449,"COMUNE DI CERRO AL VOLTURNO"]
[{"$nulls":5},29452,"Comune di Mongiana"]
[{"$nulls":5},29453,"COMUNE DI CAMINI"]
[{"$nulls":5},29454,"COMUNE DI CANOLO"]
[{"$nulls":5},29455,"COMUNE DI COSOLETO"]
[{"$nulls":5},29458,"COMUNE DI FONTEGRECA"]
[{"$nulls":5},29459,"COMUNE DI CANNA"]
[{"$nulls":5},29460,"Comune di Letino"]
[{"$nulls":5},29462,"Comune di Aieta"]
[{"$nulls":5},29463,"Comune di Domanico"]
[{"$nulls":5},29467,"comune di zaccanopoli"]
[{"$nulls":5},29469,"Comune di Malfa"]
[{"$nulls":5},29470,"COMUNE DI MONGIUFFI MELIA"]
[{"$nulls":5},29472,"COMUNE DI SAN COSMO ALBANESE"]
[{"$nulls":5},29473,"COMUNE DI FOSSATO SERRALTA"]
[{"$nulls":5},29474,"Comune di Raviscanina"]
[{"$nulls":5},29476,"COMUNE DI TERRANOVA SAPPO MINULIO"]
[{"$nulls":5},29479,"COMUNE DI PONTINVREA"]
[{"$nulls":5},29480,"COMUNE DI FORLI' DEL SANNIO"]
[{"$nulls":5},29482,"COMUNE NOVI VELIA"]
[{"$nulls":5},29483,"COMUNE DI CASTELMOLA"]
[{"$nulls":5},29484,"COMUNE DI PAPASIDERO"]
[{"$nulls":5},29486,"Comune di San Gregorio Matese"]
[{"$nulls":5},29488,"COMUNE DI VALLE AGRICOLA"]
[{"$nulls":5},29489,"COMUNE DI MALITO"]
[{"$nulls":5},29490,"Comune di San Procopio"]
[{"$nulls":5},29492,"COMUNE DI PALUDI"]
[{"$nulls":5},29493,"COMUNE DI LONGI"]
[{"$nulls":5},29494,"COMUNE DI VOLTURARA APPULA"]
[{"$nulls":5},29495,"Comune di Fiumara"]
[{"$nulls":5},29496,"comune di civita"]
[{"$nulls":5},29497,"COMUNE DI SAN PIETRO INFINE"]
[{"$nulls":5},29500,"COMUNE MONTANO ANTILIA"]
[{"$nulls":5},29501,"COMUNE DI BOVA"]
[{"$nulls":5},29502,"COMUNE DI CARPANZANO"]
[{"$nulls":5},29505,"COMUNE DI LAGANADI"]
[{"$nulls":5},29506,"comune di sassano"]
[{"$nulls":5},29508,"COMUNE DI MARCEDUSA"]
[{"$nulls":5},29509,"COMUNE DI SANTA MARINA"]
[{"$nulls":5},29511,"COMUNE DI CELLE DI SAN VITO"]
[{"$nulls":5},29513,"COMUNE DI ROCCAFIORITA"]
[{"$nulls":5},29514,"COMUNE DI OLIVADI"]
[{"$nulls":5},29515,"COMUNE DI PLACANICA"]
[{"$nulls":5},29519,"COMUNE DI FLORESTA"]
[{"$nulls":5},29520,"COMUNE DI ORRIA"]
[{"$nulls":5},29523,"comune di castel san lorenzo"]
[{"$nulls":5},29524,"Comune di Colliano"]
[{"$nulls":5},29525,"COMUNE DI ALESSANDRIA DEL CARRETTO"]
[{"$nulls":5},29530,"COMUNE DI MORIGERATI"]
[{"$nulls":5},29531,"comune di Pago del Vallo di Lauro"]
[{"$nulls":5},29533,"COMUNE DI PONTELATONE"]
[{"$nulls":5},29539,"COMUNE DI SAVOCA"]
[{"$nulls":5},29541,"Comune di San Sossio Baronia"]
[{"$nulls":5},29545,"COMUNE DI CENTRACHE"]
[{"$nulls":5},29546,"comune di cellara"]
[{"$nulls":5},29547,"Comune di Burgio"]
[{"$nulls":5},29549,"comune di cenadi"]
[{"$nulls":5},29552,"COMUNE DI RACCUJA"]
[{"$nulls":5},29553,"Comune di Caselle in Pittari"]
[{"$nulls":5},29556,"COMUNE DI SAN POTITO SANNITICO"]
[{"$nulls":5},29557,"comune di scido"]
[{"$nulls":5},29558,"comune di umbriatico"]
[{"$nulls":5},29563,"Comune di Camerota"]
[{"$nulls":5},29565,"comune di piedimonte matese"]
[{"$nulls":5},29566,"COMUNE DI CERCIVENTO"]
[{"$nulls":5},29567,"COMUNE DI ROGLIANO"]
[{"$nulls":5},29568,"COMUNE DI SCANDALE"]
[{"$nulls":5},29570,"COMUNE DI ANDALI"]
[{"$nulls":5},29571,"COMUNE DI VILLANOVA DEL BATTISTA"]
[{"$nulls":5},29572,"COMUNE DI MONTAGNAREALE"]
[{"$nulls":5},29576,"COMUNE DI FORMICOLA"]
[{"$nulls":5},29580,"COMUNE DI LAPIO"]
[{"$nulls":5},29581,"COMUNE DI SAN POTITO ULTRA"]
[{"$nulls":5},29582,"comune di Marzano di Nola"]
[{"$nulls":5},29583,"Comune di Ailano"]
[{"$nulls":5},29585,"comune di carlantino"]
[{"$nulls":5},29589,"COMUNE DI SCAMPITELLA"]
[{"$nulls":5},29591,"COMUNE DI SAVELLI"]
[{"$nulls":5},29592,"COMUNE DI ROCCAFORTE DEL GRECO"]
[{"$nulls":5},29593,"COMUNE DI MALVAGNA"]
[{"$nulls":5},29594,"COMUNE DI SAN SALVATORE DI FITALIA"]
[{"$nulls":5},29595,"COMUNE DI AMATO"]
[{"$nulls":5},29598,"COMUNE DI CHAMOIS"]
[{"$nulls":5},29600,"Comune di Castelsilano"]
[{"$nulls":5},29601,"COMUNE DI TORGNON"]
[{"$nulls":5},29603,"COMUNE DI APICE"]
[{"$nulls":5},29605,"COMUNE DI BUCCIANO"]
[{"$nulls":5},29611,"COMUNE DI SANT'AGATA DEL BIANCO"]
[{"$nulls":5},29618,"Comune di Gesualdo"]
[{"$nulls":5},29622,"COMUNE DI SANTA PAOLINA"]
[{"$nulls":5},29627,"comune di conca della campania"]
[{"$nulls":5},29638,"COMUNE DI SANTA CROCE DEL SANNIO"]
[{"$nulls":5},29643,"Comune di Roccaromana"]
[{"$nulls":5},29647,"COMUNE DI SPINETO SCRIVIA"]
[{"$nulls":5},29649,"comune di stignano"]
[{"$nulls":5},29662,"Comune di Greci"]
[{"$nulls":5},29665,"Comune di Sant'Arcangelo Trimonte"]
[{"$nulls":5},29670,"comune di monteverde"]
[{"$nulls":5},29691,"Comune di Lacedonia"]
[{"$nulls":5},29692,"COMUNE DI CAMPOLATTARO"]
[{"$nulls":5},29703,"comune di giano vetusto"]
[{"$nulls":5},29704,"COMUNE DI ROCCA SAN FELICE"]
[{"$nulls":5},29716,"COMUNE DI PADULI"]
[{"$nulls":5},29719,"Comune di San Nicola Baronia"]
[{"$nulls":5},29731,"COMUNE DI CASTEL DEL GIUDICE"]
[{"$nulls":5},29736,"Comune di Luserna"]
[{"$nulls":5},29741,"COMUNE DI SORBO SERPICO"]
[{"$nulls":5},29755,"COMUNE DI RIARDO"]
[{"$nulls":5},29762,"COMUNE DI ALBI"]
[{"$nulls":5},29763,"COMUNE DI BADOLATO"]
[{"$nulls":5},29765,"Comune di Montaguto"]
[{"$nulls":5},29768,"Comune di Bonito"]
[{"$nulls":5},29772,"comune di grazzanise"]
[{"$nulls":5},29773,"COMUNE SANTA MARIA A VICO"]
[{"$nulls":5},29791,"COMUNE DI FRIGNANO"]
[{"$nulls":5},29805,"COMUNE DI OSPEDALETTO D'ALPINOLO"]
[{"$nulls":5},29843,"Comune di Durazzano"]
[{"$nulls":5},29853,"Comune di Faicchio"]
[{"$nulls":5},29887,"comune di colleferro"]
[{"$nulls":5},29897,"Comune di Valmontone"]
[{"$nulls":5},29906,"COMUNE DI GEROCARNE"]
[{"$nulls":5},29908,"COMUNE DI ARPAISE"]
[{"$nulls":5},29914,"COMUNE DI TUFO"]
[{"$nulls":5},29926,"COMUNE DI ALBIDONA"]
[{"$nulls":5},29941,"Comune di Santa Croce di Magliano"]
[{"$nulls":5},29945,"COMUNE DI FILIGHERA"]
[{"$nulls":5},29949,"COMUNE DI SAN MARTINO SANNITA"]
[{"$nulls":5},29961,"COMUNE DI TORNIMPARTE"]
[{"$nulls":5},29973,"Comune di TORRE DE' NEGRI"]
[{"$nulls":5},29986,"COMUNE DI POZZILLI"]
[{"$nulls":5},29996,"COMUNE DI SAN PIETRO AVELLANA"]
[{"$nulls":5},30000,"COMUNE DI DIAMANTE"]
[{"$nulls":5},30002,"COMUNE DI ACQUAPPESA"]
[{"$nulls":5},30004,"Comune di Favignana"]
[{"$nulls":5},30007,"comune di carolei"]
[{"$nulls":5},30010,"COMUNE DI SAN LORENZO MAGGIORE"]
[{"$nulls":5},30012,"COMUNE DI MAIDA"]
[{"$nulls":5},30013,"COMUNE DI BRIATICO"]
[{"$nulls":5},30016,"COMUNE DI NOCARA"]
[{"$nulls":5},30021,"COMUNE DI BELMONTE CALABRO"]
[{"$nulls":5},30027,"COMUNE DI SAN FLORO"]
[{"$nulls":5},30031,"COMUNE DI DIPIGNANO"]
[{"$nulls":5},30035,"COMUNE DI CASTROLIBERO"]
[{"$nulls":5},30039,"Comune di Staiti"]
[{"$nulls":5},30041,"COMUNE DI MARTONE"]
[{"$nulls":5},30043,"Comune di Caccuri"]
[{"$nulls":5},30045,"COMUNE DI CAIAZZO"]
[{"$nulls":5},30046,"comune di alife"]
[{"$nulls":5},30048,"COMUNE DI PLATACI"]
[{"$nulls":5},30052,"Comune di Falciano del Massico"]
[{"$nulls":5},30056,"COMUNE DI ZAGARISE"]
[{"$nulls":5},30065,"COMUNE DI DECOLLATURA"]
[{"$nulls":5},30071,"COMUNE DI SUMMONTE"]
[{"$nulls":5},30073,"comune di joppolo"]
[{"$nulls":5},30078,"COMUNE DI NARDODIPACE"]
[{"$nulls":5},30152,"Comune di San Giovanni di Fassa - Sèn Jan"]
[{"$nulls":5},30169,"comune di lioni"]
[{"$nulls":5},30174,"comune di salza irpina"]
[{"$nulls":5},30176,"comune di alcara li fusi"]
[{"$nulls":5},30177,"Comune di Trevico"]
[{"$nulls":5},30189,"COMUNE DI ATENA LUCANA"]
[{"$nulls":5},30195,"Comune di Frigento"]
[{"$nulls":5},30197,"Comune di Manocalzati"]
[{"$nulls":5},30232,"COMUNE DI GARNIGA TERME"]
[{"$nulls":5},30279,"COMUNE DI TORA E PICCILLI"]
[{"$nulls":5},30318,"COMUNE DI FORZA D'AGRO'"]
[{"$nulls":5},30324,"CONSORZIO GESTORI SERVIZI IDRICI S.C.R.L."]
[{"$nulls":5},31180,"COMUNE DI LADISPOLI"]
[{"$nulls":5},32054,"COMUNE DI SAN GREGORIO D'IPPONA"]
[{"$nulls":5},32085,"COMUNE DI BELVEDERE DI SPINELLO"]
[{"$nulls":5},32869,"Comune di Marebbe"]
[{"$nulls":5},32885,"COMUNE DI CARREGA LIGURE"]
[{"$nulls":5},32984,"COMUNE DI BORGO D'ANAUNIA"]
[{"$nulls":5},33176,"SOCIETA' ACQUE POTABILI DI COSSILA - S.R.L."]
[{"$nulls":5},33662,"Comune di Novella"]
[{"$nulls":5},33936,"COMUNE DI MANDATORICCIO"]
[{"$nulls":5},34108,"COMUNE DI SALAPARUTA"]
[{"$nulls":5},34360,"COMUNE DI VILLE DI FIEMME"]
[{"$nulls":5},34382,"comune di figline vegliaturo"]
[{"$nulls":5},34441,"COMUNE DI CIS"]
[{"$nulls":5},34455,"COMUNE DI BRESIMO"]
[{"$nulls":5},34490,"COMUNE DI PIETRASTORNINA"]
[{"$nulls":5},34638,"comune di Montella"]
[{"$nulls":5},34672,"comune di fragneto monforte"]
[{"$nulls":5},34679,"COMUNE DI MINEO"]
[{"$nulls":5},34751,"COMUNE DI NOCERA TERINESE"]
[{"$nulls":5},34814,"COMUNE DI MELITO IRPINO"]
[{"$nulls":5},34819,"COMUNE DI SIRIGNANO"]
[{"$nulls":5},34851,"Comune di Sant'Antimo"]
[{"$nulls":5},34861,"COMUNE DI FRANCOFONTE"]
[{"$nulls":5},34869,"COMUNE DI PRATELLA"]
[{"$nulls":5},34874,"Comune di Montefredane"]
[{"$nulls":5},35222,"Comune di Sparanise"]
[{"$nulls":5},35345,"COMUNE DI CERVINO"]
[{"$nulls":5},35396,"COMUNE DI ORTA DI ATELLA"]
[{"$nulls":5},35474,"COMUNE DI FANO ADRIANO"]
[{"$nulls":5},35489,"Comune di Pratola Serra"]
[{"$nulls":5},35793,"GIBILROSSA ACQUE"]
[{"$nulls":5},36120,"COMUNE DI NICOTERA"]
[{"$nulls":5},36162,"COMUNE DI SAN MANGO D'AQUINO"]
[{"$nulls":5},36235,"COMUNE DI CASALUCE"]
[{"$nulls":5},36247,"Comune di Sant'Eufemia d'Aspromonte"]
[{"$nulls":5},36252,"ACQUE LO CASTRO SRL"]
[{"$nulls":5},36267,"COMUNE DI VALDERICE"]
[{"$nulls":5},36302,"Consorzio di Bonifica n. 8 Ragusa mandatario senza rappresentanza del Consorzio di Bonifica della Sicilia Orientale"]
[{"$nulls":5},37011,"AM+ SPA"]
[{"$nulls":5},37076,"A.I.C.A. - AZIENDA IDRICA COMUNI AGRIGENTINI"]
[{"$nulls":5},37081,"COMUNE CAMPIONE D'ITALIA"]
[{"$nulls":5},37305,"Funivia Plan de Corones"]
[{"$nulls":5},37429,"Comune di Limina"]
[{"$nulls":5},37570,"COMUNE DI MASCALUCIA"]
[{"$nulls":5},38158,"COMUNE DI CAMIGLIANO"]
[{"$nulls":5},38194,"Comune di Teora"]
[{"$nulls":5},38196,"GRIM SCARL"]
[{"$nulls":5},38233,"COMUNE DI LENI"]
[{"$nulls":5},38285,"IBLEA ACQUE SPA IN HOUSE"]
[{"$nulls":5},38362,"SERVICES DES EAUXS VALDÔTAINES S.R.L."]
[{"$nulls":5},38704,"COMUNE DI PALIZZI"]
[{"$nulls":5},38755,"Comune di Cardinale"]
[{"$nulls":5},38992,"Comune di Taurano"]
[{"$nulls":5},39264,"Comune di Buseto Palizzolo"]
[{"$nulls":5},39290,"Comune di Sperone"]
[{"$nulls":5},39381,"Valli Varanensi s.r.l."]
[{"$nulls":5},39382,"COMUNE DI PESCO SANNITA"]
[{"$nulls":5},39422,"COMUNE DI SAN GIORGIO LA MOLARA"]
[{"$nulls":5},39551,"comune di santa maria la fossa"]
[{"$nulls":5},39924,"ARCA srl"]
[{"$nulls":5},40228,"COMUNE DI FRAGNETO L'ABATE"]
[{"$nulls":5},42044,"Comune di OGLIASTRO Cilento"]
[{"$nulls":5},42391,"IREN ACQUA PIACENZA S.R.L."]
[{"$nulls":5},43740,"comune di ferruzzano"]
[{"$nulls":5},43888,"COMUNE DI CARDETO"]
[{"$nulls":5},43965,"HERACQUAMODENA S.R.L."]
[{"$nulls":5},44156,"comune di Porto Cesareo"]
[{"$nulls":5},1961,"Romagna Acque Società delle Fonti S.p.A."]
[{"$nulls":5},5720,"ENTE ACQUE UMBRE-TOSCANE"]
[{"$nulls":5},9281,"ACQUE SUD S.R.L."]
[{"$nulls":5},13524,"società acque dell'etna e di s.giacomo"]
[{"$nulls":5},13613,"ACQUE PONTE DI FERRO S.n.c.dei SIGG. SANTAGATI"]
[{"$nulls":5},13731,"IDROAGRICOLA S.R.L"]
[{"$nulls":5},13807,"ACQUE BUFARDO E TORREROSSA SRL"]
[{"$nulls":5},13837,"Società Acquedotti Tirreni"]
[{"$nulls":5},13873,"SO.GE.IM. di Sorbello Rosario & C."]
[{"$nulls":5},13893,"sub ATO Monte Emilius - Piana d'Aosta"]
[{"$nulls":5},14044,"INTEGRA CONCESSIONI SRL"]
[{"$nulls":5},14083,"Siciliacque S.p.A."]
[{"$nulls":5},14138,"ACQUA CAMPANIA SPA"]
[{"$nulls":5},14237,"GARAFFO  & SCILIO S.P.A."]
[{"$nulls":5},15005,"ACQUE MADONNA DEL CARMINE"]
[{"$nulls":5},15328,"FRATELLI  GRASSI  NICOTRA  ACQUE"]
[{"$nulls":5},19563,"ACQUE FLORESTA SRL"]
[{"$nulls":5},21495,"SOCIETA' ACQUEDOTTO VALLE DEL LAMONE S.R.L."]
[{"$nulls":5},21726,"comune di gottasecca"]
[{"$nulls":5},24060,"GANDOVERE DEPURAZIONE SRL"]
[{"$nulls":5},25881,"Acque  Ventrilla  di  Ventrilla  Tania"]
[{"$nulls":5},26631,"Acque Sud Service S.r.l."]
[{"$nulls":5},27183,"COMUNE DI ABETONE CUTIGLIANO"]
[{"$nulls":5},33240,"ACQUE PUBBLICHE SAVONESI S.C.P.A."]
[{"$nulls":5},21358,"COSTRUZIONI DONDI"]
[{"$nulls":5},13976,"ACQUE PONTE DI FERRO S.R.L. "]
[{"$nulls":5},14240,"ACQUE LO SCIUTO S.R.L."]
[{"$nulls":5},16977,"S.ED.A. S.R.L. SOCIETA' EDUZIONE ACQUE"]
[{"$nulls":5},43766,"NAIADI srl"]